extractdate,publisheruri,publisherlabel,serviceyypeuri,servicetypelabel,DATE OF TRANSACTION,LA DEPARTMENT INCURRING SPEND,BENEFICIARY,GROSS AMOUNT,SUMMARY OF PURPOSEOF SPEND,MERCHANT CATEGORY
20/07/2017,http://opendatacommunities.org/id/county-council/surrey,Surrey,http://id.esd.org.uk/service/1465,Council expenditure,23/03/2017,CHEYNE WALK COMMUNITY HOME,CONNECTIONFLOORINGLTD,-999.99,EQUIPMENT,FLOOR COVERING STORES
20/07/2017,http://opendatacommunities.org/id/county-council/surrey,Surrey,http://id.esd.org.uk/service/1465,Council expenditure,24/03/2017,BURBANK COMMUNITY HOME,FRANKIE & BENNYS 5499,47.47,PURCHASE OF FOOD (RAW MATERIALS),"EATING PLACES, RESTAURANTS"
20/07/2017,http://opendatacommunities.org/id/county-council/surrey,Surrey,http://id.esd.org.uk/service/1465,Council expenditure,24/03/2017,CHEYNE WALK COMMUNITY HOME,TVLICENSING.CO.UK,145.5,LIBRARY RESOURCES,"CONSULTING, MANAGEMENT, AND PUBLIC RELATIONS SVCS"
20/07/2017,http://opendatacommunities.org/id/county-council/surrey,Surrey,http://id.esd.org.uk/service/1465,Council expenditure,24/03/2017,PE/CDT MAINTENANCE OVERHEADS,B & G LOCK & TOOL CO L,214.22,EQUIPMENT,HOUSEHOLD APPLIANCE STORES
20/07/2017,http://opendatacommunities.org/id/county-council/surrey,Surrey,http://id.esd.org.uk/service/1465,Council expenditure,25/03/2017,FAIRCROFT COMMUNITY HOME,STORE TWENTY ONE - 776,41,EQUIPMENT,MEN'S AND WOMEN'S CLOTHING STORES
20/07/2017,http://opendatacommunities.org/id/county-council/surrey,Surrey,http://id.esd.org.uk/service/1465,Council expenditure,25/03/2017,COVEHAM,ROBERT DYAS HOLDNG LTD,21.99,EQUIPMENT,HARDWARE STORES
20/07/2017,http://opendatacommunities.org/id/county-council/surrey,Surrey,http://id.esd.org.uk/service/1465,Council expenditure,26/03/2017,KARIBU COMMUNITY HOME,AMAZON UK RETAIL AMAZO,9.28,LIBRARY RESOURCES,MISCELLANEOUS AND SPECIALTY RETAIL STORES
20/07/2017,http://opendatacommunities.org/id/county-council/surrey,Surrey,http://id.esd.org.uk/service/1465,Council expenditure,26/03/2017,LIBERTAS COMMUNITY HOME,PRIMARK STORES 655,2,EQUIPMENT,FAMILY CLOTHING STORES
20/07/2017,http://opendatacommunities.org/id/county-council/surrey,Surrey,http://id.esd.org.uk/service/1465,Council expenditure,26/03/2017,NE CARE - NON-LAC CP & COURT,AMAZON UK RETAIL AMAZO,59.99,EQUIPMENT,MISCELLANEOUS AND SPECIALTY RETAIL STORES
20/07/2017,http://opendatacommunities.org/id/county-council/surrey,Surrey,http://id.esd.org.uk/service/1465,Council expenditure,27/03/2017,TRAINING SURREY HIGHWAYS,WWW.QA.COM,456,TRAINING USING EXTERNAL PROVIDERS,SCHOOLS & EDUCATIONAL SVC-NOT ELSEWHERE CLASSIFIED
20/07/2017,http://opendatacommunities.org/id/county-council/surrey,Surrey,http://id.esd.org.uk/service/1465,Council expenditure,27/03/2017,TARGETED INTERVENTION,OPEN UNIVERSITY MOTO,"1,600.00",TRAINING USING EXTERNAL PROVIDERS,"COLLEGES, UNIV, PRO SCHOOLS, JUNIOR COLLEGES"
20/07/2017,http://opendatacommunities.org/id/county-council/surrey,Surrey,http://id.esd.org.uk/service/1465,Council expenditure,27/03/2017,COMMUNICATIONS - SURREY MATTERS,CURRYS ONLINE,29.99,STATIONERY,ELECTRONIC SALES
20/07/2017,http://opendatacommunities.org/id/county-council/surrey,Surrey,http://id.esd.org.uk/service/1465,Council expenditure,27/03/2017,DITTONS & CLAYGATE CC,THE CARTRIDGE PEOPLE G,59.38,STATIONERY,OFFICE PHOTOGRAPHIC PHOTOCOPY & MICROFILM EQUIPMT.
20/07/2017,http://opendatacommunities.org/id/county-council/surrey,Surrey,http://id.esd.org.uk/service/1465,Council expenditure,27/03/2017,TARGETED INTERVENTION,NEWLANDS,6.1,EDUC VISITS/HOLS/CAMPS/TOYS,"EATING PLACES, RESTAURANTS"
20/07/2017,http://opendatacommunities.org/id/county-council/surrey,Surrey,http://id.esd.org.uk/service/1465,Council expenditure,27/03/2017,ACL CENTRAL EXPENDITURE,TESCO STORE 3149,106.91,PURCHASE OF FOOD (RAW MATERIALS),"GROCERY STORES, SUPERMARKETS"
20/07/2017,http://opendatacommunities.org/id/county-council/surrey,Surrey,http://id.esd.org.uk/service/1465,Council expenditure,27/03/2017,SEN GREEN PAPER PATHFINDER PILOT,ATOMWIDE,"1,818.00",EQUIPMENT,COMPUTER NETWORK/INFORMATION SERVICES
20/07/2017,http://opendatacommunities.org/id/county-council/surrey,Surrey,http://id.esd.org.uk/service/1465,Council expenditure,27/03/2017,SOLD DAY TO DAY OPERATIONS,ROYAL YACHTING ASSOC L,72,EQUIPMENT,BUSINESS SERVICES-NOT ELSEWHERE CLASSIFIED
20/07/2017,http://opendatacommunities.org/id/county-council/surrey,Surrey,http://id.esd.org.uk/service/1465,Council expenditure,27/03/2017,IMT CRITICAL ENVIRONMENTS,AMAZON EU,36.44,STATIONERY,DIRECT MARKETING-OTHER DIRECT MARKETERS/NOT ELSEW.
20/07/2017,http://opendatacommunities.org/id/county-council/surrey,Surrey,http://id.esd.org.uk/service/1465,Council expenditure,27/03/2017,IMT CRITICAL ENVIRONMENTS,TALKTALK BUSINESS,"2,206.52",TELECOMMUNICATION CHARGES,TELECOM INCL PREPAID/RECURRING PHONE SVCS
20/07/2017,http://opendatacommunities.org/id/county-council/surrey,Surrey,http://id.esd.org.uk/service/1465,Council expenditure,27/03/2017,HOPE SERVICE - WEST,SAINSBURYS 0683,157.45,PURCHASE OF FOOD (RAW MATERIALS),"GROCERY STORES, SUPERMARKETS"
20/07/2017,http://opendatacommunities.org/id/county-council/surrey,Surrey,http://id.esd.org.uk/service/1465,Council expenditure,27/03/2017,EXTENDED HOPE,WAITROSE 765,23.96,PURCHASE OF FOOD (RAW MATERIALS),"GROCERY STORES, SUPERMARKETS"
20/07/2017,http://opendatacommunities.org/id/county-council/surrey,Surrey,http://id.esd.org.uk/service/1465,Council expenditure,27/03/2017,KARIBU COMMUNITY HOME,AMAZON UK MARKETPLACE,2.99,EQUIPMENT,BOOK STORES
20/07/2017,http://opendatacommunities.org/id/county-council/surrey,Surrey,http://id.esd.org.uk/service/1465,Council expenditure,27/03/2017,KARIBU COMMUNITY HOME,AMAZON UK MARKETPLACE,2.89,EQUIPMENT,BOOK STORES
20/07/2017,http://opendatacommunities.org/id/county-council/surrey,Surrey,http://id.esd.org.uk/service/1465,Council expenditure,27/03/2017,KARIBU COMMUNITY HOME,AMAZON UK MARKETPLACE,5.56,EQUIPMENT,BOOK STORES
20/07/2017,http://opendatacommunities.org/id/county-council/surrey,Surrey,http://id.esd.org.uk/service/1465,Council expenditure,27/03/2017,KARIBU COMMUNITY HOME,AMAZON UK MARKETPLACE,1.72,EQUIPMENT,BOOK STORES
20/07/2017,http://opendatacommunities.org/id/county-council/surrey,Surrey,http://id.esd.org.uk/service/1465,Council expenditure,27/03/2017,KARIBU COMMUNITY HOME,AMAZON UK MARKETPLACE,1.99,EQUIPMENT,BOOK STORES
20/07/2017,http://opendatacommunities.org/id/county-council/surrey,Surrey,http://id.esd.org.uk/service/1465,Council expenditure,27/03/2017,HOPE SERVICE - WEST,SAINSBURYS SACAT(4409),3.8,NEWSPAPER AND PERIODICALS,"GROCERY STORES, SUPERMARKETS"
20/07/2017,http://opendatacommunities.org/id/county-council/surrey,Surrey,http://id.esd.org.uk/service/1465,Council expenditure,27/03/2017,PE/CDT MAINTENANCE OVERHEADS,UNIVERSAL SERVICES (SP,35.04,ITEMS PURCHASED FOR RE-SALE,"ATHLTIC FIELDS,COMMRCL SPRT,SPRT CLBS,SPRT PROMOTR"
20/07/2017,http://opendatacommunities.org/id/county-council/surrey,Surrey,http://id.esd.org.uk/service/1465,Council expenditure,27/03/2017,PE/CDT MAINTENANCE OVERHEADS,HARROD UK SPORT,51.23,ITEMS PURCHASED FOR RE-SALE,"SPORTS APPAREL, RIDING APPAREL STORES"
20/07/2017,http://opendatacommunities.org/id/county-council/surrey,Surrey,http://id.esd.org.uk/service/1465,Council expenditure,27/03/2017,TARGETED INTERVENTION,HALFORDS 0707,131.78,VEHICLE REPAIRS AND MAINTENANCE,BICYCLE SHOPS-SALES AND SERVICE
20/07/2017,http://opendatacommunities.org/id/county-council/surrey,Surrey,http://id.esd.org.uk/service/1465,Council expenditure,27/03/2017,ASHTEAD YC,MARKS&SPENCER PLC,8.49,PURCHASE OF FOOD (RAW MATERIALS),"GROCERY STORES, SUPERMARKETS"
20/07/2017,http://opendatacommunities.org/id/county-council/surrey,Surrey,http://id.esd.org.uk/service/1465,Council expenditure,27/03/2017,ACL CENTRAL EXPENDITURE,COOKSON PRECIOUS M,46.56,EQUIPMENT,"PRECIOUS STONES AND METALS, WATCHES AND JEWELRY"
20/07/2017,http://opendatacommunities.org/id/county-council/surrey,Surrey,http://id.esd.org.uk/service/1465,Council expenditure,27/03/2017,PE/CDT MAINTENANCE OVERHEADS,CROMARTIE HOBBYCRAFT L,55.8,ITEMS PURCHASED FOR RE-SALE,"ARTIST SUPPLY STORES, CRAFT SHOPS"
20/07/2017,http://opendatacommunities.org/id/county-council/surrey,Surrey,http://id.esd.org.uk/service/1465,Council expenditure,27/03/2017,PE/CDT MAINTENANCE OVERHEADS,NMA TOOLS,29.23,EQUIPMENT,MISCELLANEOUS AND SPECIALTY RETAIL STORES
20/07/2017,http://opendatacommunities.org/id/county-council/surrey,Surrey,http://id.esd.org.uk/service/1465,Council expenditure,27/03/2017,REIGATE AND BANSTEAD BOROUGH TEAM       ,LOVE2SHOP.CO.UK,404.25,EQUIPMENT,"ASSOCIATIONS-CIVIC, SOCIAL, AND FRATERNAL"
20/07/2017,http://opendatacommunities.org/id/county-council/surrey,Surrey,http://id.esd.org.uk/service/1465,Council expenditure,27/03/2017,MALLOW CRESCENT,TESCO STORE 2590,2.5,PURCHASE OF FOOD (RAW MATERIALS),"GROCERY STORES, SUPERMARKETS"
20/07/2017,http://opendatacommunities.org/id/county-council/surrey,Surrey,http://id.esd.org.uk/service/1465,Council expenditure,27/03/2017,MALLOW CRESCENT,TESCO STORE 2590,67.09,PURCHASE OF FOOD (RAW MATERIALS),"GROCERY STORES, SUPERMARKETS"
20/07/2017,http://opendatacommunities.org/id/county-council/surrey,Surrey,http://id.esd.org.uk/service/1465,Council expenditure,27/03/2017,LIBERTAS COMMUNITY HOME,WAITROSE 589,147,PURCHASE OF FOOD (RAW MATERIALS),"GROCERY STORES, SUPERMARKETS"
20/07/2017,http://opendatacommunities.org/id/county-council/surrey,Surrey,http://id.esd.org.uk/service/1465,Council expenditure,27/03/2017,YSS YOUTH CENTRE IMPROVEMENTS,WWW.NISBETS.COM,353.88,EQUIPMENT,DIRECT MARKETING-CATALOG MERCHANTS
20/07/2017,http://opendatacommunities.org/id/county-council/surrey,Surrey,http://id.esd.org.uk/service/1465,Council expenditure,27/03/2017,ASH YC,LEIGH DELAMERE N/E WH,4.1,REFRESHMENT COSTS,"EATING PLACES, RESTAURANTS"
20/07/2017,http://opendatacommunities.org/id/county-council/surrey,Surrey,http://id.esd.org.uk/service/1465,Council expenditure,27/03/2017,ASH YC,CO-OP GROUP FOOD,2.5,PURCHASE OF FOOD (RAW MATERIALS),"GROCERY STORES, SUPERMARKETS"
20/07/2017,http://opendatacommunities.org/id/county-council/surrey,Surrey,http://id.esd.org.uk/service/1465,Council expenditure,27/03/2017,FAIRCROFT COMMUNITY HOME,"BOOTS,WOKING",10,EQUIPMENT,"DRUG STORES, PHARMACIES"
20/07/2017,http://opendatacommunities.org/id/county-council/surrey,Surrey,http://id.esd.org.uk/service/1465,Council expenditure,27/03/2017,FAIRCROFT COMMUNITY HOME,WOKING BOROUGH COUNCIL,1.3,MISCELLANEOUS STAFF TRAVEL,AUTOMOBILE PARKING LOTS AND GARAGES
20/07/2017,http://opendatacommunities.org/id/county-council/surrey,Surrey,http://id.esd.org.uk/service/1465,Council expenditure,27/03/2017,FAIRCROFT COMMUNITY HOME,JD SPORTS PLC,144,"CLOTHING, UNIFORM AND LAUNDRY",SPORTING GOODS STORES
20/07/2017,http://opendatacommunities.org/id/county-council/surrey,Surrey,http://id.esd.org.uk/service/1465,Council expenditure,27/03/2017,FAIRCROFT COMMUNITY HOME,TESCO STORE 2160,188.08,PURCHASE OF FOOD (RAW MATERIALS),"GROCERY STORES, SUPERMARKETS"
20/07/2017,http://opendatacommunities.org/id/county-council/surrey,Surrey,http://id.esd.org.uk/service/1465,Council expenditure,27/03/2017,FAIRCROFT COMMUNITY HOME,MCDONALDS,7.94,PURCHASE OF FOOD (RAW MATERIALS),FAST FOOD RESTAURANTS
20/07/2017,http://opendatacommunities.org/id/county-council/surrey,Surrey,http://id.esd.org.uk/service/1465,Council expenditure,27/03/2017,FAIRCROFT COMMUNITY HOME,TESCO STORE 2160,-1.35,PURCHASE OF FOOD (RAW MATERIALS),"GROCERY STORES, SUPERMARKETS"
20/07/2017,http://opendatacommunities.org/id/county-council/surrey,Surrey,http://id.esd.org.uk/service/1465,Council expenditure,27/03/2017,TARGETED INTERVENTION,SAINSBURYS 0670,7.2,EDUC VISITS/HOLS/CAMPS/TOYS,"GROCERY STORES, SUPERMARKETS"
20/07/2017,http://opendatacommunities.org/id/county-council/surrey,Surrey,http://id.esd.org.uk/service/1465,Council expenditure,27/03/2017,EXTENDED HOPE,TESCO STORE 2590,91.84,PURCHASE OF FOOD (RAW MATERIALS),"GROCERY STORES, SUPERMARKETS"
20/07/2017,http://opendatacommunities.org/id/county-council/surrey,Surrey,http://id.esd.org.uk/service/1465,Council expenditure,27/03/2017,EXTENDED HOPE,TESCO STORE 2590,13.37,PURCHASE OF FOOD (RAW MATERIALS),"GROCERY STORES, SUPERMARKETS"
20/07/2017,http://opendatacommunities.org/id/county-council/surrey,Surrey,http://id.esd.org.uk/service/1465,Council expenditure,27/03/2017,COVEHAM,SAINSBURYS TO YOU 0687,95.5,CLEANING MATERIALS,"GROCERY STORES, SUPERMARKETS"
20/07/2017,http://opendatacommunities.org/id/county-council/surrey,Surrey,http://id.esd.org.uk/service/1465,Council expenditure,27/03/2017,SHEPPERTON YC,TESCO STORE 3220,40.34,REFRESHMENT COSTS,"GROCERY STORES, SUPERMARKETS"
20/07/2017,http://opendatacommunities.org/id/county-council/surrey,Surrey,http://id.esd.org.uk/service/1465,Council expenditure,27/03/2017,ACL CENTRAL EXPENDITURE,TESCO STORE 2160,41.73,REFRESHMENT COSTS,"GROCERY STORES, SUPERMARKETS"
20/07/2017,http://opendatacommunities.org/id/county-council/surrey,Surrey,http://id.esd.org.uk/service/1465,Council expenditure,27/03/2017,TARGETED INTERVENTION,CRAGGY ISLAND LTD,360,EDUC VISITS/HOLS/CAMPS/TOYS,"CLUBS-CNTRY,MBRSHIP(ATHLET,REC,SPRTS,PRIVATE GOLF"
20/07/2017,http://opendatacommunities.org/id/county-council/surrey,Surrey,http://id.esd.org.uk/service/1465,Council expenditure,27/03/2017,MALLOW CRESCENT,SAINSBURYS TO YOU 0652,19.7,PURCHASE OF FOOD (RAW MATERIALS),"GROCERY STORES, SUPERMARKETS"
20/07/2017,http://opendatacommunities.org/id/county-council/surrey,Surrey,http://id.esd.org.uk/service/1465,Council expenditure,27/03/2017,MALLOW CRESCENT,SAINSBURYS TO YOU 0652,104.54,PURCHASE OF FOOD (RAW MATERIALS),"GROCERY STORES, SUPERMARKETS"
20/07/2017,http://opendatacommunities.org/id/county-council/surrey,Surrey,http://id.esd.org.uk/service/1465,Council expenditure,27/03/2017,FAIRCROFT COMMUNITY HOME,ROBERT DYAS HOLDNG LTD,30.22,EQUIPMENT,HARDWARE STORES
20/07/2017,http://opendatacommunities.org/id/county-council/surrey,Surrey,http://id.esd.org.uk/service/1465,Council expenditure,27/03/2017,TARGETED INTERVENTION,FREEDOM LEISURE,5.3,EDUC VISITS/HOLS/CAMPS/TOYS,GOVERNMENT SERVICES-NOT ELSEWHERE CLASSIFIED
20/07/2017,http://opendatacommunities.org/id/county-council/surrey,Surrey,http://id.esd.org.uk/service/1465,Council expenditure,27/03/2017,TARGETED INTERVENTION,STARBUCKS,9.75,EDUC VISITS/HOLS/CAMPS/TOYS,FAST FOOD RESTAURANTS
20/07/2017,http://opendatacommunities.org/id/county-council/surrey,Surrey,http://id.esd.org.uk/service/1465,Council expenditure,27/03/2017,TARGETED INTERVENTION,COSTA COFFEE 43037325,4.7,EDUC VISITS/HOLS/CAMPS/TOYS,FAST FOOD RESTAURANTS
20/07/2017,http://opendatacommunities.org/id/county-council/surrey,Surrey,http://id.esd.org.uk/service/1465,Council expenditure,27/03/2017,TARGETED INTERVENTION,THE ATRIUM CAMBERLEY,1.5,EDUC VISITS/HOLS/CAMPS/TOYS,PROFESSIONAL SERVICES-NOT ELSEWHERE CLASSIFIED
20/07/2017,http://opendatacommunities.org/id/county-council/surrey,Surrey,http://id.esd.org.uk/service/1465,Council expenditure,27/03/2017,CORE ACTIVITY                           ,WWW.ULEARNATHLETICS.CO,60,FEES,SPORTING GOODS STORES
20/07/2017,http://opendatacommunities.org/id/county-council/surrey,Surrey,http://id.esd.org.uk/service/1465,Council expenditure,27/03/2017,ORBIS PROCUREMENT TRAINING,WWW.CIPS.ORG,121,EXAMINATION FEES,"ORGANIZATIONS, MEMBERSHIP-NOT ELSEWHERE CLASSIFIED"
20/07/2017,http://opendatacommunities.org/id/county-council/surrey,Surrey,http://id.esd.org.uk/service/1465,Council expenditure,27/03/2017,ORBIS PROCUREMENT TRAINING,WWW.CIPS.ORG,121,EXAMINATION FEES,"ORGANIZATIONS, MEMBERSHIP-NOT ELSEWHERE CLASSIFIED"
20/07/2017,http://opendatacommunities.org/id/county-council/surrey,Surrey,http://id.esd.org.uk/service/1465,Council expenditure,27/03/2017,LIBERTAS COMMUNITY HOME,BURGER KING GUILDFORD,5.97,REFRESHMENT COSTS,FAST FOOD RESTAURANTS
20/07/2017,http://opendatacommunities.org/id/county-council/surrey,Surrey,http://id.esd.org.uk/service/1465,Council expenditure,27/03/2017,GODALMING YC,SAINSBURYS SACAT 0670,1.9,PURCHASE OF FOOD (RAW MATERIALS),"GROCERY STORES, SUPERMARKETS"
20/07/2017,http://opendatacommunities.org/id/county-council/surrey,Surrey,http://id.esd.org.uk/service/1465,Council expenditure,27/03/2017,GODALMING YC,SAINSBURYS SACAT 0670,14.15,PURCHASE OF FOOD (RAW MATERIALS),"GROCERY STORES, SUPERMARKETS"
20/07/2017,http://opendatacommunities.org/id/county-council/surrey,Surrey,http://id.esd.org.uk/service/1465,Council expenditure,27/03/2017,HARRY'S YC,WAITROSE 838,8.57,PURCHASE OF FOOD (RAW MATERIALS),"GROCERY STORES, SUPERMARKETS"
20/07/2017,http://opendatacommunities.org/id/county-council/surrey,Surrey,http://id.esd.org.uk/service/1465,Council expenditure,27/03/2017,HARRY'S YC,WAITROSE 838,0.05,PURCHASE OF FOOD (RAW MATERIALS),"GROCERY STORES, SUPERMARKETS"
20/07/2017,http://opendatacommunities.org/id/county-council/surrey,Surrey,http://id.esd.org.uk/service/1465,Council expenditure,27/03/2017,TRANSPORT,FIRST FENCE LTD,"1,026.08",DAY TO DAY MAINTENANCE,"EQUIPMENT RENTAL&LEASING SVS, FURNTURE/TOOL RENTAL"
20/07/2017,http://opendatacommunities.org/id/county-council/surrey,Surrey,http://id.esd.org.uk/service/1465,Council expenditure,27/03/2017,IMT SUPPORT FOR FIRE & RESCUE,AMAZON UK MARKETPLACE,6.99,EQUIPMENT,BOOK STORES
20/07/2017,http://opendatacommunities.org/id/county-council/surrey,Surrey,http://id.esd.org.uk/service/1465,Council expenditure,27/03/2017,HILLSIDE,GROCERIES (6.52%),3.3,PURCHASE OF FOOD (RAW MATERIALS),"GROCERY STORES, SUPERMARKETS"
20/07/2017,http://opendatacommunities.org/id/county-council/surrey,Surrey,http://id.esd.org.uk/service/1465,Council expenditure,27/03/2017,HILLSIDE,GROCERIES (93.48%),47.31,PURCHASE OF FOOD (RAW MATERIALS),"GROCERY STORES, SUPERMARKETS"
20/07/2017,http://opendatacommunities.org/id/county-council/surrey,Surrey,http://id.esd.org.uk/service/1465,Council expenditure,27/03/2017,HILLSIDE,WILKO RETAIL LIMIT,6.75,EQUIPMENT,HOUSEHOLD APPLIANCE STORES
20/07/2017,http://opendatacommunities.org/id/county-council/surrey,Surrey,http://id.esd.org.uk/service/1465,Council expenditure,27/03/2017,ASYLUM SEEKERS 16-17,WWW.THE-CHALLENGE.ORG,50,CHILDREN ACT SEC 17 PAYMENTS,"ORGANIZATIONS, CHARITABLE AND SOCIAL SERVICES"
20/07/2017,http://opendatacommunities.org/id/county-council/surrey,Surrey,http://id.esd.org.uk/service/1465,Council expenditure,27/03/2017,STANWELL YOUTH CLUB,SAINSBURYS SACAT (4117,9.2,REFRESHMENT COSTS,"GROCERY STORES, SUPERMARKETS"
20/07/2017,http://opendatacommunities.org/id/county-council/surrey,Surrey,http://id.esd.org.uk/service/1465,Council expenditure,27/03/2017,CHEYNE WALK COMMUNITY HOME,HARRIS & HOOLE,3.85,EQUIPMENT,"EATING PLACES, RESTAURANTS"
20/07/2017,http://opendatacommunities.org/id/county-council/surrey,Surrey,http://id.esd.org.uk/service/1465,Council expenditure,27/03/2017,CHEYNE WALK COMMUNITY HOME,TESCO STORES 2560,28.7,EQUIPMENT,"GROCERY STORES, SUPERMARKETS"
20/07/2017,http://opendatacommunities.org/id/county-council/surrey,Surrey,http://id.esd.org.uk/service/1465,Council expenditure,27/03/2017,CAMHS SOCIAL WORKERS,H G WELLS CONF & EVENT,"4,581.00",VENUE COSTS (INCLUDING HIRE OF ROOMS),GOVERNMENT SERVICES-NOT ELSEWHERE CLASSIFIED
20/07/2017,http://opendatacommunities.org/id/county-council/surrey,Surrey,http://id.esd.org.uk/service/1465,Council expenditure,27/03/2017,MALLOW CRESCENT,SAINSBURYS TO YOU 0652,5.1,PURCHASE OF FOOD (RAW MATERIALS),"GROCERY STORES, SUPERMARKETS"
20/07/2017,http://opendatacommunities.org/id/county-council/surrey,Surrey,http://id.esd.org.uk/service/1465,Council expenditure,27/03/2017,MALLOW CRESCENT,SAINSBURYS TO YOU 0652,124.74,PURCHASE OF FOOD (RAW MATERIALS),"GROCERY STORES, SUPERMARKETS"
20/07/2017,http://opendatacommunities.org/id/county-council/surrey,Surrey,http://id.esd.org.uk/service/1465,Council expenditure,27/03/2017,COVEHAM,AMAZON UK MARKETPLACE,25.9,EQUIPMENT,BOOK STORES
20/07/2017,http://opendatacommunities.org/id/county-council/surrey,Surrey,http://id.esd.org.uk/service/1465,Council expenditure,27/03/2017,COVEHAM,SAINSBURYS TO YOU 0687,184.23,REFRESHMENT COSTS,"GROCERY STORES, SUPERMARKETS"
20/07/2017,http://opendatacommunities.org/id/county-council/surrey,Surrey,http://id.esd.org.uk/service/1465,Council expenditure,27/03/2017,HOPE SERVICE - WEST,SAINSBURYS TO YOU 0686,79.4,PURCHASE OF FOOD (RAW MATERIALS),"GROCERY STORES, SUPERMARKETS"
20/07/2017,http://opendatacommunities.org/id/county-council/surrey,Surrey,http://id.esd.org.uk/service/1465,Council expenditure,27/03/2017,YSS YOUTH CENTRE IMPROVEMENTS,HOMEBASE LTD 247,18.7,EQUIPMENT,"BUILDING MATERIALS, LUMBER STORES"
20/07/2017,http://opendatacommunities.org/id/county-council/surrey,Surrey,http://id.esd.org.uk/service/1465,Council expenditure,27/03/2017,PROPERTY OPERATIONS TEAM,B & Q 1029,19.5,PURCHASE OF BUILDING MATERIALS,"BUILDING MATERIALS, LUMBER STORES"
20/07/2017,http://opendatacommunities.org/id/county-council/surrey,Surrey,http://id.esd.org.uk/service/1465,Council expenditure,27/03/2017,TS SERVICE MANAGEMENT,WWW.FORCE4.CO.UK,"3,439.70",OPERATIONAL FIRE EQUIPMENT,BOAT DEALERS
20/07/2017,http://opendatacommunities.org/id/county-council/surrey,Surrey,http://id.esd.org.uk/service/1465,Council expenditure,28/03/2017,WOODLANDS COMMUNITY HOME,SPORTSDIRECT.COM,140.98,"CLOTHING, UNIFORM AND LAUNDRY",SPORTING GOODS STORES
20/07/2017,http://opendatacommunities.org/id/county-council/surrey,Surrey,http://id.esd.org.uk/service/1465,Council expenditure,28/03/2017,TRANSPORT,PFEIFER ROPE AND T,63.02,OPERATIONAL FIRE EQUIPMENT,INDUSTRIAL SUPPLIES NOT ELSEWHERE CLASSIFIED
20/07/2017,http://opendatacommunities.org/id/county-council/surrey,Surrey,http://id.esd.org.uk/service/1465,Council expenditure,28/03/2017,PE/CDT MAINTENANCE OVERHEADS,WWW.ARCO.CO.UK,73.44,EQUIPMENT,INDUSTRIAL SUPPLIES NOT ELSEWHERE CLASSIFIED
20/07/2017,http://opendatacommunities.org/id/county-council/surrey,Surrey,http://id.esd.org.uk/service/1465,Council expenditure,28/03/2017,COUNTRYSIDE PARTNERSHIPS TEAM,ALLWAG PROMOTIONS,265.12,PUBLICITY,ADVERTISING SERVICES
20/07/2017,http://opendatacommunities.org/id/county-council/surrey,Surrey,http://id.esd.org.uk/service/1465,Council expenditure,28/03/2017,APPLEWOOD,ASDA HOME SHOPPING,-2.01,PURCHASE OF FOOD (RAW MATERIALS),"GROCERY STORES, SUPERMARKETS"
20/07/2017,http://opendatacommunities.org/id/county-council/surrey,Surrey,http://id.esd.org.uk/service/1465,Council expenditure,28/03/2017,CSF - YOUR NEXT MOVE                    ,GOOGLE  ADWS2060179426,500,PUBLICITY,DIRECT MARKETING-CONTINUITY/SUBSCRIPTION MERCHANTS
20/07/2017,http://opendatacommunities.org/id/county-council/surrey,Surrey,http://id.esd.org.uk/service/1465,Council expenditure,28/03/2017,FIRE & RESCUE COMMUNITY SAFETY,WH SMITH,109.5,EQUIPMENT,NEWS DEALERS AND NEWSSTANDS
20/07/2017,http://opendatacommunities.org/id/county-council/surrey,Surrey,http://id.esd.org.uk/service/1465,Council expenditure,28/03/2017,EARLY HELP HUBS MAIN,AMAZON UK RETAIL AMAZO,19.98,BOOKS,MISCELLANEOUS AND SPECIALTY RETAIL STORES
20/07/2017,http://opendatacommunities.org/id/county-council/surrey,Surrey,http://id.esd.org.uk/service/1465,Council expenditure,28/03/2017,SOLD MANAGEMENT AND OVERHEADS,AMAZON UK MARKETPLACE,17.99,CURRICULUM CONSUMABLES,BOOK STORES
20/07/2017,http://opendatacommunities.org/id/county-council/surrey,Surrey,http://id.esd.org.uk/service/1465,Council expenditure,28/03/2017,BURBANK COMMUNITY HOME,BOOTS 5228,4.99,MEDICAL EXPENSES,"DRUG STORES, PHARMACIES"
20/07/2017,http://opendatacommunities.org/id/county-council/surrey,Surrey,http://id.esd.org.uk/service/1465,Council expenditure,28/03/2017,BURBANK COMMUNITY HOME,SAINSBURYS SACAT 0686,30.24,PURCHASE OF FOOD (RAW MATERIALS),"GROCERY STORES, SUPERMARKETS"
20/07/2017,http://opendatacommunities.org/id/county-council/surrey,Surrey,http://id.esd.org.uk/service/1465,Council expenditure,28/03/2017,DOWNLANDS COUNTRYSIDE PROJECT,SCREWFIX DIRECT LT,11.65,EQUIPMENT,"BUILDING MATERIALS, LUMBER STORES"
20/07/2017,http://opendatacommunities.org/id/county-council/surrey,Surrey,http://id.esd.org.uk/service/1465,Council expenditure,28/03/2017,OTHER NON CWD HOME COSTS,TRAVIS PERKINS,332.7,DAY TO DAY MAINTENANCE,"BUILDING MATERIALS, LUMBER STORES"
20/07/2017,http://opendatacommunities.org/id/county-council/surrey,Surrey,http://id.esd.org.uk/service/1465,Council expenditure,28/03/2017,OTHER NON CWD HOME COSTS,TRAVIS PERKINS,39,DAY TO DAY MAINTENANCE,"BUILDING MATERIALS, LUMBER STORES"
20/07/2017,http://opendatacommunities.org/id/county-council/surrey,Surrey,http://id.esd.org.uk/service/1465,Council expenditure,28/03/2017,OTHER NON CWD HOME COSTS,TRAVIS PERKINS,11.71,DAY TO DAY MAINTENANCE,"BUILDING MATERIALS, LUMBER STORES"
20/07/2017,http://opendatacommunities.org/id/county-council/surrey,Surrey,http://id.esd.org.uk/service/1465,Council expenditure,28/03/2017,BURBANK COMMUNITY HOME,TRAVIS PERKINS,-45,DAY TO DAY MAINTENANCE,"BUILDING MATERIALS, LUMBER STORES"
20/07/2017,http://opendatacommunities.org/id/county-council/surrey,Surrey,http://id.esd.org.uk/service/1465,Council expenditure,28/03/2017,PE/CDT MAINTENANCE OVERHEADS,MARGNOR FASTENERS,18.36,EQUIPMENT,MISCELLANEOUS AND SPECIALTY RETAIL STORES
20/07/2017,http://opendatacommunities.org/id/county-council/surrey,Surrey,http://id.esd.org.uk/service/1465,Council expenditure,28/03/2017,COMMUNICATIONS - SURREY MATTERS,SPARKOL,21.6,STATIONERY,COMPUTER SOFTWARE STORES
20/07/2017,http://opendatacommunities.org/id/county-council/surrey,Surrey,http://id.esd.org.uk/service/1465,Council expenditure,28/03/2017,THE BRIDGE YC,TESCO STORES 2812,10.95,PURCHASE OF FOOD (RAW MATERIALS),"GROCERY STORES, SUPERMARKETS"
20/07/2017,http://opendatacommunities.org/id/county-council/surrey,Surrey,http://id.esd.org.uk/service/1465,Council expenditure,28/03/2017,YSS YOUTH CENTRE IMPROVEMENTS,AMAZON UK MARKETPLACE,18.75,EQUIPMENT,BOOK STORES
20/07/2017,http://opendatacommunities.org/id/county-council/surrey,Surrey,http://id.esd.org.uk/service/1465,Council expenditure,28/03/2017,REDHILL & BANSTEAD CMHRS CARE,HMCTS-SURREY125,75,FEES,FINES
20/07/2017,http://opendatacommunities.org/id/county-council/surrey,Surrey,http://id.esd.org.uk/service/1465,Council expenditure,28/03/2017,EPSOM & EWELL CMHRS CARE,HMCTS-SURREY125,75,FEES,FINES
20/07/2017,http://opendatacommunities.org/id/county-council/surrey,Surrey,http://id.esd.org.uk/service/1465,Council expenditure,28/03/2017,ACL CENTRAL EXPENDITURE,AMAZON UK MARKETPLACE,45.99,EQUIPMENT,BOOK STORES
20/07/2017,http://opendatacommunities.org/id/county-council/surrey,Surrey,http://id.esd.org.uk/service/1465,Council expenditure,28/03/2017,DOWNLANDS COUNTRYSIDE PROJECT,MOLE COUNTRY STORES,79.65,EQUIPMENT,AGRICULTURAL COOPERATIVES
20/07/2017,http://opendatacommunities.org/id/county-council/surrey,Surrey,http://id.esd.org.uk/service/1465,Council expenditure,28/03/2017,PE/CDT MAINTENANCE OVERHEADS,SCREWFIX DIRECT,23.45,EQUIPMENT,"BUILDING MATERIALS, LUMBER STORES"
20/07/2017,http://opendatacommunities.org/id/county-council/surrey,Surrey,http://id.esd.org.uk/service/1465,Council expenditure,28/03/2017,FAIRCROFT COMMUNITY HOME,TESCO STORE 2160,64.5,CLEANING AND DOMESTIC SUPPLIES,"GROCERY STORES, SUPERMARKETS"
20/07/2017,http://opendatacommunities.org/id/county-council/surrey,Surrey,http://id.esd.org.uk/service/1465,Council expenditure,28/03/2017,YSS YOUTH CENTRE IMPROVEMENTS,DFS.CO.UK,817,FURNITURE,"EQUIP, FURNITURE, HOME FURNSHNGS STRS (EXCPT APPL)"
20/07/2017,http://opendatacommunities.org/id/county-council/surrey,Surrey,http://id.esd.org.uk/service/1465,Council expenditure,28/03/2017,YSS YOUTH CENTRE IMPROVEMENTS,DFS.CO.UK,800,FURNITURE,"EQUIP, FURNITURE, HOME FURNSHNGS STRS (EXCPT APPL)"
20/07/2017,http://opendatacommunities.org/id/county-council/surrey,Surrey,http://id.esd.org.uk/service/1465,Council expenditure,28/03/2017,YSS YOUTH CENTRE IMPROVEMENTS,WWW.ARGOS.CO.UK,390.94,EQUIPMENT,DISCOUNT STORES
20/07/2017,http://opendatacommunities.org/id/county-council/surrey,Surrey,http://id.esd.org.uk/service/1465,Council expenditure,28/03/2017,YSS YOUTH CENTRE IMPROVEMENTS,WWW.DFS.CO.UK,180,FURNITURE,"EQUIP, FURNITURE, HOME FURNSHNGS STRS (EXCPT APPL)"
20/07/2017,http://opendatacommunities.org/id/county-council/surrey,Surrey,http://id.esd.org.uk/service/1465,Council expenditure,28/03/2017,CORPORATE GROUP - LEGAL SERVICES,CHARTERED INST OF LEGA,364,SUBSCRIPTIONS,"ORGANIZATIONS, MEMBERSHIP-NOT ELSEWHERE CLASSIFIED"
20/07/2017,http://opendatacommunities.org/id/county-council/surrey,Surrey,http://id.esd.org.uk/service/1465,Council expenditure,28/03/2017,SHEERWATER YC,ASDA STORES 4823,8.29,PURCHASE OF FOOD (RAW MATERIALS),"GROCERY STORES, SUPERMARKETS"
20/07/2017,http://opendatacommunities.org/id/county-council/surrey,Surrey,http://id.esd.org.uk/service/1465,Council expenditure,28/03/2017,CAMHS SOCIAL WORKERS,H G WELLS CONF & EVENT,"1,710.24",VENUE COSTS (INCLUDING HIRE OF ROOMS),GOVERNMENT SERVICES-NOT ELSEWHERE CLASSIFIED
20/07/2017,http://opendatacommunities.org/id/county-council/surrey,Surrey,http://id.esd.org.uk/service/1465,Council expenditure,28/03/2017,ORDER TO CASH TEAM,WWW.MONEYCLAIM.GOV,35,FEES,GOVERNMENT SERVICES-NOT ELSEWHERE CLASSIFIED
20/07/2017,http://opendatacommunities.org/id/county-council/surrey,Surrey,http://id.esd.org.uk/service/1465,Council expenditure,28/03/2017,WOODLANDS COMMUNITY HOME,HOMEBASE LTD 084,46.11,UPKEEP OF GROUNDS,"BUILDING MATERIALS, LUMBER STORES"
20/07/2017,http://opendatacommunities.org/id/county-council/surrey,Surrey,http://id.esd.org.uk/service/1465,Council expenditure,28/03/2017,TRANSPORT,BEARINGS AND BELTS,11.5,VEHICLE REPAIRS AND MAINTENANCE,"ARCHITECTURAL, ENGINEERING, AND SURVEYING SERVICES"
20/07/2017,http://opendatacommunities.org/id/county-council/surrey,Surrey,http://id.esd.org.uk/service/1465,Council expenditure,28/03/2017,WOODLANDS COMMUNITY HOME,SAINSBURYS PFS0487,5.2,PURCHASE OF FOOD (RAW MATERIALS),SERVICE STATIONS WITH OR WITHOUT ANCILLARY SERVICE
20/07/2017,http://opendatacommunities.org/id/county-council/surrey,Surrey,http://id.esd.org.uk/service/1465,Council expenditure,28/03/2017,PHOENIX YC,TESCO STORE 3235,11.92,PURCHASE OF FOOD (RAW MATERIALS),"GROCERY STORES, SUPERMARKETS"
20/07/2017,http://opendatacommunities.org/id/county-council/surrey,Surrey,http://id.esd.org.uk/service/1465,Council expenditure,28/03/2017,FRIMLEY YC,POUNDLAND LTD 1357,2,REFRESHMENT COSTS,DISCOUNT STORES
20/07/2017,http://opendatacommunities.org/id/county-council/surrey,Surrey,http://id.esd.org.uk/service/1465,Council expenditure,28/03/2017,TARGETED INTERVENTION,HOEBRIDGE GOLF,27.75,EDUC VISITS/HOLS/CAMPS/TOYS,GOLF COURSES-PUBLIC
20/07/2017,http://opendatacommunities.org/id/county-council/surrey,Surrey,http://id.esd.org.uk/service/1465,Council expenditure,28/03/2017,TARGETED INTERVENTION,WOKING BOROUGH COUNCIL,3.9,MISCELLANEOUS STAFF TRAVEL,AUTOMOBILE PARKING LOTS AND GARAGES
20/07/2017,http://opendatacommunities.org/id/county-council/surrey,Surrey,http://id.esd.org.uk/service/1465,Council expenditure,28/03/2017,TARGETED INTERVENTION,STARBUCKS,6.35,EDUC VISITS/HOLS/CAMPS/TOYS,"EATING PLACES, RESTAURANTS"
20/07/2017,http://opendatacommunities.org/id/county-council/surrey,Surrey,http://id.esd.org.uk/service/1465,Council expenditure,28/03/2017,LIBERTAS COMMUNITY HOME,CURRYS S/S,12.99,COMPUTER CONSUMABLES,ELECTRONIC SALES
20/07/2017,http://opendatacommunities.org/id/county-council/surrey,Surrey,http://id.esd.org.uk/service/1465,Council expenditure,28/03/2017,LIBERTAS COMMUNITY HOME,AMAZON EU,10.19,EDUC VISITS/HOLS/CAMPS/TOYS,DIRECT MARKETING-OTHER DIRECT MARKETERS/NOT ELSEW.
20/07/2017,http://opendatacommunities.org/id/county-council/surrey,Surrey,http://id.esd.org.uk/service/1465,Council expenditure,28/03/2017,OLD DEAN YC,WAITROSE 514,16.25,REFRESHMENT COSTS,"GROCERY STORES, SUPERMARKETS"
20/07/2017,http://opendatacommunities.org/id/county-council/surrey,Surrey,http://id.esd.org.uk/service/1465,Council expenditure,28/03/2017,SUNBURY YC,LONDIS,5.68,REFRESHMENT COSTS,"PACKAGE STORES, BEER, WINE, LIQUOR"
20/07/2017,http://opendatacommunities.org/id/county-council/surrey,Surrey,http://id.esd.org.uk/service/1465,Council expenditure,28/03/2017,TARGETED INTERVENTION,SAINSBURYS 0686,8.6,EDUC VISITS/HOLS/CAMPS/TOYS,"GROCERY STORES, SUPERMARKETS"
20/07/2017,http://opendatacommunities.org/id/county-council/surrey,Surrey,http://id.esd.org.uk/service/1465,Council expenditure,28/03/2017,CYWS COMMISSIONING,IKEA LIMITED,555.75,FURNITURE,"EQUIP, FURNITURE, HOME FURNSHNGS STRS (EXCPT APPL)"
20/07/2017,http://opendatacommunities.org/id/county-council/surrey,Surrey,http://id.esd.org.uk/service/1465,Council expenditure,28/03/2017,CYWS COMMISSIONING,IKEA LIMITED,383,FURNITURE,"EQUIP, FURNITURE, HOME FURNSHNGS STRS (EXCPT APPL)"
20/07/2017,http://opendatacommunities.org/id/county-council/surrey,Surrey,http://id.esd.org.uk/service/1465,Council expenditure,28/03/2017,HARRY'S YC,WWW.MCMEXPOGROUP.COM,72,EDUC VISITS/HOLS/CAMPS/TOYS,MISCELLANEOUS AND SPECIALTY RETAIL STORES
20/07/2017,http://opendatacommunities.org/id/county-council/surrey,Surrey,http://id.esd.org.uk/service/1465,Council expenditure,28/03/2017,QUADRANT COURT WOKING,SCREWFIX,27.44,EQUIPMENT,"BUILDING MATERIALS, LUMBER STORES"
20/07/2017,http://opendatacommunities.org/id/county-council/surrey,Surrey,http://id.esd.org.uk/service/1465,Council expenditure,28/03/2017,ACL CENTRAL EXPENDITURE,TESCO STORE 3220,53.96,REFRESHMENT COSTS,"GROCERY STORES, SUPERMARKETS"
20/07/2017,http://opendatacommunities.org/id/county-council/surrey,Surrey,http://id.esd.org.uk/service/1465,Council expenditure,28/03/2017,WOODLANDS COMMUNITY HOME,WHAT NOT ANTIQUES,180,FIXTURES AND FITTINGS,ANTIQUE REPRODUCTION STORES
20/07/2017,http://opendatacommunities.org/id/county-council/surrey,Surrey,http://id.esd.org.uk/service/1465,Council expenditure,28/03/2017,WOODLANDS COMMUNITY HOME,HOMEBASE LTD 084,60.11,EQUIPMENT,"BUILDING MATERIALS, LUMBER STORES"
20/07/2017,http://opendatacommunities.org/id/county-council/surrey,Surrey,http://id.esd.org.uk/service/1465,Council expenditure,28/03/2017,APPLEWOOD,WWW.HUNTLEIGH-HEAL,273.6,EQUIPMENT,"HEALTH PRACTITIONERS, MEDICAL SRVCS-NOT ELSEWHERE"
20/07/2017,http://opendatacommunities.org/id/county-council/surrey,Surrey,http://id.esd.org.uk/service/1465,Council expenditure,28/03/2017,APPLEWOOD,ASDA HOME SHOPPING,73.12,PURCHASE OF FOOD (RAW MATERIALS),"GROCERY STORES, SUPERMARKETS"
20/07/2017,http://opendatacommunities.org/id/county-council/surrey,Surrey,http://id.esd.org.uk/service/1465,Council expenditure,28/03/2017,IMT CRITICAL ENVIRONMENTS,AMAZON UK RETAIL AMAZO,37.71,REFRESHMENT COSTS,MISCELLANEOUS AND SPECIALTY RETAIL STORES
20/07/2017,http://opendatacommunities.org/id/county-council/surrey,Surrey,http://id.esd.org.uk/service/1465,Council expenditure,29/03/2017,TARGETED INTERVENTION,TOP GOLF LTD,9.2,EDUC VISITS/HOLS/CAMPS/TOYS,"CLUBS-CNTRY,MBRSHIP(ATHLET,REC,SPRTS,PRIVATE GOLF"
20/07/2017,http://opendatacommunities.org/id/county-council/surrey,Surrey,http://id.esd.org.uk/service/1465,Council expenditure,29/03/2017,TS SERVICE MANAGEMENT,PREMIER INN 44534755,242.98,SUBSISTENCE AND CONFERENCE EXPENSES,"EATING PLACES, RESTAURANTS"
20/07/2017,http://opendatacommunities.org/id/county-council/surrey,Surrey,http://id.esd.org.uk/service/1465,Council expenditure,29/03/2017,OTHER NON CWD HOME COSTS,AMAZON UK RETAIL AMAZO,29.97,EQUIPMENT,MISCELLANEOUS AND SPECIALTY RETAIL STORES
20/07/2017,http://opendatacommunities.org/id/county-council/surrey,Surrey,http://id.esd.org.uk/service/1465,Council expenditure,29/03/2017,RBDM - GENERAL,SAFE.CO.UK,43.8,EQUIPMENT,"OFFICE, SCHOOL SUPPLY, AND STATIONERY STORES"
20/07/2017,http://opendatacommunities.org/id/county-council/surrey,Surrey,http://id.esd.org.uk/service/1465,Council expenditure,29/03/2017,HERITAGE ENTERPRISE (SCAU),HSS HIRE,-67.62,EQUIPMENT,"EQUIPMENT RENTAL&LEASING SVS, FURNTURE/TOOL RENTAL"
20/07/2017,http://opendatacommunities.org/id/county-council/surrey,Surrey,http://id.esd.org.uk/service/1465,Council expenditure,29/03/2017,LIBERTAS COMMUNITY HOME,AMAZON UK RETAIL AMAZO,12.99,EDUC VISITS/HOLS/CAMPS/TOYS,MISCELLANEOUS AND SPECIALTY RETAIL STORES
20/07/2017,http://opendatacommunities.org/id/county-council/surrey,Surrey,http://id.esd.org.uk/service/1465,Council expenditure,29/03/2017,CRANLEIGH YC,HOMEBASE LTD,5.99,EQUIPMENT,"BUILDING MATERIALS, LUMBER STORES"
20/07/2017,http://opendatacommunities.org/id/county-council/surrey,Surrey,http://id.esd.org.uk/service/1465,Council expenditure,29/03/2017,"NW REF, ASS & INT SERVICE - HUB 2",WWW.INCENTIVEPLUS.CO.U,26.34,EQUIPMENT,MISCELLANEOUS PUBLISHING AND PRINTING
20/07/2017,http://opendatacommunities.org/id/county-council/surrey,Surrey,http://id.esd.org.uk/service/1465,Council expenditure,29/03/2017,NW CARE - CP & COURT LAC,TRAVELODGE GB0000,47,CHILDREN ACT SEC 17 PAYMENTS,TRAVELODGE
20/07/2017,http://opendatacommunities.org/id/county-council/surrey,Surrey,http://id.esd.org.uk/service/1465,Council expenditure,29/03/2017,"NW REF, ASS & INT SERVICE - HUB 2",PAPERCHASE,10.99,EQUIPMENT,"GIFT, CARD, NOVELTY AND SOUVENIR SHOPS"
20/07/2017,http://opendatacommunities.org/id/county-council/surrey,Surrey,http://id.esd.org.uk/service/1465,Council expenditure,29/03/2017,CHEYNE WALK COMMUNITY HOME,TIMPSON,86,"CLOTHING, UNIFORM AND LAUNDRY",SHOE STORES
20/07/2017,http://opendatacommunities.org/id/county-council/surrey,Surrey,http://id.esd.org.uk/service/1465,Council expenditure,29/03/2017,MALLOW CRESCENT,ARGOS RETAIL GROUP,44.9,EQUIPMENT,DISCOUNT STORES
20/07/2017,http://opendatacommunities.org/id/county-council/surrey,Surrey,http://id.esd.org.uk/service/1465,Council expenditure,29/03/2017,ELMBRIDGE CMHRS CARE,HMCTS-SURREY125,75,FEES,FINES
20/07/2017,http://opendatacommunities.org/id/county-council/surrey,Surrey,http://id.esd.org.uk/service/1465,Council expenditure,29/03/2017,MALLOW CRESCENT,SAINSBURYS TO YOU 0652,13.15,PURCHASE OF FOOD (RAW MATERIALS),"GROCERY STORES, SUPERMARKETS"
20/07/2017,http://opendatacommunities.org/id/county-council/surrey,Surrey,http://id.esd.org.uk/service/1465,Council expenditure,29/03/2017,MALLOW CRESCENT,SAINSBURYS TO YOU 0652,155.5,PURCHASE OF FOOD (RAW MATERIALS),"GROCERY STORES, SUPERMARKETS"
20/07/2017,http://opendatacommunities.org/id/county-council/surrey,Surrey,http://id.esd.org.uk/service/1465,Council expenditure,29/03/2017,BURBANK COMMUNITY HOME,HOBBYCRAFT,4.5,STATIONERY,"ARTIST SUPPLY STORES, CRAFT SHOPS"
20/07/2017,http://opendatacommunities.org/id/county-council/surrey,Surrey,http://id.esd.org.uk/service/1465,Council expenditure,29/03/2017,HERITAGE ENTERPRISE (SCAU),LANDMARKINF,28.8,FEES,MISCELLANEOUS PUBLISHING AND PRINTING
20/07/2017,http://opendatacommunities.org/id/county-council/surrey,Surrey,http://id.esd.org.uk/service/1465,Council expenditure,29/03/2017,PE/CDT MAINTENANCE OVERHEADS,TIMPSON LTD,21,EQUIPMENT,"HAT CLEANING SHOPS, SHOE REPAIR SHOPS, SHOE SHINE"
20/07/2017,http://opendatacommunities.org/id/county-council/surrey,Surrey,http://id.esd.org.uk/service/1465,Council expenditure,29/03/2017,PE/CDT MAINTENANCE OVERHEADS,WICKES,17.94,EQUIPMENT,"BUILDING MATERIALS, LUMBER STORES"
20/07/2017,http://opendatacommunities.org/id/county-council/surrey,Surrey,http://id.esd.org.uk/service/1465,Council expenditure,29/03/2017,DOWNLANDS COUNTRYSIDE PROJECT,ARB IRELAND,127.96,EQUIPMENT,HARDWARE STORES
20/07/2017,http://opendatacommunities.org/id/county-council/surrey,Surrey,http://id.esd.org.uk/service/1465,Council expenditure,29/03/2017,STAFF OFFICE,DARTINGTON CRYSTAL TOR,619.95,DESCRIPTION &AWARD LONG SERVICE,CRYSTAL AND GLASSWARE STORES
20/07/2017,http://opendatacommunities.org/id/county-council/surrey,Surrey,http://id.esd.org.uk/service/1465,Council expenditure,29/03/2017,ORBIS TRAINING PROPERTY,WWW.THEKNOWLEDGEACADEM,868.9,TRAINING EXPENSES EXTERNAL GENERAL,"SCHOOLS, TRADE AND VOCATIONAL"
20/07/2017,http://opendatacommunities.org/id/county-council/surrey,Surrey,http://id.esd.org.uk/service/1465,Council expenditure,29/03/2017,BURBANK COMMUNITY HOME,SAINSBURYS TO YOU 0686,310.01,PURCHASE OF FOOD (RAW MATERIALS),"GROCERY STORES, SUPERMARKETS"
20/07/2017,http://opendatacommunities.org/id/county-council/surrey,Surrey,http://id.esd.org.uk/service/1465,Council expenditure,29/03/2017,COUNTY HALL,WWWTESTMETERCOUK,106.8,EQUIPMENT,"COMMERCIAL EQUIPMENT, NOT ELSEWHERE CLASSIFIED"
20/07/2017,http://opendatacommunities.org/id/county-council/surrey,Surrey,http://id.esd.org.uk/service/1465,Council expenditure,29/03/2017,OTHER NON CWD HOME COSTS,ARTHOUSE DIRECT,131.94,EQUIPMENT,"ARTIST SUPPLY STORES, CRAFT SHOPS"
20/07/2017,http://opendatacommunities.org/id/county-council/surrey,Surrey,http://id.esd.org.uk/service/1465,Council expenditure,29/03/2017,BURBANK COMMUNITY HOME,ARGOS RETAIL GROUP,49.99,EQUIPMENT,DISCOUNT STORES
20/07/2017,http://opendatacommunities.org/id/county-council/surrey,Surrey,http://id.esd.org.uk/service/1465,Council expenditure,29/03/2017,OTHER NON CWD HOME COSTS,AMZ LAYLA'S BARGAINS,-11.58,EQUIPMENT,MISCELLANEOUS AND SPECIALTY RETAIL STORES
20/07/2017,http://opendatacommunities.org/id/county-council/surrey,Surrey,http://id.esd.org.uk/service/1465,Council expenditure,29/03/2017,IMT CRITICAL ENVIRONMENTS,AMAZON UK MARKETPLACE,71.94,EQUIPMENT,BOOK STORES
20/07/2017,http://opendatacommunities.org/id/county-council/surrey,Surrey,http://id.esd.org.uk/service/1465,Council expenditure,29/03/2017,IMT CRITICAL ENVIRONMENTS,MILK & MORE (43.48%),21.53,REFRESHMENT COSTS,"MISC FOOD STORE-CONVENIENCE,MRKT,SPLTY,VENDNG MACS"
20/07/2017,http://opendatacommunities.org/id/county-council/surrey,Surrey,http://id.esd.org.uk/service/1465,Council expenditure,29/03/2017,IMT CRITICAL ENVIRONMENTS,MILK & MORE (56.52%),27.99,REFRESHMENT COSTS,"MISC FOOD STORE-CONVENIENCE,MRKT,SPLTY,VENDNG MACS"
20/07/2017,http://opendatacommunities.org/id/county-council/surrey,Surrey,http://id.esd.org.uk/service/1465,Council expenditure,29/03/2017,RESOURCES STATIONERY                    ,PAYPAL  ACCESS2BOOK,26.1,LIBRARY RESOURCES,MISCELLANEOUS PUBLISHING AND PRINTING
20/07/2017,http://opendatacommunities.org/id/county-council/surrey,Surrey,http://id.esd.org.uk/service/1465,Council expenditure,29/03/2017,C&C DIRECTORATE SUPPORT,AMAZON UK RETAIL AMAZO,28.74,EQUIPMENT,MISCELLANEOUS AND SPECIALTY RETAIL STORES
20/07/2017,http://opendatacommunities.org/id/county-council/surrey,Surrey,http://id.esd.org.uk/service/1465,Council expenditure,29/03/2017,HOPE SERVICE - WEST,SAINSBURYS SACAT(4409),7.4,PURCHASE OF FOOD (RAW MATERIALS),"GROCERY STORES, SUPERMARKETS"
20/07/2017,http://opendatacommunities.org/id/county-council/surrey,Surrey,http://id.esd.org.uk/service/1465,Council expenditure,29/03/2017,HOPE SERVICE - WEST,SAINSBURYS SACAT(4409),1.9,NEWSPAPER AND PERIODICALS,"GROCERY STORES, SUPERMARKETS"
20/07/2017,http://opendatacommunities.org/id/county-council/surrey,Surrey,http://id.esd.org.uk/service/1465,Council expenditure,29/03/2017,FAIRCROFT COMMUNITY HOME,ARGOS RETAIL GROUP,-11.49,EQUIPMENT,DISCOUNT STORES
20/07/2017,http://opendatacommunities.org/id/county-council/surrey,Surrey,http://id.esd.org.uk/service/1465,Council expenditure,29/03/2017,ACL CENTRAL EXPENDITURE,ITUNES.COM/BILL,4.99,EQUIPMENT,RECORD SHOPS
20/07/2017,http://opendatacommunities.org/id/county-council/surrey,Surrey,http://id.esd.org.uk/service/1465,Council expenditure,29/03/2017,ACL CENTRAL EXPENDITURE,AMAZON UK MARKETPLACE,12.58,EQUIPMENT,BOOK STORES
20/07/2017,http://opendatacommunities.org/id/county-council/surrey,Surrey,http://id.esd.org.uk/service/1465,Council expenditure,29/03/2017,CAMHS SOCIAL WORKERS,WORDERY,8.23,TRAINING EXPENSES EXTERNAL GENERAL,BOOK STORES
20/07/2017,http://opendatacommunities.org/id/county-council/surrey,Surrey,http://id.esd.org.uk/service/1465,Council expenditure,29/03/2017,CAMHS SOCIAL WORKERS,TINKNSTINK,20.95,EDUC VISITS/HOLS/CAMPS/TOYS,"ARTIST SUPPLY STORES, CRAFT SHOPS"
20/07/2017,http://opendatacommunities.org/id/county-council/surrey,Surrey,http://id.esd.org.uk/service/1465,Council expenditure,29/03/2017,WOODLANDS COMMUNITY HOME,SAINSBURYS 0686,162.53,PURCHASE OF FOOD (RAW MATERIALS),"GROCERY STORES, SUPERMARKETS"
20/07/2017,http://opendatacommunities.org/id/county-council/surrey,Surrey,http://id.esd.org.uk/service/1465,Council expenditure,29/03/2017,WOODLANDS COMMUNITY HOME,SAINSBURYS 0686,18.65,PURCHASE OF FOOD (RAW MATERIALS),"GROCERY STORES, SUPERMARKETS"
20/07/2017,http://opendatacommunities.org/id/county-council/surrey,Surrey,http://id.esd.org.uk/service/1465,Council expenditure,29/03/2017,WOODLANDS COMMUNITY HOME,SAINSBURYS 0686,39,CLEANING MATERIALS,"GROCERY STORES, SUPERMARKETS"
20/07/2017,http://opendatacommunities.org/id/county-council/surrey,Surrey,http://id.esd.org.uk/service/1465,Council expenditure,29/03/2017,PROPERTY OPERATIONS TEAM,WICKES,21.99,PURCHASE OF BUILDING MATERIALS,HOME SUPPLY WAREHOUSE STORES
20/07/2017,http://opendatacommunities.org/id/county-council/surrey,Surrey,http://id.esd.org.uk/service/1465,Council expenditure,29/03/2017,PROPERTY OPERATIONS TEAM,B & Q 1029,31.2,PURCHASE OF BUILDING MATERIALS,"BUILDING MATERIALS, LUMBER STORES"
20/07/2017,http://opendatacommunities.org/id/county-council/surrey,Surrey,http://id.esd.org.uk/service/1465,Council expenditure,29/03/2017,APPLEWOOD,AMAZON UK MARKETPLACE,3.5,EQUIPMENT,BOOK STORES
20/07/2017,http://opendatacommunities.org/id/county-council/surrey,Surrey,http://id.esd.org.uk/service/1465,Council expenditure,29/03/2017,APPLEWOOD,AMAZON UK MARKETPLACE,1.91,EQUIPMENT,BOOK STORES
20/07/2017,http://opendatacommunities.org/id/county-council/surrey,Surrey,http://id.esd.org.uk/service/1465,Council expenditure,29/03/2017,CHEYNE WALK COMMUNITY HOME,HHGL LTD,-8.95,POSTAGE AND COURIER CHARGES,"BUILDING MATERIALS, LUMBER STORES"
20/07/2017,http://opendatacommunities.org/id/county-council/surrey,Surrey,http://id.esd.org.uk/service/1465,Council expenditure,29/03/2017,SHEERWATER YC,ASDA STORES 4823,15.39,PURCHASE OF FOOD (RAW MATERIALS),"GROCERY STORES, SUPERMARKETS"
20/07/2017,http://opendatacommunities.org/id/county-council/surrey,Surrey,http://id.esd.org.uk/service/1465,Council expenditure,29/03/2017,ADDLESTONE YC,TESCO STORES 2017,56.74,PURCHASE OF FOOD (RAW MATERIALS),"GROCERY STORES, SUPERMARKETS"
20/07/2017,http://opendatacommunities.org/id/county-council/surrey,Surrey,http://id.esd.org.uk/service/1465,Council expenditure,29/03/2017,SUNBURY YC,HOBBYCRAFT,70,EQUIPMENT,"ARTIST SUPPLY STORES, CRAFT SHOPS"
20/07/2017,http://opendatacommunities.org/id/county-council/surrey,Surrey,http://id.esd.org.uk/service/1465,Council expenditure,29/03/2017,APPLEWOOD,AMAZON UK MARKETPLACE,1.69,EQUIPMENT,BOOK STORES
20/07/2017,http://opendatacommunities.org/id/county-council/surrey,Surrey,http://id.esd.org.uk/service/1465,Council expenditure,29/03/2017,APPLEWOOD,ASDA GEORGE COM LEEDS,47.95,EQUIPMENT,"GROCERY STORES, SUPERMARKETS"
20/07/2017,http://opendatacommunities.org/id/county-council/surrey,Surrey,http://id.esd.org.uk/service/1465,Council expenditure,29/03/2017,TARGETED INTERVENTION,SAINSBURYS SACAT 0004,22.11,EDUC VISITS/HOLS/CAMPS/TOYS,"GROCERY STORES, SUPERMARKETS"
20/07/2017,http://opendatacommunities.org/id/county-council/surrey,Surrey,http://id.esd.org.uk/service/1465,Council expenditure,29/03/2017,BURBANK COMMUNITY HOME,SAINSBURYS SACAT 0686,25.05,PURCHASE OF FOOD (RAW MATERIALS),"GROCERY STORES, SUPERMARKETS"
20/07/2017,http://opendatacommunities.org/id/county-council/surrey,Surrey,http://id.esd.org.uk/service/1465,Council expenditure,29/03/2017,PASSENGER TRANSPORT INITIATIVES,SAINSBURYS SACAT 0004,120,SUBSCRIPTIONS,BUSINESS SERVICES-NOT ELSEWHERE CLASSIFIED
20/07/2017,http://opendatacommunities.org/id/county-council/surrey,Surrey,http://id.esd.org.uk/service/1465,Council expenditure,29/03/2017,PASSENGER TRANSPORT INITIATIVES,SAINSBURYS SACAT 0686,240,SUBSCRIPTIONS,BUSINESS SERVICES-NOT ELSEWHERE CLASSIFIED
20/07/2017,http://opendatacommunities.org/id/county-council/surrey,Surrey,http://id.esd.org.uk/service/1465,Council expenditure,29/03/2017,SOLD CATERING,AMAZON UK MARKETPLACE,25.96,PURCHASE OF FOOD (RAW MATERIALS),BOOK STORES
20/07/2017,http://opendatacommunities.org/id/county-council/surrey,Surrey,http://id.esd.org.uk/service/1465,Council expenditure,29/03/2017,SUNBURY YC,THE WORKS,28,EQUIPMENT,DISCOUNT STORES
20/07/2017,http://opendatacommunities.org/id/county-council/surrey,Surrey,http://id.esd.org.uk/service/1465,Council expenditure,29/03/2017,CHEYNE WALK COMMUNITY HOME,AMAZON UK MARKETPLACE,8.03,EQUIPMENT,BOOK STORES
20/07/2017,http://opendatacommunities.org/id/county-council/surrey,Surrey,http://id.esd.org.uk/service/1465,Council expenditure,29/03/2017,CHEYNE WALK COMMUNITY HOME,EMPARK UK LTD,2.5,NON-STAFF RELATED TRANSPORT COSTS,AUTOMOBILE PARKING LOTS AND GARAGES
20/07/2017,http://opendatacommunities.org/id/county-council/surrey,Surrey,http://id.esd.org.uk/service/1465,Council expenditure,29/03/2017,CHEYNE WALK COMMUNITY HOME,TESCO-STORES 6647,241.92,PURCHASE OF FOOD (RAW MATERIALS),"GROCERY STORES, SUPERMARKETS"
20/07/2017,http://opendatacommunities.org/id/county-council/surrey,Surrey,http://id.esd.org.uk/service/1465,Council expenditure,29/03/2017,CHEYNE WALK COMMUNITY HOME,AMAZON UK RETAIL AMAZO,20,EQUIPMENT,MISCELLANEOUS AND SPECIALTY RETAIL STORES
20/07/2017,http://opendatacommunities.org/id/county-council/surrey,Surrey,http://id.esd.org.uk/service/1465,Council expenditure,29/03/2017,ARUNDEL,TESCO STORES 5999,123.23,REFRESHMENT COSTS,"GROCERY STORES, SUPERMARKETS"
20/07/2017,http://opendatacommunities.org/id/county-council/surrey,Surrey,http://id.esd.org.uk/service/1465,Council expenditure,29/03/2017,ARUNDEL,TESCO STORES 5999,18.64,REFRESHMENT COSTS,"GROCERY STORES, SUPERMARKETS"
20/07/2017,http://opendatacommunities.org/id/county-council/surrey,Surrey,http://id.esd.org.uk/service/1465,Council expenditure,29/03/2017,IMT PRODUCTION APPLICATIONS TEAM,AMAZON EU,12.5,REFRESHMENT COSTS,DIRECT MARKETING-OTHER DIRECT MARKETERS/NOT ELSEW.
20/07/2017,http://opendatacommunities.org/id/county-council/surrey,Surrey,http://id.esd.org.uk/service/1465,Council expenditure,29/03/2017,FRIMLEY YC,CO-OP GROUP 350033,7.8,EQUIPMENT,"GROCERY STORES, SUPERMARKETS"
20/07/2017,http://opendatacommunities.org/id/county-council/surrey,Surrey,http://id.esd.org.uk/service/1465,Council expenditure,29/03/2017,RUTH HOUSE,G J HONOUR,187.73,PURCHASE OF FOOD (RAW MATERIALS),"MISC FOOD STORE-CONVENIENCE,MRKT,SPLTY,VENDNG MACS"
20/07/2017,http://opendatacommunities.org/id/county-council/surrey,Surrey,http://id.esd.org.uk/service/1465,Council expenditure,29/03/2017,KARIBU COMMUNITY HOME,LONGLEAT ENTERPRISES L,151.41,EDUC VISITS/HOLS/CAMPS/TOYS,TOURIST ATTRACTIONS AND EXHIBITS
20/07/2017,http://opendatacommunities.org/id/county-council/surrey,Surrey,http://id.esd.org.uk/service/1465,Council expenditure,29/03/2017,CHEYNE WALK COMMUNITY HOME,HHGL LTD,-329.91,EQUIPMENT,"BUILDING MATERIALS, LUMBER STORES"
20/07/2017,http://opendatacommunities.org/id/county-council/surrey,Surrey,http://id.esd.org.uk/service/1465,Council expenditure,29/03/2017,OTHER NON CWD HOME COSTS,AMAZON UK MARKETPLACE,19.98,EQUIPMENT,BOOK STORES
20/07/2017,http://opendatacommunities.org/id/county-council/surrey,Surrey,http://id.esd.org.uk/service/1465,Council expenditure,29/03/2017,BURBANK COMMUNITY HOME,AMAZON UK MARKETPLACE,1.68,EQUIPMENT,BOOK STORES
20/07/2017,http://opendatacommunities.org/id/county-council/surrey,Surrey,http://id.esd.org.uk/service/1465,Council expenditure,29/03/2017,OTHER NON CWD HOME COSTS,WWW.JUSTWIPE.CO.UK,55.71,EQUIPMENT,"DRAPERY, UPOLSTERY, AND WINDOW COVERINGS STORES"
20/07/2017,http://opendatacommunities.org/id/county-council/surrey,Surrey,http://id.esd.org.uk/service/1465,Council expenditure,29/03/2017,BURBANK COMMUNITY HOME,WWW.SURREYCC.GOV.UK,100,REFRESHMENT COSTS,GOVERNMENT SERVICES-NOT ELSEWHERE CLASSIFIED
20/07/2017,http://opendatacommunities.org/id/county-council/surrey,Surrey,http://id.esd.org.uk/service/1465,Council expenditure,29/03/2017,BURBANK COMMUNITY HOME,WWW.SURREYCC.GOV.UK,25,REFRESHMENT COSTS,GOVERNMENT SERVICES-NOT ELSEWHERE CLASSIFIED
20/07/2017,http://opendatacommunities.org/id/county-council/surrey,Surrey,http://id.esd.org.uk/service/1465,Council expenditure,29/03/2017,OTHER NON CWD HOME COSTS,AMAZON UK MARKETPLACE,13.98,EQUIPMENT,BOOK STORES
20/07/2017,http://opendatacommunities.org/id/county-council/surrey,Surrey,http://id.esd.org.uk/service/1465,Council expenditure,29/03/2017,FRIMLEY YC,WM MORRISONS,21.18,PURCHASE OF FOOD (RAW MATERIALS),"GROCERY STORES, SUPERMARKETS"
20/07/2017,http://opendatacommunities.org/id/county-council/surrey,Surrey,http://id.esd.org.uk/service/1465,Council expenditure,29/03/2017,DOWNLANDS COUNTRYSIDE PROJECT,TESCO STORES-2270,8.19,REFRESHMENT COSTS,"GROCERY STORES, SUPERMARKETS"
20/07/2017,http://opendatacommunities.org/id/county-council/surrey,Surrey,http://id.esd.org.uk/service/1465,Council expenditure,29/03/2017,PESS MEMBERSHIP,STK SHUTTERSTOCK.COM,119,PUBLICITY,"COMMERCIAL ART, GRAPHICS, PHOTOGRAPHY"
20/07/2017,http://opendatacommunities.org/id/county-council/surrey,Surrey,http://id.esd.org.uk/service/1465,Council expenditure,29/03/2017,IMT PRODUCTION APPLICATIONS TEAM,RACKSPACE EMAIL & APPS,164.59,COMPUTER SERVICES,COMPUTER NETWORK/INFORMATION SERVICES
20/07/2017,http://opendatacommunities.org/id/county-council/surrey,Surrey,http://id.esd.org.uk/service/1465,Council expenditure,30/03/2017,SW CARE - CP & COURT LAC,GRO HM PASSPORT OFFICE,-18.5,LEGAL EXPENSES,GOVERNMENT SERVICES-NOT ELSEWHERE CLASSIFIED
20/07/2017,http://opendatacommunities.org/id/county-council/surrey,Surrey,http://id.esd.org.uk/service/1465,Council expenditure,30/03/2017,TRANSPORT,NEWEY & EYRE,64.81,EQUIPMENT,ELECTRICAL PARTS AND EQUIPMENT
20/07/2017,http://opendatacommunities.org/id/county-council/surrey,Surrey,http://id.esd.org.uk/service/1465,Council expenditure,30/03/2017,"NW REF, ASS & INT SERVICE - HUB 2",AMAZON UK RETAIL AMAZO,30.53,EQUIPMENT,MISCELLANEOUS AND SPECIALTY RETAIL STORES
20/07/2017,http://opendatacommunities.org/id/county-council/surrey,Surrey,http://id.esd.org.uk/service/1465,Council expenditure,30/03/2017,BURBANK COMMUNITY HOME,TFL ROAD CHARGE,11.5,MISCELLANEOUS STAFF TRAVEL,"BRIDGE AND ROAD FEES, TOLLS"
20/07/2017,http://opendatacommunities.org/id/county-council/surrey,Surrey,http://id.esd.org.uk/service/1465,Council expenditure,30/03/2017,LIBERTAS COMMUNITY HOME,TESCO STORE 3149,23.1,EQUIPMENT,"GROCERY STORES, SUPERMARKETS"
20/07/2017,http://opendatacommunities.org/id/county-council/surrey,Surrey,http://id.esd.org.uk/service/1465,Council expenditure,30/03/2017,IMT MANAGEMENT TEAM,AMAZON UK MARKETPLACE,7.49,REFRESHMENT COSTS,BOOK STORES
20/07/2017,http://opendatacommunities.org/id/county-council/surrey,Surrey,http://id.esd.org.uk/service/1465,Council expenditure,30/03/2017,HOLLAND CLOSE RESIDENTIAL HOME,TESCO DIRECT,-369,EQUIPMENT,MISCELLANEOUS AND SPECIALTY RETAIL STORES
20/07/2017,http://opendatacommunities.org/id/county-council/surrey,Surrey,http://id.esd.org.uk/service/1465,Council expenditure,30/03/2017,FAIRCROFT COMMUNITY HOME,WWW.GRAVITYFORCE.CO.UK,10,EDUC VISITS/HOLS/CAMPS/TOYS,"DANCE HALLS, SCHOOLS, AND STUDIOS"
20/07/2017,http://opendatacommunities.org/id/county-council/surrey,Surrey,http://id.esd.org.uk/service/1465,Council expenditure,30/03/2017,ORBIS HEAD OF PROCUREMENT,EMAP LTD-SUBSCRIPTIONS,211.15,SUBSCRIPTIONS,MISCELLANEOUS PUBLISHING AND PRINTING
20/07/2017,http://opendatacommunities.org/id/county-council/surrey,Surrey,http://id.esd.org.uk/service/1465,Council expenditure,30/03/2017,ORBIS HEAD OF PROCUREMENT,WWW.INSIDEHOUSING.CO.U,174,SUBSCRIPTIONS,MISCELLANEOUS PUBLISHING AND PRINTING
20/07/2017,http://opendatacommunities.org/id/county-council/surrey,Surrey,http://id.esd.org.uk/service/1465,Council expenditure,30/03/2017,ORBIS PROCUREMENT TRAINING,WWW.CIPS.ORG,238.68,EXAMINATION FEES,"ORGANIZATIONS, MEMBERSHIP-NOT ELSEWHERE CLASSIFIED"
20/07/2017,http://opendatacommunities.org/id/county-council/surrey,Surrey,http://id.esd.org.uk/service/1465,Council expenditure,30/03/2017,ORBIS HEAD OF PROCUREMENT,MAGSUBCRIPTIONS COM,170,SUBSCRIPTIONS,DIRECT MARKETING-CONTINUITY/SUBSCRIPTION MERCHANTS
20/07/2017,http://opendatacommunities.org/id/county-council/surrey,Surrey,http://id.esd.org.uk/service/1465,Council expenditure,30/03/2017,THE STREET YC,WAITROSE 178,0.89,REFRESHMENT COSTS,"GROCERY STORES, SUPERMARKETS"
20/07/2017,http://opendatacommunities.org/id/county-council/surrey,Surrey,http://id.esd.org.uk/service/1465,Council expenditure,30/03/2017,HARRY'S YC,WAITROSE 838,10.43,PURCHASE OF FOOD (RAW MATERIALS),"GROCERY STORES, SUPERMARKETS"
20/07/2017,http://opendatacommunities.org/id/county-council/surrey,Surrey,http://id.esd.org.uk/service/1465,Council expenditure,30/03/2017,HARRY'S YC,WAITROSE 838,1.55,PURCHASE OF FOOD (RAW MATERIALS),"GROCERY STORES, SUPERMARKETS"
20/07/2017,http://opendatacommunities.org/id/county-council/surrey,Surrey,http://id.esd.org.uk/service/1465,Council expenditure,30/03/2017,FOSTERING SERVICE CENTRAL COSTS,AMAZON EU,25.64,BOOKS,DIRECT MARKETING-OTHER DIRECT MARKETERS/NOT ELSEW.
20/07/2017,http://opendatacommunities.org/id/county-council/surrey,Surrey,http://id.esd.org.uk/service/1465,Council expenditure,30/03/2017,FOSTERING SERVICE CENTRAL COSTS,AMAZON UK RETAIL AMAZO,29.3,BOOKS,MISCELLANEOUS AND SPECIALTY RETAIL STORES
20/07/2017,http://opendatacommunities.org/id/county-council/surrey,Surrey,http://id.esd.org.uk/service/1465,Council expenditure,30/03/2017,"NW REF, ASS & INT SERVICE - HUB 2","AMAZON SVCS EUROPE,SAR",22.3,EQUIPMENT,BOOK STORES
20/07/2017,http://opendatacommunities.org/id/county-council/surrey,Surrey,http://id.esd.org.uk/service/1465,Council expenditure,30/03/2017,NE CARE - NON-LAC CP & COURT,GRO HM PASSPORT OFFICE,18.5,CHILDREN ACT SEC 17 PAYMENTS,GOVERNMENT SERVICES-NOT ELSEWHERE CLASSIFIED
20/07/2017,http://opendatacommunities.org/id/county-council/surrey,Surrey,http://id.esd.org.uk/service/1465,Council expenditure,30/03/2017,NW SECTION 17 CARE,TRAVELODGE GB0000,490,CHILDREN ACT SEC 17 PAYMENTS,TRAVELODGE
20/07/2017,http://opendatacommunities.org/id/county-council/surrey,Surrey,http://id.esd.org.uk/service/1465,Council expenditure,30/03/2017,CSF - YOUR NEXT MOVE                    ,GOOGLE  ADWS2060179426,500,PUBLICITY,DIRECT MARKETING-CONTINUITY/SUBSCRIPTION MERCHANTS
20/07/2017,http://opendatacommunities.org/id/county-council/surrey,Surrey,http://id.esd.org.uk/service/1465,Council expenditure,30/03/2017,COMMUNICATIONS TEAM,AMAZON EU,349,STATIONERY,DIRECT MARKETING-OTHER DIRECT MARKETERS/NOT ELSEW.
20/07/2017,http://opendatacommunities.org/id/county-council/surrey,Surrey,http://id.esd.org.uk/service/1465,Council expenditure,30/03/2017,TRAINING COMMUNICATIONS,HTTP://SHOP.DANDAD.ORG,521.64,TRAINING EXPENSES EXTERNAL GENERAL,"ORGANIZATIONS, CHARITABLE AND SOCIAL SERVICES"
20/07/2017,http://opendatacommunities.org/id/county-council/surrey,Surrey,http://id.esd.org.uk/service/1465,Council expenditure,30/03/2017,THE BRIDGE YC,TESCO STORES 2812,10.95,PURCHASE OF FOOD (RAW MATERIALS),"GROCERY STORES, SUPERMARKETS"
20/07/2017,http://opendatacommunities.org/id/county-council/surrey,Surrey,http://id.esd.org.uk/service/1465,Council expenditure,30/03/2017,NW CARE - LAC,HM PASSPORT OFFICE,49,FEES,GOVERNMENT SERVICES-NOT ELSEWHERE CLASSIFIED
20/07/2017,http://opendatacommunities.org/id/county-council/surrey,Surrey,http://id.esd.org.uk/service/1465,Council expenditure,30/03/2017,HOPE SERVICE - WEST,SAINSBURYS TO YOU 0686,47.3,PURCHASE OF FOOD (RAW MATERIALS),"GROCERY STORES, SUPERMARKETS"
20/07/2017,http://opendatacommunities.org/id/county-council/surrey,Surrey,http://id.esd.org.uk/service/1465,Council expenditure,30/03/2017,ACL CENTRAL EXPENDITURE,AMAZON UK RETAIL AMAZO,10.99,EQUIPMENT,MISCELLANEOUS AND SPECIALTY RETAIL STORES
20/07/2017,http://opendatacommunities.org/id/county-council/surrey,Surrey,http://id.esd.org.uk/service/1465,Council expenditure,30/03/2017,ACL CENTRAL EXPENDITURE,AMAZON UK RETAIL AMAZO,9.98,EQUIPMENT,MISCELLANEOUS AND SPECIALTY RETAIL STORES
20/07/2017,http://opendatacommunities.org/id/county-council/surrey,Surrey,http://id.esd.org.uk/service/1465,Council expenditure,30/03/2017,WORKPLACE COMMERCIAL TEAM,IMDB,149.44,PUBLICITY,DIRECT MARKETING-CONTINUITY/SUBSCRIPTION MERCHANTS
20/07/2017,http://opendatacommunities.org/id/county-council/surrey,Surrey,http://id.esd.org.uk/service/1465,Council expenditure,30/03/2017,TRANSPORT,TOOLSTATION LTD,36.5,EQUIPMENT,HARDWARE STORES
20/07/2017,http://opendatacommunities.org/id/county-council/surrey,Surrey,http://id.esd.org.uk/service/1465,Council expenditure,30/03/2017,CAMHS SOCIAL WORKERS,BALLOONS FOR U,71.5,EDUC VISITS/HOLS/CAMPS/TOYS,"GIFT, CARD, NOVELTY AND SOUVENIR SHOPS"
20/07/2017,http://opendatacommunities.org/id/county-council/surrey,Surrey,http://id.esd.org.uk/service/1465,Council expenditure,30/03/2017,CAMHS SOCIAL WORKERS,EVERYTHINGBRANDED.,"1,383.08",PUBLICITY,"OFFICE, SCHOOL SUPPLY, AND STATIONERY STORES"
20/07/2017,http://opendatacommunities.org/id/county-council/surrey,Surrey,http://id.esd.org.uk/service/1465,Council expenditure,30/03/2017,CAMHS SOCIAL WORKERS,WWW.STAPLES.CO.UK,58.39,STATIONERY,"OFFICE, SCHOOL SUPPLY, AND STATIONERY STORES"
20/07/2017,http://opendatacommunities.org/id/county-council/surrey,Surrey,http://id.esd.org.uk/service/1465,Council expenditure,30/03/2017,CAMHS SOCIAL WORKERS,MIXAM UK LTD,"1,079.00",SPECIALIST EDUCATIONAL STATIONERY,MISCELLANEOUS PUBLISHING AND PRINTING
20/07/2017,http://opendatacommunities.org/id/county-council/surrey,Surrey,http://id.esd.org.uk/service/1465,Council expenditure,30/03/2017,TRANSPORT,D & R ENGINEERING,201.41,VEHICLE REPAIRS AND MAINTENANCE,BOAT DEALERS
20/07/2017,http://opendatacommunities.org/id/county-council/surrey,Surrey,http://id.esd.org.uk/service/1465,Council expenditure,30/03/2017,SOLD CATERING,ASDA SUPERSTORE,46.15,PURCHASE OF FOOD (RAW MATERIALS),"GROCERY STORES, SUPERMARKETS"
20/07/2017,http://opendatacommunities.org/id/county-council/surrey,Surrey,http://id.esd.org.uk/service/1465,Council expenditure,30/03/2017,COUNTRYSIDE PARTNERSHIPS TEAM,KALEIDOSCOPE DISPLAYS,495.6,PUBLICITY,MISCELLANEOUS HOUSE FURNISHING SPECIALTY SHOPS
20/07/2017,http://opendatacommunities.org/id/county-council/surrey,Surrey,http://id.esd.org.uk/service/1465,Council expenditure,30/03/2017,DOWNLANDS COUNTRYSIDE PROJECT,ESSEX CC CARD PAYMENT,600,EQUIPMENT,GOVERNMENT SERVICES-NOT ELSEWHERE CLASSIFIED
20/07/2017,http://opendatacommunities.org/id/county-council/surrey,Surrey,http://id.esd.org.uk/service/1465,Council expenditure,30/03/2017,OTHER NON CWD HOME COSTS,AMAZON UK MARKETPLACE,118,FURNITURE,BOOK STORES
20/07/2017,http://opendatacommunities.org/id/county-council/surrey,Surrey,http://id.esd.org.uk/service/1465,Council expenditure,30/03/2017,IMT CRITICAL ENVIRONMENTS,AMAZON UK MARKETPLACE,6.99,EQUIPMENT,BOOK STORES
20/07/2017,http://opendatacommunities.org/id/county-council/surrey,Surrey,http://id.esd.org.uk/service/1465,Council expenditure,30/03/2017,NW CARE - NON-LAC CP & COURT,LB CROYDON,12.2,FEES,GOVERNMENT SERVICES-NOT ELSEWHERE CLASSIFIED
20/07/2017,http://opendatacommunities.org/id/county-council/surrey,Surrey,http://id.esd.org.uk/service/1465,Council expenditure,30/03/2017,FAIRCROFT COMMUNITY HOME,SIX CARD CONTACTLESS S,4.5,EDUC VISITS/HOLS/CAMPS/TOYS,AUTOMOBILE PARKING LOTS AND GARAGES
20/07/2017,http://opendatacommunities.org/id/county-council/surrey,Surrey,http://id.esd.org.uk/service/1465,Council expenditure,30/03/2017,FAIRCROFT COMMUNITY HOME,PIZZA EXPRESS,36.87,REFRESHMENT COSTS,"EATING PLACES, RESTAURANTS"
20/07/2017,http://opendatacommunities.org/id/county-council/surrey,Surrey,http://id.esd.org.uk/service/1465,Council expenditure,30/03/2017,SOLD DAY TO DAY OPERATIONS,DISCLOSURE & BARRING,13,FEES,GOVERNMENT SERVICES-NOT ELSEWHERE CLASSIFIED
20/07/2017,http://opendatacommunities.org/id/county-council/surrey,Surrey,http://id.esd.org.uk/service/1465,Council expenditure,30/03/2017,DOWNLANDS COUNTRYSIDE PROJECT,SCREWFIX DIRECT LT,2.59,EQUIPMENT,"BUILDING MATERIALS, LUMBER STORES"
20/07/2017,http://opendatacommunities.org/id/county-council/surrey,Surrey,http://id.esd.org.uk/service/1465,Council expenditure,30/03/2017,DOWNLANDS COUNTRYSIDE PROJECT,SCREWFIX DIRECT LT,18.56,EQUIPMENT,"BUILDING MATERIALS, LUMBER STORES"
20/07/2017,http://opendatacommunities.org/id/county-council/surrey,Surrey,http://id.esd.org.uk/service/1465,Council expenditure,30/03/2017,BURBANK COMMUNITY HOME,AMAZON UK MARKETPLACE,8.89,BOOKS,BOOK STORES
20/07/2017,http://opendatacommunities.org/id/county-council/surrey,Surrey,http://id.esd.org.uk/service/1465,Council expenditure,30/03/2017,SW CARE - CP & COURT LAC,GRO HM PASSPORT OFFICE,18.5,LEGAL EXPENSES,GOVERNMENT SERVICES-NOT ELSEWHERE CLASSIFIED
20/07/2017,http://opendatacommunities.org/id/county-council/surrey,Surrey,http://id.esd.org.uk/service/1465,Council expenditure,30/03/2017,CHEYNE WALK COMMUNITY HOME,WWW.FOOTASYLUM.COM,-62.99,"CLOTHING, UNIFORM AND LAUNDRY",SPORTING GOODS STORES
20/07/2017,http://opendatacommunities.org/id/county-council/surrey,Surrey,http://id.esd.org.uk/service/1465,Council expenditure,30/03/2017,BANSTEAD YC,TESCO STORE 3235,19.19,PURCHASE OF FOOD (RAW MATERIALS),"GROCERY STORES, SUPERMARKETS"
20/07/2017,http://opendatacommunities.org/id/county-council/surrey,Surrey,http://id.esd.org.uk/service/1465,Council expenditure,30/03/2017,PHOENIX YC,TESCO STORE 3235,15.39,PURCHASE OF FOOD (RAW MATERIALS),"GROCERY STORES, SUPERMARKETS"
20/07/2017,http://opendatacommunities.org/id/county-council/surrey,Surrey,http://id.esd.org.uk/service/1465,Council expenditure,30/03/2017,GUILDFORD YC,WAITROSE 589,2.48,PURCHASE OF FOOD (RAW MATERIALS),"GROCERY STORES, SUPERMARKETS"
20/07/2017,http://opendatacommunities.org/id/county-council/surrey,Surrey,http://id.esd.org.uk/service/1465,Council expenditure,30/03/2017,B & C PRIMARY AUTHORITY PARTNERSHIP     ,MACKENZIE HOTELS LTD,91,SUBSISTENCE AND CONFERENCE EXPENSES,"LODGING-HOTELS,MOTELS,RESORTS-NOT CLASSIFIED"
20/07/2017,http://opendatacommunities.org/id/county-council/surrey,Surrey,http://id.esd.org.uk/service/1465,Council expenditure,30/03/2017,S256 PLD ATTRITION,HMCTS-SURREY125,75,FEES,FINES
20/07/2017,http://opendatacommunities.org/id/county-council/surrey,Surrey,http://id.esd.org.uk/service/1465,Council expenditure,30/03/2017,SPELTHORNE CMHRS CARE,TRAVELODGE GB0000,395,FEES,TRAVELODGE
20/07/2017,http://opendatacommunities.org/id/county-council/surrey,Surrey,http://id.esd.org.uk/service/1465,Council expenditure,31/03/2017,SW EDUCATION PSYCHOLOGISTS,FRIENDS RESILIENCE,144.14,SPECIALIST EDUCATIONAL STATIONERY,"BOOKS,PERIODICALS AND NEWSPAPERS"
20/07/2017,http://opendatacommunities.org/id/county-council/surrey,Surrey,http://id.esd.org.uk/service/1465,Council expenditure,31/03/2017,LEAVING CARE TEAM,PREMIER INN44531610,69.49,EXPENSES,PREMIER INN
20/07/2017,http://opendatacommunities.org/id/county-council/surrey,Surrey,http://id.esd.org.uk/service/1465,Council expenditure,31/03/2017,CEO - PUBLIC HEALTH CAMPAIGNS           ,FACEBK HQVC8CA2S2,237.66,PUBLICITY,ADVERTISING SERVICES
20/07/2017,http://opendatacommunities.org/id/county-council/surrey,Surrey,http://id.esd.org.uk/service/1465,Council expenditure,31/03/2017,COMMUNICATIONS TEAM,FACEBK LQVC8CA2S2,134.85,PUBLICITY,ADVERTISING SERVICES
20/07/2017,http://opendatacommunities.org/id/county-council/surrey,Surrey,http://id.esd.org.uk/service/1465,Council expenditure,31/03/2017,CHEYNE WALK COMMUNITY HOME,SAINSBURYS SACAT 0391,1.8,PURCHASE OF FOOD (RAW MATERIALS),"GROCERY STORES, SUPERMARKETS"
20/07/2017,http://opendatacommunities.org/id/county-council/surrey,Surrey,http://id.esd.org.uk/service/1465,Council expenditure,31/03/2017,COVEHAM,NRS HEALTHCARE,134.99,EQUIPMENT,DENTAL/LAB/MED/OPHTHALMIC HOSP EQUIP & SUPPLIES
20/07/2017,http://opendatacommunities.org/id/county-council/surrey,Surrey,http://id.esd.org.uk/service/1465,Council expenditure,31/03/2017,CYWS COMMISSIONING,SAINSBURYS 0764,35.15,PURCHASE OF FOOD (RAW MATERIALS),"GROCERY STORES, SUPERMARKETS"
20/07/2017,http://opendatacommunities.org/id/county-council/surrey,Surrey,http://id.esd.org.uk/service/1465,Council expenditure,31/03/2017,CYWS COMMISSIONING,WICKES,189.45,PURCHASE OF BUILDING MATERIALS,HOME SUPPLY WAREHOUSE STORES
20/07/2017,http://opendatacommunities.org/id/county-council/surrey,Surrey,http://id.esd.org.uk/service/1465,Council expenditure,31/03/2017,ORBIS HEAD OF PROCUREMENT,INVESTORPUBLISHING,275,SUBSCRIPTIONS,PROFESSIONAL SERVICES-NOT ELSEWHERE CLASSIFIED
20/07/2017,http://opendatacommunities.org/id/county-council/surrey,Surrey,http://id.esd.org.uk/service/1465,Council expenditure,31/03/2017,ORBIS PROCUREMENT TRAINING,WWW.CIPS.ORG,198.33,BOOKS,"ORGANIZATIONS, MEMBERSHIP-NOT ELSEWHERE CLASSIFIED"
20/07/2017,http://opendatacommunities.org/id/county-council/surrey,Surrey,http://id.esd.org.uk/service/1465,Council expenditure,31/03/2017,ORBIS PROCUREMENT TRAINING,WWW.CIPS.ORG,198.33,EXAMINATION FEES,"ORGANIZATIONS, MEMBERSHIP-NOT ELSEWHERE CLASSIFIED"
20/07/2017,http://opendatacommunities.org/id/county-council/surrey,Surrey,http://id.esd.org.uk/service/1465,Council expenditure,31/03/2017,LIBERTAS COMMUNITY HOME,POST OFFICE COUNTER,153,"CLOTHING, UNIFORM AND LAUNDRY",POSTAL SERVICES-GOVERNMENT ONLY
20/07/2017,http://opendatacommunities.org/id/county-council/surrey,Surrey,http://id.esd.org.uk/service/1465,Council expenditure,31/03/2017,APPLEWOOD,ASDA HOME SHOPPING,281.35,PURCHASE OF FOOD (RAW MATERIALS),"GROCERY STORES, SUPERMARKETS"
20/07/2017,http://opendatacommunities.org/id/county-council/surrey,Surrey,http://id.esd.org.uk/service/1465,Council expenditure,31/03/2017,APPLEWOOD,ASDA HOME SHOPPING,-2.16,PURCHASE OF FOOD (RAW MATERIALS),"GROCERY STORES, SUPERMARKETS"
20/07/2017,http://opendatacommunities.org/id/county-council/surrey,Surrey,http://id.esd.org.uk/service/1465,Council expenditure,31/03/2017,OTHER NON CWD HOME COSTS,AMZ LAYLA'S BARGAINS,-11.58,EQUIPMENT,MISCELLANEOUS AND SPECIALTY RETAIL STORES
20/07/2017,http://opendatacommunities.org/id/county-council/surrey,Surrey,http://id.esd.org.uk/service/1465,Council expenditure,31/03/2017,SOLD DAY TO DAY OPERATIONS,TIMPSON,18,EQUIPMENT,"HAT CLEANING SHOPS, SHOE REPAIR SHOPS, SHOE SHINE"
20/07/2017,http://opendatacommunities.org/id/county-council/surrey,Surrey,http://id.esd.org.uk/service/1465,Council expenditure,31/03/2017,IMT CRITICAL ENVIRONMENTS,AMAZON UK RETAIL AMAZO,134.95,COMPUTER HARDWARE,MISCELLANEOUS AND SPECIALTY RETAIL STORES
20/07/2017,http://opendatacommunities.org/id/county-council/surrey,Surrey,http://id.esd.org.uk/service/1465,Council expenditure,31/03/2017,WOODLANDS COMMUNITY HOME,SAINSBURYS 0686,5.1,PURCHASE OF FOOD (RAW MATERIALS),"GROCERY STORES, SUPERMARKETS"
20/07/2017,http://opendatacommunities.org/id/county-council/surrey,Surrey,http://id.esd.org.uk/service/1465,Council expenditure,31/03/2017,WOODLANDS COMMUNITY HOME,SAINSBURYS 0686,51.42,PURCHASE OF FOOD (RAW MATERIALS),"GROCERY STORES, SUPERMARKETS"
20/07/2017,http://opendatacommunities.org/id/county-council/surrey,Surrey,http://id.esd.org.uk/service/1465,Council expenditure,31/03/2017,WOODLANDS COMMUNITY HOME,MILANO PIZZA,54.45,PURCHASE OF FOOD (RAW MATERIALS),FAST FOOD RESTAURANTS
20/07/2017,http://opendatacommunities.org/id/county-council/surrey,Surrey,http://id.esd.org.uk/service/1465,Council expenditure,31/03/2017,C&C DIRECTORATE SUPPORT,AIM,95,SUBSCRIPTIONS,"ORGANIZATIONS, MEMBERSHIP-NOT ELSEWHERE CLASSIFIED"
20/07/2017,http://opendatacommunities.org/id/county-council/surrey,Surrey,http://id.esd.org.uk/service/1465,Council expenditure,31/03/2017,SURREY ARTS OPEN STUDIOS,KREMER SIGNS,592.04,EQUIPMENT,MISCELLANEOUS PUBLISHING AND PRINTING
20/07/2017,http://opendatacommunities.org/id/county-council/surrey,Surrey,http://id.esd.org.uk/service/1465,Council expenditure,31/03/2017,LIBERTAS COMMUNITY HOME,SAINSBURYS SACAT 0652,42.31,PURCHASE OF FOOD (RAW MATERIALS),"GROCERY STORES, SUPERMARKETS"
20/07/2017,http://opendatacommunities.org/id/county-council/surrey,Surrey,http://id.esd.org.uk/service/1465,Council expenditure,31/03/2017,LIBERTAS COMMUNITY HOME,SAINSBURYS SACAT 0652,40,"CLOTHING, UNIFORM AND LAUNDRY","GROCERY STORES, SUPERMARKETS"
20/07/2017,http://opendatacommunities.org/id/county-council/surrey,Surrey,http://id.esd.org.uk/service/1465,Council expenditure,31/03/2017,LIBERTAS COMMUNITY HOME,MAW SALONS,20,EQUIPMENT,BARBER AND BEAUTY SHOPS
20/07/2017,http://opendatacommunities.org/id/county-council/surrey,Surrey,http://id.esd.org.uk/service/1465,Council expenditure,31/03/2017,LIBERTAS COMMUNITY HOME,SUPERDRUG STORES PLC,9.2,EQUIPMENT,"DRUG STORES, PHARMACIES"
20/07/2017,http://opendatacommunities.org/id/county-council/surrey,Surrey,http://id.esd.org.uk/service/1465,Council expenditure,31/03/2017,LIBERTAS COMMUNITY HOME,HALFORDS 0763,60.99,VEHICLE REPAIRS AND MAINTENANCE,BICYCLE SHOPS-SALES AND SERVICE
20/07/2017,http://opendatacommunities.org/id/county-council/surrey,Surrey,http://id.esd.org.uk/service/1465,Council expenditure,31/03/2017,ACL CENTRAL EXPENDITURE,FACEBK PF22DB2CB2,348.74,PUBLICITY,ADVERTISING SERVICES
20/07/2017,http://opendatacommunities.org/id/county-council/surrey,Surrey,http://id.esd.org.uk/service/1465,Council expenditure,31/03/2017,ACL CENTRAL EXPENDITURE,FACEBK SF22DB2CB2,19.19,PUBLICITY,ADVERTISING SERVICES
20/07/2017,http://opendatacommunities.org/id/county-council/surrey,Surrey,http://id.esd.org.uk/service/1465,Council expenditure,31/03/2017,ACL CENTRAL EXPENDITURE,AMAZON PRIME,-79,PUBLICITY,DIRECT MARKETING-CONTINUITY/SUBSCRIPTION MERCHANTS
20/07/2017,http://opendatacommunities.org/id/county-council/surrey,Surrey,http://id.esd.org.uk/service/1465,Council expenditure,31/03/2017,FAIRCROFT COMMUNITY HOME,SAINSBURYS SACAT 0687,33.2,"CLOTHING, UNIFORM AND LAUNDRY","GROCERY STORES, SUPERMARKETS"
20/07/2017,http://opendatacommunities.org/id/county-council/surrey,Surrey,http://id.esd.org.uk/service/1465,Council expenditure,31/03/2017,FAIRCROFT COMMUNITY HOME,SPORTSDIRECT 234,49.98,"CLOTHING, UNIFORM AND LAUNDRY",SPORTING GOODS STORES
20/07/2017,http://opendatacommunities.org/id/county-council/surrey,Surrey,http://id.esd.org.uk/service/1465,Council expenditure,31/03/2017,BURBANK COMMUNITY HOME,W M MORRISONS,10.75,REFRESHMENT COSTS,"GROCERY STORES, SUPERMARKETS"
20/07/2017,http://opendatacommunities.org/id/county-council/surrey,Surrey,http://id.esd.org.uk/service/1465,Council expenditure,31/03/2017,TARGETED INTERVENTION,ANDERTONS MUSIC,41.25,EXAMINATION FEES,"MUSIC STORES-INSTRUMENTS, PIANOS, SHEET MUSIC"
20/07/2017,http://opendatacommunities.org/id/county-council/surrey,Surrey,http://id.esd.org.uk/service/1465,Council expenditure,31/03/2017,PE/CDT MAINTENANCE OVERHEADS,EPSOM REFUSE TRANSFER,84.24,TRADE REFUSE,"CLEANING AND MAINTENANCE, JANITORIAL SERVICES"
20/07/2017,http://opendatacommunities.org/id/county-council/surrey,Surrey,http://id.esd.org.uk/service/1465,Council expenditure,31/03/2017,PE/CDT MAINTENANCE OVERHEADS,WWW.BODYSOLID.COUK,24.49,ITEMS PURCHASED FOR RE-SALE,SPORTING GOODS STORES
20/07/2017,http://opendatacommunities.org/id/county-council/surrey,Surrey,http://id.esd.org.uk/service/1465,Council expenditure,31/03/2017,ASSET INVESTMENT & REGENERATION MANAGER,DUN & BRADSTREET LIMIT,45.6,FEES,BUSINESS SERVICES-NOT ELSEWHERE CLASSIFIED
20/07/2017,http://opendatacommunities.org/id/county-council/surrey,Surrey,http://id.esd.org.uk/service/1465,Council expenditure,31/03/2017,ORBIS TRAINING PROPERTY,LABC,"1,554.00",TRAINING EXPENSES EXTERNAL GENERAL,"ORGANIZATIONS, MEMBERSHIP-NOT ELSEWHERE CLASSIFIED"
20/07/2017,http://opendatacommunities.org/id/county-council/surrey,Surrey,http://id.esd.org.uk/service/1465,Council expenditure,31/03/2017,ARUNDEL,ASDA SUPERSTORE,34,REFRESHMENT COSTS,"GROCERY STORES, SUPERMARKETS"
20/07/2017,http://opendatacommunities.org/id/county-council/surrey,Surrey,http://id.esd.org.uk/service/1465,Council expenditure,31/03/2017,OTHER NON CWD HOME COSTS,TRAVIS PERKINS,134.88,UPKEEP OF GROUNDS,"BUILDING MATERIALS, LUMBER STORES"
20/07/2017,http://opendatacommunities.org/id/county-council/surrey,Surrey,http://id.esd.org.uk/service/1465,Council expenditure,31/03/2017,BURBANK COMMUNITY HOME,LONGACRES GARDEN CENTR,9.99,UPKEEP OF GROUNDS,LAWN AND GARDEN SUPPLY STORES
20/07/2017,http://opendatacommunities.org/id/county-council/surrey,Surrey,http://id.esd.org.uk/service/1465,Council expenditure,31/03/2017,HERITAGE STEWARDSHIP AND PRESERVATION,AMAZON UK MARKETPLACE,2.49,EQUIPMENT,BOOK STORES
20/07/2017,http://opendatacommunities.org/id/county-council/surrey,Surrey,http://id.esd.org.uk/service/1465,Council expenditure,31/03/2017,RUTH HOUSE,SAINSBURY'S FOOD DELIVERY FOR YOUNG PEOPLE (14.47%),40.2,PURCHASE OF FOOD (RAW MATERIALS),"GROCERY STORES, SUPERMARKETS"
20/07/2017,http://opendatacommunities.org/id/county-council/surrey,Surrey,http://id.esd.org.uk/service/1465,Council expenditure,31/03/2017,RUTH HOUSE,SAINSBURY'S FOOD DELIVERY FOR YOUNG PEOPLE (85.53%),237.6,PURCHASE OF FOOD (RAW MATERIALS),"GROCERY STORES, SUPERMARKETS"
20/07/2017,http://opendatacommunities.org/id/county-council/surrey,Surrey,http://id.esd.org.uk/service/1465,Council expenditure,31/03/2017,ADOPTION CARE,HM COURTS & TRIBUN,600,LEGAL EXPENSES,FINES
20/07/2017,http://opendatacommunities.org/id/county-council/surrey,Surrey,http://id.esd.org.uk/service/1465,Council expenditure,31/03/2017,CHEYNE WALK COMMUNITY HOME,AMAZON UK MARKETPLACE,82.98,FURNITURE,BOOK STORES
20/07/2017,http://opendatacommunities.org/id/county-council/surrey,Surrey,http://id.esd.org.uk/service/1465,Council expenditure,31/03/2017,CHEYNE WALK COMMUNITY HOME,TESCO DIRECT,278.94,EDUC VISITS/HOLS/CAMPS/TOYS,MISCELLANEOUS AND SPECIALTY RETAIL STORES
20/07/2017,http://opendatacommunities.org/id/county-council/surrey,Surrey,http://id.esd.org.uk/service/1465,Council expenditure,31/03/2017,ARUNDEL,TESCO STORES 5999,129.59,REFRESHMENT COSTS,"GROCERY STORES, SUPERMARKETS"
20/07/2017,http://opendatacommunities.org/id/county-council/surrey,Surrey,http://id.esd.org.uk/service/1465,Council expenditure,31/03/2017,ARUNDEL,TESCO STORES 5999,6,REFRESHMENT COSTS,"GROCERY STORES, SUPERMARKETS"
20/07/2017,http://opendatacommunities.org/id/county-council/surrey,Surrey,http://id.esd.org.uk/service/1465,Council expenditure,31/03/2017,WORKPLACE COMMERCIAL TEAM,FACEBK CATUFCECS2,17.32,PUBLICITY,ADVERTISING SERVICES
20/07/2017,http://opendatacommunities.org/id/county-council/surrey,Surrey,http://id.esd.org.uk/service/1465,Council expenditure,31/03/2017,LAC INITIATIVES,CURRYS SUPERSTORE 2324,487.99,CURRICULUM EQUIPMENT AND FURNITURE,ELECTRONIC SALES
20/07/2017,http://opendatacommunities.org/id/county-council/surrey,Surrey,http://id.esd.org.uk/service/1465,Council expenditure,31/03/2017,LAC INITIATIVES,CURRYS SUPERSTORE 2324,487.99,BOOKS,ELECTRONIC SALES
20/07/2017,http://opendatacommunities.org/id/county-council/surrey,Surrey,http://id.esd.org.uk/service/1465,Council expenditure,31/03/2017,TRANSPORT,AMAZON UK MARKETPLACE,139.98,EQUIPMENT,BOOK STORES
20/07/2017,http://opendatacommunities.org/id/county-council/surrey,Surrey,http://id.esd.org.uk/service/1465,Council expenditure,31/03/2017,TRANSPORT,PAYPAL  CITAGLENSIG,45.24,EQUIPMENT,"COMMERCIAL ART, GRAPHICS, PHOTOGRAPHY"
20/07/2017,http://opendatacommunities.org/id/county-council/surrey,Surrey,http://id.esd.org.uk/service/1465,Council expenditure,31/03/2017,CAMHS SOCIAL WORKERS,WWW.THEWORKS.CO.UK,49.99,EDUC VISITS/HOLS/CAMPS/TOYS,DISCOUNT STORES
20/07/2017,http://opendatacommunities.org/id/county-council/surrey,Surrey,http://id.esd.org.uk/service/1465,Council expenditure,31/03/2017,HOPE SERVICE - WEST,FREEDOM LEISURE,48,EDUC VISITS/HOLS/CAMPS/TOYS,GOVERNMENT SERVICES-NOT ELSEWHERE CLASSIFIED
20/07/2017,http://opendatacommunities.org/id/county-council/surrey,Surrey,http://id.esd.org.uk/service/1465,Council expenditure,31/03/2017,PROPERTY OPERATIONS TEAM,HOMEBASE LTD 050,50,PURCHASE OF BUILDING MATERIALS,"BUILDING MATERIALS, LUMBER STORES"
20/07/2017,http://opendatacommunities.org/id/county-council/surrey,Surrey,http://id.esd.org.uk/service/1465,Council expenditure,31/03/2017,PROPERTY OPERATIONS TEAM,SCREWFIX GUILDFORD,29.77,PURCHASE OF BUILDING MATERIALS,"BUILDING MATERIALS, LUMBER STORES"
20/07/2017,http://opendatacommunities.org/id/county-council/surrey,Surrey,http://id.esd.org.uk/service/1465,Council expenditure,31/03/2017,HOLLAND CLOSE RESIDENTIAL HOME,AMAZON UK MARKETPLACE,20,FIXTURES AND FITTINGS,BOOK STORES
20/07/2017,http://opendatacommunities.org/id/county-council/surrey,Surrey,http://id.esd.org.uk/service/1465,Council expenditure,31/03/2017,HOLLAND CLOSE RESIDENTIAL HOME,DUNGEON,30,EDUC VISITS/HOLS/CAMPS/TOYS,TOURIST ATTRACTIONS AND EXHIBITS
20/07/2017,http://opendatacommunities.org/id/county-council/surrey,Surrey,http://id.esd.org.uk/service/1465,Council expenditure,31/03/2017,IMT PRODUCTION APPLICATIONS TEAM,"CLOUD9 IDE, INC",23.96,COMPUTER SERVICES,"COMPUTERS, COMPUTER PERIPHERAL EQUIPMENT, SOFTWARE"
20/07/2017,http://opendatacommunities.org/id/county-council/surrey,Surrey,http://id.esd.org.uk/service/1465,Council expenditure,01/04/2017,FAIRCROFT COMMUNITY HOME,SAINSBURYS SACAT(4180),5.5,PURCHASE OF FOOD (RAW MATERIALS),"GROCERY STORES, SUPERMARKETS"
20/07/2017,http://opendatacommunities.org/id/county-council/surrey,Surrey,http://id.esd.org.uk/service/1465,Council expenditure,01/04/2017,FAIRCROFT COMMUNITY HOME,SAINSBURYS 0687,13.85,PURCHASE OF FOOD (RAW MATERIALS),"GROCERY STORES, SUPERMARKETS"
20/07/2017,http://opendatacommunities.org/id/county-council/surrey,Surrey,http://id.esd.org.uk/service/1465,Council expenditure,01/04/2017,FAIRCROFT COMMUNITY HOME,DEEP BLUE COBHAM,7.9,REFRESHMENT COSTS,"EATING PLACES, RESTAURANTS"
20/07/2017,http://opendatacommunities.org/id/county-council/surrey,Surrey,http://id.esd.org.uk/service/1465,Council expenditure,01/04/2017,FAIRCROFT COMMUNITY HOME,DEEP BLUE COBHAM,50.75,REFRESHMENT COSTS,"EATING PLACES, RESTAURANTS"
20/07/2017,http://opendatacommunities.org/id/county-council/surrey,Surrey,http://id.esd.org.uk/service/1465,Council expenditure,01/04/2017,FAIRCROFT COMMUNITY HOME,DEEP BLUE COBHAM,8.3,REFRESHMENT COSTS,"EATING PLACES, RESTAURANTS"
20/07/2017,http://opendatacommunities.org/id/county-council/surrey,Surrey,http://id.esd.org.uk/service/1465,Council expenditure,01/04/2017,CHEYNE WALK COMMUNITY HOME,HM PASSPORT OFFICE,75.5,EQUIPMENT,GOVERNMENT SERVICES-NOT ELSEWHERE CLASSIFIED
20/07/2017,http://opendatacommunities.org/id/county-council/surrey,Surrey,http://id.esd.org.uk/service/1465,Council expenditure,01/04/2017,LIBERTAS COMMUNITY HOME,SAINSBURYS 0652,73.71,PURCHASE OF FOOD (RAW MATERIALS),"GROCERY STORES, SUPERMARKETS"
20/07/2017,http://opendatacommunities.org/id/county-council/surrey,Surrey,http://id.esd.org.uk/service/1465,Council expenditure,01/04/2017,LIBERTAS COMMUNITY HOME,SAINSBURYS 0652,13.5,EQUIPMENT,"GROCERY STORES, SUPERMARKETS"
20/07/2017,http://opendatacommunities.org/id/county-council/surrey,Surrey,http://id.esd.org.uk/service/1465,Council expenditure,01/04/2017,ASHTEAD YC,WWW.AIRHOPTRAMPELINEOA,90,EDUC VISITS/HOLS/CAMPS/TOYS,RECREATIONAL AND SPORTING CAMPS
20/07/2017,http://opendatacommunities.org/id/county-council/surrey,Surrey,http://id.esd.org.uk/service/1465,Council expenditure,01/04/2017,FAIRCROFT COMMUNITY HOME,"BOOTS,WOKING",45,EDUC VISITS/HOLS/CAMPS/TOYS,"DRUG STORES, PHARMACIES"
20/07/2017,http://opendatacommunities.org/id/county-council/surrey,Surrey,http://id.esd.org.uk/service/1465,Council expenditure,01/04/2017,BURBANK COMMUNITY HOME,WWW.UKFLAIR.COM,56.97,EDUC VISITS/HOLS/CAMPS/TOYS,"SPORTS APPAREL, RIDING APPAREL STORES"
20/07/2017,http://opendatacommunities.org/id/county-council/surrey,Surrey,http://id.esd.org.uk/service/1465,Council expenditure,01/04/2017,LIBERTAS COMMUNITY HOME,SAINSBURYS TO YOU 0674,196.06,PURCHASE OF FOOD (RAW MATERIALS),"GROCERY STORES, SUPERMARKETS"
20/07/2017,http://opendatacommunities.org/id/county-council/surrey,Surrey,http://id.esd.org.uk/service/1465,Council expenditure,01/04/2017,CHEYNE WALK COMMUNITY HOME,AMAZON UK MARKETPLACE,7.98,LIBRARY RESOURCES,BOOK STORES
20/07/2017,http://opendatacommunities.org/id/county-council/surrey,Surrey,http://id.esd.org.uk/service/1465,Council expenditure,01/04/2017,LIBERTAS COMMUNITY HOME,COSTA COFFEE 43039880,19.9,REFRESHMENT COSTS,FAST FOOD RESTAURANTS
20/07/2017,http://opendatacommunities.org/id/county-council/surrey,Surrey,http://id.esd.org.uk/service/1465,Council expenditure,01/04/2017,LIBERTAS COMMUNITY HOME,MCDONALDS,29.53,REFRESHMENT COSTS,"EATING PLACES, RESTAURANTS"
20/07/2017,http://opendatacommunities.org/id/county-council/surrey,Surrey,http://id.esd.org.uk/service/1465,Council expenditure,01/04/2017,HILLSIDE,TESCO STORE 3149,49.5,PURCHASE OF FOOD (RAW MATERIALS),"GROCERY STORES, SUPERMARKETS"
20/07/2017,http://opendatacommunities.org/id/county-council/surrey,Surrey,http://id.esd.org.uk/service/1465,Council expenditure,01/04/2017,HILLSIDE,TESCO STORE 3149,176.38,PURCHASE OF FOOD (RAW MATERIALS),"GROCERY STORES, SUPERMARKETS"
20/07/2017,http://opendatacommunities.org/id/county-council/surrey,Surrey,http://id.esd.org.uk/service/1465,Council expenditure,01/04/2017,FAIRCROFT COMMUNITY HOME,FREEPRINTS,2.69,EQUIPMENT,"PHOTO DEVELOPING, PHOTOFINISHING LABORATORIES"
20/07/2017,http://opendatacommunities.org/id/county-council/surrey,Surrey,http://id.esd.org.uk/service/1465,Council expenditure,01/04/2017,HOLLAND CLOSE RESIDENTIAL HOME,AMZ UK DIGITAL DWNLOAD,7.99,EQUIPMENT,RECORD SHOPS
20/07/2017,http://opendatacommunities.org/id/county-council/surrey,Surrey,http://id.esd.org.uk/service/1465,Council expenditure,01/04/2017,HOLLAND CLOSE RESIDENTIAL HOME,TESCO-STORES 6647,170.29,PURCHASE OF FOOD (RAW MATERIALS),"GROCERY STORES, SUPERMARKETS"
20/07/2017,http://opendatacommunities.org/id/county-council/surrey,Surrey,http://id.esd.org.uk/service/1465,Council expenditure,01/04/2017,LIBERTAS COMMUNITY HOME,NEWLANDS,8.8,REFRESHMENT COSTS,"EATING PLACES, RESTAURANTS"
20/07/2017,http://opendatacommunities.org/id/county-council/surrey,Surrey,http://id.esd.org.uk/service/1465,Council expenditure,02/04/2017,NW LOOKED AFTER TEAM,SPORTING LODGE INNS ST,45,EXPENSES,"LODGING-HOTELS,MOTELS,RESORTS-NOT CLASSIFIED"
20/07/2017,http://opendatacommunities.org/id/county-council/surrey,Surrey,http://id.esd.org.uk/service/1465,Council expenditure,02/04/2017,FAIRCROFT COMMUNITY HOME,RIST DEL BORGO,109.04,EDUC VISITS/HOLS/CAMPS/TOYS,"EATING PLACES, RESTAURANTS"
20/07/2017,http://opendatacommunities.org/id/county-council/surrey,Surrey,http://id.esd.org.uk/service/1465,Council expenditure,02/04/2017,NW LOOKED AFTER TEAM,SPORTING LODGE INNS ST,45,EXPENSES,"LODGING-HOTELS,MOTELS,RESORTS-NOT CLASSIFIED"
20/07/2017,http://opendatacommunities.org/id/county-council/surrey,Surrey,http://id.esd.org.uk/service/1465,Council expenditure,02/04/2017,COMMUNICATIONS TEAM,TIMES NEWSPAPERS LTD,34.67,SUBSCRIPTIONS,"BOOKS,PERIODICALS AND NEWSPAPERS"
20/07/2017,http://opendatacommunities.org/id/county-council/surrey,Surrey,http://id.esd.org.uk/service/1465,Council expenditure,02/04/2017,COMMUNICATIONS TEAM,GOOGLE  ADWS2060179426,500,PUBLICITY,DIRECT MARKETING-CONTINUITY/SUBSCRIPTION MERCHANTS
20/07/2017,http://opendatacommunities.org/id/county-council/surrey,Surrey,http://id.esd.org.uk/service/1465,Council expenditure,02/04/2017,FAIRCROFT COMMUNITY HOME,MCDONALDS,10.67,REFRESHMENT COSTS,FAST FOOD RESTAURANTS
20/07/2017,http://opendatacommunities.org/id/county-council/surrey,Surrey,http://id.esd.org.uk/service/1465,Council expenditure,02/04/2017,FAIRCROFT COMMUNITY HOME,MCDONALDS,4.49,REFRESHMENT COSTS,FAST FOOD RESTAURANTS
20/07/2017,http://opendatacommunities.org/id/county-council/surrey,Surrey,http://id.esd.org.uk/service/1465,Council expenditure,02/04/2017,FAIRCROFT COMMUNITY HOME,GI AD  2006 SAS,12.37,EDUC VISITS/HOLS/CAMPS/TOYS,"BAR,LOUNGE,DISCO,NIGHTCLUB,TAVERN-ALCOHOLIC DRINKS"
20/07/2017,http://opendatacommunities.org/id/county-council/surrey,Surrey,http://id.esd.org.uk/service/1465,Council expenditure,02/04/2017,BURBANK COMMUNITY HOME,FREEDOM LEISURE,33.6,EDUC VISITS/HOLS/CAMPS/TOYS,GOVERNMENT SERVICES-NOT ELSEWHERE CLASSIFIED
20/07/2017,http://opendatacommunities.org/id/county-council/surrey,Surrey,http://id.esd.org.uk/service/1465,Council expenditure,02/04/2017,BURBANK COMMUNITY HOME,FREEDOM LEISURE,3.8,REFRESHMENT COSTS,GOVERNMENT SERVICES-NOT ELSEWHERE CLASSIFIED
20/07/2017,http://opendatacommunities.org/id/county-council/surrey,Surrey,http://id.esd.org.uk/service/1465,Council expenditure,02/04/2017,KARIBU COMMUNITY HOME,ARGOS LTD,46.46,EQUIPMENT,DISCOUNT STORES
20/07/2017,http://opendatacommunities.org/id/county-council/surrey,Surrey,http://id.esd.org.uk/service/1465,Council expenditure,02/04/2017,SUPERFAST BROADBAND ECONOMIC DEVELOPMENT,GOOGLE  SVCSAPPS_SUPER,13.75,COMPUTER SERVICES,DIRECT MARKETING-CONTINUITY/SUBSCRIPTION MERCHANTS
20/07/2017,http://opendatacommunities.org/id/county-council/surrey,Surrey,http://id.esd.org.uk/service/1465,Council expenditure,02/04/2017,FAIRCROFT COMMUNITY HOME,GI AD  2006 SAS,13.26,EDUC VISITS/HOLS/CAMPS/TOYS,"BAR,LOUNGE,DISCO,NIGHTCLUB,TAVERN-ALCOHOLIC DRINKS"
20/07/2017,http://opendatacommunities.org/id/county-council/surrey,Surrey,http://id.esd.org.uk/service/1465,Council expenditure,02/04/2017,FAIRCROFT COMMUNITY HOME,WONDERTREE 1974,102.75,REFRESHMENT COSTS,"EATING PLACES, RESTAURANTS"
20/07/2017,http://opendatacommunities.org/id/county-council/surrey,Surrey,http://id.esd.org.uk/service/1465,Council expenditure,02/04/2017,SUSTAINABILITY GROUP,EV CHARGING ELEKTROMOT,20,MISCELLANEOUS STAFF TRAVEL,DIRECT MARKETING-OTHER DIRECT MARKETERS/NOT ELSEW.
20/07/2017,http://opendatacommunities.org/id/county-council/surrey,Surrey,http://id.esd.org.uk/service/1465,Council expenditure,02/04/2017,SUSTAINABILITY GROUP,EV CHARGING ELEKTROMOT,20,MISCELLANEOUS STAFF TRAVEL,DIRECT MARKETING-OTHER DIRECT MARKETERS/NOT ELSEW.
20/07/2017,http://opendatacommunities.org/id/county-council/surrey,Surrey,http://id.esd.org.uk/service/1465,Council expenditure,02/04/2017,SUSTAINABILITY GROUP,EV CHARGING ELEKTROMOT,20,MISCELLANEOUS STAFF TRAVEL,DIRECT MARKETING-OTHER DIRECT MARKETERS/NOT ELSEW.
20/07/2017,http://opendatacommunities.org/id/county-council/surrey,Surrey,http://id.esd.org.uk/service/1465,Council expenditure,02/04/2017,SUSTAINABILITY GROUP,EV CHARGING ELEKTROMOT,20,MISCELLANEOUS STAFF TRAVEL,DIRECT MARKETING-OTHER DIRECT MARKETERS/NOT ELSEW.
20/07/2017,http://opendatacommunities.org/id/county-council/surrey,Surrey,http://id.esd.org.uk/service/1465,Council expenditure,02/04/2017,LIBERTAS COMMUNITY HOME,SAINSBURYS 2209,51.7,PURCHASE OF FOOD (RAW MATERIALS),"GROCERY STORES, SUPERMARKETS"
20/07/2017,http://opendatacommunities.org/id/county-council/surrey,Surrey,http://id.esd.org.uk/service/1465,Council expenditure,02/04/2017,LIBERTAS COMMUNITY HOME,SAINSBURYS 2209,10,TELECOMMUNICATION CHARGES,"GROCERY STORES, SUPERMARKETS"
20/07/2017,http://opendatacommunities.org/id/county-council/surrey,Surrey,http://id.esd.org.uk/service/1465,Council expenditure,02/04/2017,LIBERTAS COMMUNITY HOME,SAINSBURYS 2209,10,TELECOMMUNICATION CHARGES,"GROCERY STORES, SUPERMARKETS"
20/07/2017,http://opendatacommunities.org/id/county-council/surrey,Surrey,http://id.esd.org.uk/service/1465,Council expenditure,02/04/2017,LIBERTAS COMMUNITY HOME,SAINSBURYS 2209,9.45,EQUIPMENT,"GROCERY STORES, SUPERMARKETS"
20/07/2017,http://opendatacommunities.org/id/county-council/surrey,Surrey,http://id.esd.org.uk/service/1465,Council expenditure,02/04/2017,LIBERTAS COMMUNITY HOME,THE WEIR,13.8,REFRESHMENT COSTS,"EATING PLACES, RESTAURANTS"
20/07/2017,http://opendatacommunities.org/id/county-council/surrey,Surrey,http://id.esd.org.uk/service/1465,Council expenditure,02/04/2017,LIBERTAS COMMUNITY HOME,VESTA VODAFONE,10,TELECOMMUNICATION CHARGES,TELECOM INCL PREPAID/RECURRING PHONE SVCS
20/07/2017,http://opendatacommunities.org/id/county-council/surrey,Surrey,http://id.esd.org.uk/service/1465,Council expenditure,03/04/2017,NW CARE - LAC,PREMIER INN44015565,51.5,CHILDREN ACT SEC 17 PAYMENTS,PREMIER INN
20/07/2017,http://opendatacommunities.org/id/county-council/surrey,Surrey,http://id.esd.org.uk/service/1465,Council expenditure,03/04/2017,LOCAL DELIVERY GROUP,AMAZON UK RETAIL AMAZO,69,EQUIPMENT,MISCELLANEOUS AND SPECIALTY RETAIL STORES
20/07/2017,http://opendatacommunities.org/id/county-council/surrey,Surrey,http://id.esd.org.uk/service/1465,Council expenditure,03/04/2017,FAIRCROFT COMMUNITY HOME,PARENTPAY E-COM R,20,REFRESHMENT COSTS,"COLLEGES, UNIV, PRO SCHOOLS, JUNIOR COLLEGES"
20/07/2017,http://opendatacommunities.org/id/county-council/surrey,Surrey,http://id.esd.org.uk/service/1465,Council expenditure,03/04/2017,CHEYNE WALK COMMUNITY HOME,BURGER KING,14.28,PURCHASE OF FOOD (RAW MATERIALS),FAST FOOD RESTAURANTS
20/07/2017,http://opendatacommunities.org/id/county-council/surrey,Surrey,http://id.esd.org.uk/service/1465,Council expenditure,03/04/2017,STRATEGIC TREE MAINTENANCE - PR,AMAZON UK RETAIL AMAZO,43.59,EQUIPMENT,MISCELLANEOUS AND SPECIALTY RETAIL STORES
20/07/2017,http://opendatacommunities.org/id/county-council/surrey,Surrey,http://id.esd.org.uk/service/1465,Council expenditure,03/04/2017,CHEYNE WALK COMMUNITY HOME,AMAZON UK RETAIL AMAZO,28.94,EQUIPMENT,MISCELLANEOUS AND SPECIALTY RETAIL STORES
20/07/2017,http://opendatacommunities.org/id/county-council/surrey,Surrey,http://id.esd.org.uk/service/1465,Council expenditure,03/04/2017,WOODLANDS COMMUNITY HOME,VUE BSL-IVR,56.7,EDUC VISITS/HOLS/CAMPS/TOYS,MOTION PICTURE THEATERS
20/07/2017,http://opendatacommunities.org/id/county-council/surrey,Surrey,http://id.esd.org.uk/service/1465,Council expenditure,03/04/2017,BURBANK COMMUNITY HOME,H&M,17.99,"CLOTHING, UNIFORM AND LAUNDRY",MEN'S AND WOMEN'S CLOTHING STORES
20/07/2017,http://opendatacommunities.org/id/county-council/surrey,Surrey,http://id.esd.org.uk/service/1465,Council expenditure,03/04/2017,BURBANK COMMUNITY HOME,WWW.JUSTWIPE.CO.UK,55.71,EQUIPMENT,"DRAPERY, UPOLSTERY, AND WINDOW COVERINGS STORES"
20/07/2017,http://opendatacommunities.org/id/county-council/surrey,Surrey,http://id.esd.org.uk/service/1465,Council expenditure,03/04/2017,SOLD ESTATES MANAGEMENT,WWW.RAPIDRACKING.COM,325.2,EQUIPMENT,INDUSTRIAL SUPPLIES NOT ELSEWHERE CLASSIFIED
20/07/2017,http://opendatacommunities.org/id/county-council/surrey,Surrey,http://id.esd.org.uk/service/1465,Council expenditure,03/04/2017,THE BRIDGE YC,LIDL UK,19.23,PURCHASE OF FOOD (RAW MATERIALS),"GROCERY STORES, SUPERMARKETS"
20/07/2017,http://opendatacommunities.org/id/county-council/surrey,Surrey,http://id.esd.org.uk/service/1465,Council expenditure,03/04/2017,MALLOW CRESCENT,SPLIT - ON LINE GROCERY SHOPPING (6.88%),8.95,PURCHASE OF FOOD (RAW MATERIALS),"GROCERY STORES, SUPERMARKETS"
20/07/2017,http://opendatacommunities.org/id/county-council/surrey,Surrey,http://id.esd.org.uk/service/1465,Council expenditure,03/04/2017,MALLOW CRESCENT,SPLIT - ON LINE GOCERY SHOPPING (93.12%),121.1,PURCHASE OF FOOD (RAW MATERIALS),"GROCERY STORES, SUPERMARKETS"
20/07/2017,http://opendatacommunities.org/id/county-council/surrey,Surrey,http://id.esd.org.uk/service/1465,Council expenditure,03/04/2017,NW CARE - CP & COURT LAC,GREYHOUND CARS LTD,123.69,NON-STAFF RELATED TRANSPORT COSTS,LIMOUSINES AND TAXICABS
20/07/2017,http://opendatacommunities.org/id/county-council/surrey,Surrey,http://id.esd.org.uk/service/1465,Council expenditure,03/04/2017,NW CARE - CP & COURT LAC,GREYHOUND CARS LTD,123.69,NON-STAFF RELATED TRANSPORT COSTS,LIMOUSINES AND TAXICABS
20/07/2017,http://opendatacommunities.org/id/county-council/surrey,Surrey,http://id.esd.org.uk/service/1465,Council expenditure,03/04/2017,CHEYNE WALK COMMUNITY HOME,NCP LIMITED,5.74,NON-STAFF RELATED TRANSPORT COSTS,AUTOMOBILE PARKING LOTS AND GARAGES
20/07/2017,http://opendatacommunities.org/id/county-council/surrey,Surrey,http://id.esd.org.uk/service/1465,Council expenditure,03/04/2017,QUADRANT COURT WOKING,CITY ELECTRICAL FA,104.26,FIXTURES AND FITTINGS,"BUILDING MATERIALS, LUMBER STORES"
20/07/2017,http://opendatacommunities.org/id/county-council/surrey,Surrey,http://id.esd.org.uk/service/1465,Council expenditure,03/04/2017,MULBERRY YC,LIDL UK,31.53,PURCHASE OF FOOD (RAW MATERIALS),"GROCERY STORES, SUPERMARKETS"
20/07/2017,http://opendatacommunities.org/id/county-council/surrey,Surrey,http://id.esd.org.uk/service/1465,Council expenditure,03/04/2017,DOWNLANDS COUNTRYSIDE PROJECT,MOLE COUNTRY STORES,141.54,EQUIPMENT,AGRICULTURAL COOPERATIVES
20/07/2017,http://opendatacommunities.org/id/county-council/surrey,Surrey,http://id.esd.org.uk/service/1465,Council expenditure,03/04/2017,DOWNLANDS COUNTRYSIDE PROJECT,SCREWFIX DIRECT LT,82.16,MEDICAL EXPENSES,"BUILDING MATERIALS, LUMBER STORES"
20/07/2017,http://opendatacommunities.org/id/county-council/surrey,Surrey,http://id.esd.org.uk/service/1465,Council expenditure,03/04/2017,COVEHAM,SAINSBURYS TO YOU 0687,154.71,REFRESHMENT COSTS,"GROCERY STORES, SUPERMARKETS"
20/07/2017,http://opendatacommunities.org/id/county-council/surrey,Surrey,http://id.esd.org.uk/service/1465,Council expenditure,03/04/2017,LIBERTAS COMMUNITY HOME,WAITROSE 589,91.52,PURCHASE OF FOOD (RAW MATERIALS),"GROCERY STORES, SUPERMARKETS"
20/07/2017,http://opendatacommunities.org/id/county-council/surrey,Surrey,http://id.esd.org.uk/service/1465,Council expenditure,03/04/2017,COACH BURSARIES                         ,SOVEREIGNS,6.9,REFRESHMENT COSTS,"EATING PLACES, RESTAURANTS"
20/07/2017,http://opendatacommunities.org/id/county-council/surrey,Surrey,http://id.esd.org.uk/service/1465,Council expenditure,03/04/2017,CHEYNE WALK COMMUNITY HOME,CURRY INN,42.85,PURCHASE OF FOOD (RAW MATERIALS),"EATING PLACES, RESTAURANTS"
20/07/2017,http://opendatacommunities.org/id/county-council/surrey,Surrey,http://id.esd.org.uk/service/1465,Council expenditure,03/04/2017,CORPORATE GROUP - LEGAL SERVICES,MARKS&SPENCER PLC,49.5,REFRESHMENT COSTS,"GROCERY STORES, SUPERMARKETS"
20/07/2017,http://opendatacommunities.org/id/county-council/surrey,Surrey,http://id.esd.org.uk/service/1465,Council expenditure,03/04/2017,ASH YC,CO-OP GROUP FOOD,3.63,CURRICULUM EQUIPMENT AND FURNITURE,"GROCERY STORES, SUPERMARKETS"
20/07/2017,http://opendatacommunities.org/id/county-council/surrey,Surrey,http://id.esd.org.uk/service/1465,Council expenditure,03/04/2017,CEO - EMERGENCY MANAGEMENT              ,PAYPAL  EVENTSINDUS,25,BOOKS,PROFESSIONAL SERVICES-NOT ELSEWHERE CLASSIFIED
20/07/2017,http://opendatacommunities.org/id/county-council/surrey,Surrey,http://id.esd.org.uk/service/1465,Council expenditure,03/04/2017,LIBERTAS COMMUNITY HOME,SAINSBURYS SACAT 2209,11.5,PURCHASE OF FOOD (RAW MATERIALS),"GROCERY STORES, SUPERMARKETS"
20/07/2017,http://opendatacommunities.org/id/county-council/surrey,Surrey,http://id.esd.org.uk/service/1465,Council expenditure,03/04/2017,LIBERTAS COMMUNITY HOME,SPLASH LEISURE CENTRE,26.7,EDUC VISITS/HOLS/CAMPS/TOYS,RECREATION SERVICES (NOT ELSEWHERE CLASSIFIED)
20/07/2017,http://opendatacommunities.org/id/county-council/surrey,Surrey,http://id.esd.org.uk/service/1465,Council expenditure,03/04/2017,MALLOW CRESCENT,SAINSBURYS TO YOU 0652,15.8,PURCHASE OF FOOD (RAW MATERIALS),"GROCERY STORES, SUPERMARKETS"
20/07/2017,http://opendatacommunities.org/id/county-council/surrey,Surrey,http://id.esd.org.uk/service/1465,Council expenditure,03/04/2017,MALLOW CRESCENT,SAINSBURYS TO YOU 0652,89.21,PURCHASE OF FOOD (RAW MATERIALS),"GROCERY STORES, SUPERMARKETS"
20/07/2017,http://opendatacommunities.org/id/county-council/surrey,Surrey,http://id.esd.org.uk/service/1465,Council expenditure,03/04/2017,EXTENDED HOPE,TESCO STORE 2590,80.81,PURCHASE OF FOOD (RAW MATERIALS),"GROCERY STORES, SUPERMARKETS"
20/07/2017,http://opendatacommunities.org/id/county-council/surrey,Surrey,http://id.esd.org.uk/service/1465,Council expenditure,03/04/2017,EXTENDED HOPE,TESCO STORE 2590,8.89,PURCHASE OF FOOD (RAW MATERIALS),"GROCERY STORES, SUPERMARKETS"
20/07/2017,http://opendatacommunities.org/id/county-council/surrey,Surrey,http://id.esd.org.uk/service/1465,Council expenditure,03/04/2017,KARIBU COMMUNITY HOME,CEX,9,EDUC VISITS/HOLS/CAMPS/TOYS,ELECTRICAL PARTS AND EQUIPMENT
20/07/2017,http://opendatacommunities.org/id/county-council/surrey,Surrey,http://id.esd.org.uk/service/1465,Council expenditure,03/04/2017,KARIBU COMMUNITY HOME,SAINSBURYS 0683,77.15,PURCHASE OF FOOD (RAW MATERIALS),"GROCERY STORES, SUPERMARKETS"
20/07/2017,http://opendatacommunities.org/id/county-council/surrey,Surrey,http://id.esd.org.uk/service/1465,Council expenditure,03/04/2017,KARIBU COMMUNITY HOME,FUDGES CYCLE STORE,106.05,EDUC VISITS/HOLS/CAMPS/TOYS,BICYCLE SHOPS-SALES AND SERVICE
20/07/2017,http://opendatacommunities.org/id/county-council/surrey,Surrey,http://id.esd.org.uk/service/1465,Council expenditure,03/04/2017,LIBERTAS COMMUNITY HOME,SAINSBURYS SACAT 0652,16.5,PURCHASE OF FOOD (RAW MATERIALS),"GROCERY STORES, SUPERMARKETS"
20/07/2017,http://opendatacommunities.org/id/county-council/surrey,Surrey,http://id.esd.org.uk/service/1465,Council expenditure,03/04/2017,LIBERTAS COMMUNITY HOME,SAINSBURYS SACAT 0652,4.05,"CLOTHING, UNIFORM AND LAUNDRY","GROCERY STORES, SUPERMARKETS"
20/07/2017,http://opendatacommunities.org/id/county-council/surrey,Surrey,http://id.esd.org.uk/service/1465,Council expenditure,03/04/2017,LIBERTAS COMMUNITY HOME,SAINSBURYS 0652,5,3RD PARTY PAYMENTS PRIVATE INDIV,"GROCERY STORES, SUPERMARKETS"
20/07/2017,http://opendatacommunities.org/id/county-council/surrey,Surrey,http://id.esd.org.uk/service/1465,Council expenditure,03/04/2017,LIBERTAS COMMUNITY HOME,SEAFARE FISH&CHIPS,26.3,PURCHASE OF FOOD (RAW MATERIALS),FAST FOOD RESTAURANTS
20/07/2017,http://opendatacommunities.org/id/county-council/surrey,Surrey,http://id.esd.org.uk/service/1465,Council expenditure,03/04/2017,GODALMING YC,SAINSBURYS SACAT 0670,3.9,PURCHASE OF FOOD (RAW MATERIALS),"GROCERY STORES, SUPERMARKETS"
20/07/2017,http://opendatacommunities.org/id/county-council/surrey,Surrey,http://id.esd.org.uk/service/1465,Council expenditure,03/04/2017,GODALMING YC,SAINSBURYS SACAT 0670,5.55,PURCHASE OF FOOD (RAW MATERIALS),"GROCERY STORES, SUPERMARKETS"
20/07/2017,http://opendatacommunities.org/id/county-council/surrey,Surrey,http://id.esd.org.uk/service/1465,Council expenditure,03/04/2017,THE STREET YC,WM MORRISONS,7.57,PURCHASE OF FOOD (RAW MATERIALS),"GROCERY STORES, SUPERMARKETS"
20/07/2017,http://opendatacommunities.org/id/county-council/surrey,Surrey,http://id.esd.org.uk/service/1465,Council expenditure,03/04/2017,FOSTERING SERVICE CENTRAL COSTS,ALL RIGHT NOW LTD,19.55,STATIONERY,STATIONERY/OFFICE SUPPLIES/PRINTING & WRITING PAP.
20/07/2017,http://opendatacommunities.org/id/county-council/surrey,Surrey,http://id.esd.org.uk/service/1465,Council expenditure,03/04/2017,FAIRCROFT COMMUNITY HOME,L FOUR DI SUDIRO M. E,121.79,EDUC VISITS/HOLS/CAMPS/TOYS,"EATING PLACES, RESTAURANTS"
20/07/2017,http://opendatacommunities.org/id/county-council/surrey,Surrey,http://id.esd.org.uk/service/1465,Council expenditure,03/04/2017,FAIRCROFT COMMUNITY HOME,BAR RISTORANTE ROC 020,81.78,EDUC VISITS/HOLS/CAMPS/TOYS,"EATING PLACES, RESTAURANTS"
20/07/2017,http://opendatacommunities.org/id/county-council/surrey,Surrey,http://id.esd.org.uk/service/1465,Council expenditure,03/04/2017,CHEYNE WALK COMMUNITY HOME,AMAZON UK MARKETPLACE,14.99,EQUIPMENT,BOOK STORES
20/07/2017,http://opendatacommunities.org/id/county-council/surrey,Surrey,http://id.esd.org.uk/service/1465,Council expenditure,03/04/2017,CHEYNE WALK COMMUNITY HOME,AMAZON UK MARKETPLACE,16.2,FURNITURE,BOOK STORES
20/07/2017,http://opendatacommunities.org/id/county-council/surrey,Surrey,http://id.esd.org.uk/service/1465,Council expenditure,03/04/2017,ENSEMBLES & TOURS,SHEETMUSICPLUS.COM,80.06,CURRICULUM EQUIPMENT AND FURNITURE,"MUSIC STORES-INSTRUMENTS, PIANOS, SHEET MUSIC"
20/07/2017,http://opendatacommunities.org/id/county-council/surrey,Surrey,http://id.esd.org.uk/service/1465,Council expenditure,03/04/2017,STANWELL YOUTH CLUB,TESCO STORES 6820,1.55,REFRESHMENT COSTS,"GROCERY STORES, SUPERMARKETS"
20/07/2017,http://opendatacommunities.org/id/county-council/surrey,Surrey,http://id.esd.org.uk/service/1465,Council expenditure,03/04/2017,ACL CENTRAL EXPENDITURE,TESCO - HERITAGE,81.36,EQUIPMENT,MISCELLANEOUS AND SPECIALTY RETAIL STORES
20/07/2017,http://opendatacommunities.org/id/county-council/surrey,Surrey,http://id.esd.org.uk/service/1465,Council expenditure,03/04/2017,ACL CENTRAL EXPENDITURE,TESCO - HARTSOFSTUR,49,EQUIPMENT,MISCELLANEOUS AND SPECIALTY RETAIL STORES
20/07/2017,http://opendatacommunities.org/id/county-council/surrey,Surrey,http://id.esd.org.uk/service/1465,Council expenditure,03/04/2017,ACL CENTRAL EXPENDITURE,TESCO DIRECT,24,EQUIPMENT,MISCELLANEOUS AND SPECIALTY RETAIL STORES
20/07/2017,http://opendatacommunities.org/id/county-council/surrey,Surrey,http://id.esd.org.uk/service/1465,Council expenditure,03/04/2017,EXTENDED HOURS SREVICE,STOCKSIGNS LTD,25.41,EQUIPMENT,"COMMERCIAL ART, GRAPHICS, PHOTOGRAPHY"
20/07/2017,http://opendatacommunities.org/id/county-council/surrey,Surrey,http://id.esd.org.uk/service/1465,Council expenditure,03/04/2017,COMMUNICATIONS TEAM,PRIVATE EYE,34,SUBSCRIPTIONS,DIRECT MARKETING-COMBINATION CATALOG/RETAIL MERCH.
20/07/2017,http://opendatacommunities.org/id/county-council/surrey,Surrey,http://id.esd.org.uk/service/1465,Council expenditure,03/04/2017,COMMUNICATIONS TEAM,HOO HOOTSUITE MEDIA I,5.94,SUBSCRIPTIONS,DIRECT MARKETING-CONTINUITY/SUBSCRIPTION MERCHANTS
20/07/2017,http://opendatacommunities.org/id/county-council/surrey,Surrey,http://id.esd.org.uk/service/1465,Council expenditure,03/04/2017,COUNTY HALL,JCM LOCKSMITHS LTD,154.56,DAY TO DAY MAINTENANCE,HARDWARE STORES
20/07/2017,http://opendatacommunities.org/id/county-council/surrey,Surrey,http://id.esd.org.uk/service/1465,Council expenditure,03/04/2017,RUTH HOUSE,AMAZON UK MARKETPLACE,11.73,EDUC VISITS/HOLS/CAMPS/TOYS,BOOK STORES
20/07/2017,http://opendatacommunities.org/id/county-council/surrey,Surrey,http://id.esd.org.uk/service/1465,Council expenditure,03/04/2017,RUTH HOUSE,DOMESTIC & GENERAL,82.16,FEES,"INSURANCE SALES,UNDERWRITING,AND PREMIUMS"
20/07/2017,http://opendatacommunities.org/id/county-council/surrey,Surrey,http://id.esd.org.uk/service/1465,Council expenditure,03/04/2017,RUTH HOUSE,DOMESTIC & GENERAL,72,FEES,"INSURANCE SALES,UNDERWRITING,AND PREMIUMS"
20/07/2017,http://opendatacommunities.org/id/county-council/surrey,Surrey,http://id.esd.org.uk/service/1465,Council expenditure,03/04/2017,RUTH HOUSE,FREEDOM LEISURE,230,TRAINING EXPENSES EXTERNAL GENERAL,GOVERNMENT SERVICES-NOT ELSEWHERE CLASSIFIED
20/07/2017,http://opendatacommunities.org/id/county-council/surrey,Surrey,http://id.esd.org.uk/service/1465,Council expenditure,03/04/2017,FAIRCROFT COMMUNITY HOME,TESCO STORE 2160,90.2,PURCHASE OF FOOD (RAW MATERIALS),"GROCERY STORES, SUPERMARKETS"
20/07/2017,http://opendatacommunities.org/id/county-council/surrey,Surrey,http://id.esd.org.uk/service/1465,Council expenditure,03/04/2017,MALLOW CRESCENT,TESCO STORE 2590,5.25,PURCHASE OF FOOD (RAW MATERIALS),"GROCERY STORES, SUPERMARKETS"
20/07/2017,http://opendatacommunities.org/id/county-council/surrey,Surrey,http://id.esd.org.uk/service/1465,Council expenditure,03/04/2017,MALLOW CRESCENT,TESCO STORE 2590,104.93,PURCHASE OF FOOD (RAW MATERIALS),"GROCERY STORES, SUPERMARKETS"
20/07/2017,http://opendatacommunities.org/id/county-council/surrey,Surrey,http://id.esd.org.uk/service/1465,Council expenditure,03/04/2017,KARIBU COMMUNITY HOME,WOOKEY HOLE,102,EDUC VISITS/HOLS/CAMPS/TOYS,TOURIST ATTRACTIONS AND EXHIBITS
20/07/2017,http://opendatacommunities.org/id/county-council/surrey,Surrey,http://id.esd.org.uk/service/1465,Council expenditure,03/04/2017,KARIBU COMMUNITY HOME,WAITROSE 315,91.64,PURCHASE OF FOOD (RAW MATERIALS),"GROCERY STORES, SUPERMARKETS"
20/07/2017,http://opendatacommunities.org/id/county-council/surrey,Surrey,http://id.esd.org.uk/service/1465,Council expenditure,03/04/2017,LIBERTAS COMMUNITY HOME,GUILDFORD LOCK & SAFE,9,FIXTURES AND FITTINGS,HARDWARE EQUIPMENT AND SUPPLIES
20/07/2017,http://opendatacommunities.org/id/county-council/surrey,Surrey,http://id.esd.org.uk/service/1465,Council expenditure,03/04/2017,LIBERTAS COMMUNITY HOME,C BREWER & SONS,52.49,DAY TO DAY MAINTENANCE,"BUILDING MATERIALS, LUMBER STORES"
20/07/2017,http://opendatacommunities.org/id/county-council/surrey,Surrey,http://id.esd.org.uk/service/1465,Council expenditure,03/04/2017,HOPE SERVICE - WEST,SAINSBURYS 0683,133.33,PURCHASE OF FOOD (RAW MATERIALS),"GROCERY STORES, SUPERMARKETS"
20/07/2017,http://opendatacommunities.org/id/county-council/surrey,Surrey,http://id.esd.org.uk/service/1465,Council expenditure,03/04/2017,HOPE SERVICE - WEST,WICKES,9.88,CURRICULUM CONSUMABLES,"BUILDING MATERIALS, LUMBER STORES"
20/07/2017,http://opendatacommunities.org/id/county-council/surrey,Surrey,http://id.esd.org.uk/service/1465,Council expenditure,03/04/2017,PROGRESSION SURREY ARTS,ROYAL BOROUGH OF KINGS,196.02,FEES,GOVERNMENT SERVICES-NOT ELSEWHERE CLASSIFIED
20/07/2017,http://opendatacommunities.org/id/county-council/surrey,Surrey,http://id.esd.org.uk/service/1465,Council expenditure,03/04/2017,LIBERTAS COMMUNITY HOME,NURO,3.5,REFRESHMENT COSTS,"EATING PLACES, RESTAURANTS"
20/07/2017,http://opendatacommunities.org/id/county-council/surrey,Surrey,http://id.esd.org.uk/service/1465,Council expenditure,03/04/2017,LIBERTAS COMMUNITY HOME,NURO,64.9,REFRESHMENT COSTS,"EATING PLACES, RESTAURANTS"
20/07/2017,http://opendatacommunities.org/id/county-council/surrey,Surrey,http://id.esd.org.uk/service/1465,Council expenditure,03/04/2017,STRATEGIC TREE MAINTENANCE - PR,AMAZON UK MARKETPLACE,12.99,EQUIPMENT,BOOK STORES
20/07/2017,http://opendatacommunities.org/id/county-council/surrey,Surrey,http://id.esd.org.uk/service/1465,Council expenditure,03/04/2017,HOPE SERVICE - WEST,SAINSBURYS SACAT(4409),3.2,PURCHASE OF FOOD (RAW MATERIALS),"GROCERY STORES, SUPERMARKETS"
20/07/2017,http://opendatacommunities.org/id/county-council/surrey,Surrey,http://id.esd.org.uk/service/1465,Council expenditure,03/04/2017,HOPE SERVICE - WEST,B & Q 1029,3.76,CURRICULUM EQUIPMENT AND FURNITURE,"BUILDING MATERIALS, LUMBER STORES"
20/07/2017,http://opendatacommunities.org/id/county-council/surrey,Surrey,http://id.esd.org.uk/service/1465,Council expenditure,03/04/2017,SOLD ESTATES MANAGEMENT,B & Q 1018,64.99,DAY TO DAY MAINTENANCE,"BUILDING MATERIALS, LUMBER STORES"
20/07/2017,http://opendatacommunities.org/id/county-council/surrey,Surrey,http://id.esd.org.uk/service/1465,Council expenditure,03/04/2017,SOLD ESTATES MANAGEMENT,LEE SANITATION LTD,28.6,DAY TO DAY MAINTENANCE,BOAT DEALERS
20/07/2017,http://opendatacommunities.org/id/county-council/surrey,Surrey,http://id.esd.org.uk/service/1465,Council expenditure,03/04/2017,PE/CDT MAINTENANCE OVERHEADS,WWW.CONCEPT2.CO.UK,227.98,ITEMS PURCHASED FOR RE-SALE,SPORTING GOODS STORES
20/07/2017,http://opendatacommunities.org/id/county-council/surrey,Surrey,http://id.esd.org.uk/service/1465,Council expenditure,03/04/2017,PE/CDT MAINTENANCE OVERHEADS,STAPLES UK,41.47,STATIONERY,"OFFICE, SCHOOL SUPPLY, AND STATIONERY STORES"
20/07/2017,http://opendatacommunities.org/id/county-council/surrey,Surrey,http://id.esd.org.uk/service/1465,Council expenditure,03/04/2017,HOPE SERVICE - WEST,SAINSBURYS LOC 4409,6.72,POSTAGE AND COURIER CHARGES,"GROCERY STORES, SUPERMARKETS"
20/07/2017,http://opendatacommunities.org/id/county-council/surrey,Surrey,http://id.esd.org.uk/service/1465,Council expenditure,03/04/2017,TRANSPORT,PAYPAL  FDSCORPORAT,29.99,EQUIPMENT,"ANTIQUE SHOPS-SALES,REPAIRS,RESTORATION SERVICES"
20/07/2017,http://opendatacommunities.org/id/county-council/surrey,Surrey,http://id.esd.org.uk/service/1465,Council expenditure,03/04/2017,CAMHS SOCIAL WORKERS,LOVE2SHOP.CO.UK,706.25,EDUC VISITS/HOLS/CAMPS/TOYS,"ASSOCIATIONS-CIVIC, SOCIAL, AND FRATERNAL"
20/07/2017,http://opendatacommunities.org/id/county-council/surrey,Surrey,http://id.esd.org.uk/service/1465,Council expenditure,03/04/2017,FAIRCROFT COMMUNITY HOME,HOMEBASE LTD 067,52.42,EQUIPMENT,"BUILDING MATERIALS, LUMBER STORES"
20/07/2017,http://opendatacommunities.org/id/county-council/surrey,Surrey,http://id.esd.org.uk/service/1465,Council expenditure,03/04/2017,WOODLANDS COMMUNITY HOME,AMAZON PRIME,7.99,EDUC VISITS/HOLS/CAMPS/TOYS,DIRECT MARKETING-CONTINUITY/SUBSCRIPTION MERCHANTS
20/07/2017,http://opendatacommunities.org/id/county-council/surrey,Surrey,http://id.esd.org.uk/service/1465,Council expenditure,04/04/2017,NW CARE - LAC,GRO HM PASSPORT OFFICE,-9.25,CHILDREN ACT SEC 17 PAYMENTS,GOVERNMENT SERVICES-NOT ELSEWHERE CLASSIFIED
20/07/2017,http://opendatacommunities.org/id/county-council/surrey,Surrey,http://id.esd.org.uk/service/1465,Council expenditure,04/04/2017,NW CARE - LAC,GRO HM PASSPORT OFFICE,-9.25,CHILDREN ACT SEC 17 PAYMENTS,GOVERNMENT SERVICES-NOT ELSEWHERE CLASSIFIED
20/07/2017,http://opendatacommunities.org/id/county-council/surrey,Surrey,http://id.esd.org.uk/service/1465,Council expenditure,04/04/2017,NW CARE - LAC,GRO HM PASSPORT OFFICE,-9.25,CHILDREN ACT SEC 17 PAYMENTS,GOVERNMENT SERVICES-NOT ELSEWHERE CLASSIFIED
20/07/2017,http://opendatacommunities.org/id/county-council/surrey,Surrey,http://id.esd.org.uk/service/1465,Council expenditure,04/04/2017,NW CARE - LAC,GRO HM PASSPORT OFFICE,-9.25,CHILDREN ACT SEC 17 PAYMENTS,GOVERNMENT SERVICES-NOT ELSEWHERE CLASSIFIED
20/07/2017,http://opendatacommunities.org/id/county-council/surrey,Surrey,http://id.esd.org.uk/service/1465,Council expenditure,04/04/2017,NW CARE - LAC,GRO HM PASSPORT OFFICE,-9.25,CHILDREN ACT SEC 17 PAYMENTS,GOVERNMENT SERVICES-NOT ELSEWHERE CLASSIFIED
20/07/2017,http://opendatacommunities.org/id/county-council/surrey,Surrey,http://id.esd.org.uk/service/1465,Council expenditure,04/04/2017,CHEYNE WALK COMMUNITY HOME,BRIGHTON & HOVE CITY C,6,NON-STAFF RELATED TRANSPORT COSTS,AUTOMOBILE PARKING LOTS AND GARAGES
20/07/2017,http://opendatacommunities.org/id/county-council/surrey,Surrey,http://id.esd.org.uk/service/1465,Council expenditure,04/04/2017,PERFORMING ARTS LIBRARY,RHINEGOLD PUB,48.95,SUBSCRIPTIONS,"OFFICE, SCHOOL SUPPLY, AND STATIONERY STORES"
20/07/2017,http://opendatacommunities.org/id/county-council/surrey,Surrey,http://id.esd.org.uk/service/1465,Council expenditure,04/04/2017,LOCAL DELIVERY GROUP,MEON LTD,580.64,EQUIPMENT,BUSINESS SERVICES-NOT ELSEWHERE CLASSIFIED
20/07/2017,http://opendatacommunities.org/id/county-council/surrey,Surrey,http://id.esd.org.uk/service/1465,Council expenditure,04/04/2017,BURBANK COMMUNITY HOME,BP MEMBURY EAST MWSA,3.74,REFRESHMENT COSTS,SERVICE STATIONS WITH OR WITHOUT ANCILLARY SERVICE
20/07/2017,http://opendatacommunities.org/id/county-council/surrey,Surrey,http://id.esd.org.uk/service/1465,Council expenditure,04/04/2017,TRANSPORT,PREMIER VANGUARD L,721.15,OPERATIONAL FIRE EQUIPMENT,"OFFICE, SCHOOL SUPPLY, AND STATIONERY STORES"
20/07/2017,http://opendatacommunities.org/id/county-council/surrey,Surrey,http://id.esd.org.uk/service/1465,Council expenditure,04/04/2017,BURBANK COMMUNITY HOME,AMAZON UK RETAIL AMAZO,27.97,EQUIPMENT,MISCELLANEOUS AND SPECIALTY RETAIL STORES
20/07/2017,http://opendatacommunities.org/id/county-council/surrey,Surrey,http://id.esd.org.uk/service/1465,Council expenditure,04/04/2017,EGHAM YC,CO-OP GROUP 310379,10,PURCHASE OF FOOD (RAW MATERIALS),"GROCERY STORES, SUPERMARKETS"
20/07/2017,http://opendatacommunities.org/id/county-council/surrey,Surrey,http://id.esd.org.uk/service/1465,Council expenditure,04/04/2017,WORKPLACE COMMERCIAL TEAM,BOOTS 0849,17.28,EQUIPMENT,"DRUG STORES, PHARMACIES"
20/07/2017,http://opendatacommunities.org/id/county-council/surrey,Surrey,http://id.esd.org.uk/service/1465,Council expenditure,04/04/2017,WORKPLACE COMMERCIAL TEAM,WWW.VIKING-DIRECT.CO.U,62.66,EQUIPMENT,STATIONERY/OFFICE SUPPLIES/PRINTING & WRITING PAP.
20/07/2017,http://opendatacommunities.org/id/county-council/surrey,Surrey,http://id.esd.org.uk/service/1465,Council expenditure,04/04/2017,WALTON YC,SAINSBURYS SACAT 2663,7,E25 CATERING EQUIPMENT,"GROCERY STORES, SUPERMARKETS"
20/07/2017,http://opendatacommunities.org/id/county-council/surrey,Surrey,http://id.esd.org.uk/service/1465,Council expenditure,04/04/2017,FRIMLEY YC,ONE STOP 1396,4.5,REFRESHMENT COSTS,"GROCERY STORES, SUPERMARKETS"
20/07/2017,http://opendatacommunities.org/id/county-council/surrey,Surrey,http://id.esd.org.uk/service/1465,Council expenditure,04/04/2017,FAIRCROFT COMMUNITY HOME,ORSO BIANCO        152,58.74,EDUC VISITS/HOLS/CAMPS/TOYS,"EATING PLACES, RESTAURANTS"
20/07/2017,http://opendatacommunities.org/id/county-council/surrey,Surrey,http://id.esd.org.uk/service/1465,Council expenditure,04/04/2017,FAIRCROFT COMMUNITY HOME,PARAFARMACIA       049,11.49,EDUC VISITS/HOLS/CAMPS/TOYS,"DRUG STORES, PHARMACIES"
20/07/2017,http://opendatacommunities.org/id/county-council/surrey,Surrey,http://id.esd.org.uk/service/1465,Council expenditure,04/04/2017,NW CARE - LAC,TRAINLINE,66.81,NON-STAFF RELATED TRANSPORT COSTS,PASSENGER RAILWAYS
20/07/2017,http://opendatacommunities.org/id/county-council/surrey,Surrey,http://id.esd.org.uk/service/1465,Council expenditure,04/04/2017,SE CARE - LAC,CRAGGY ISLAND LTD,40,VENUE COSTS (INCLUDING HIRE OF ROOMS),"CLUBS-CNTRY,MBRSHIP(ATHLET,REC,SPRTS,PRIVATE GOLF"
20/07/2017,http://opendatacommunities.org/id/county-council/surrey,Surrey,http://id.esd.org.uk/service/1465,Council expenditure,04/04/2017,CS BUSINESS SUPPORT WEST,AMAZON UK MARKETPLACE,14.74,EQUIPMENT,BOOK STORES
20/07/2017,http://opendatacommunities.org/id/county-council/surrey,Surrey,http://id.esd.org.uk/service/1465,Council expenditure,04/04/2017,STANWELL YOUTH CLUB,SAINSBURYS SACAT 4981,7.85,REFRESHMENT COSTS,"GROCERY STORES, SUPERMARKETS"
20/07/2017,http://opendatacommunities.org/id/county-council/surrey,Surrey,http://id.esd.org.uk/service/1465,Council expenditure,04/04/2017,ACL CENTRAL EXPENDITURE,TESCO DIRECT,-5,EQUIPMENT,MISCELLANEOUS AND SPECIALTY RETAIL STORES
20/07/2017,http://opendatacommunities.org/id/county-council/surrey,Surrey,http://id.esd.org.uk/service/1465,Council expenditure,04/04/2017,MULBERRY YC,SAINSBURYS SACAT 0764,5.65,PURCHASE OF FOOD (RAW MATERIALS),"GROCERY STORES, SUPERMARKETS"
20/07/2017,http://opendatacommunities.org/id/county-council/surrey,Surrey,http://id.esd.org.uk/service/1465,Council expenditure,04/04/2017,MULBERRY YC,ORIGINAL FACTORY S,20,"CLOTHING, UNIFORM AND LAUNDRY",DEPARTMENT STORES
20/07/2017,http://opendatacommunities.org/id/county-council/surrey,Surrey,http://id.esd.org.uk/service/1465,Council expenditure,04/04/2017,THE BRIDGE YC,TESCO STORE 2812,12.45,PURCHASE OF FOOD (RAW MATERIALS),"GROCERY STORES, SUPERMARKETS"
20/07/2017,http://opendatacommunities.org/id/county-council/surrey,Surrey,http://id.esd.org.uk/service/1465,Council expenditure,04/04/2017,BURBANK COMMUNITY HOME,BEEFEATER40011205,29.82,EDUC VISITS/HOLS/CAMPS/TOYS,"EATING PLACES, RESTAURANTS"
20/07/2017,http://opendatacommunities.org/id/county-council/surrey,Surrey,http://id.esd.org.uk/service/1465,Council expenditure,04/04/2017,CHEYNE WALK COMMUNITY HOME,HOMEBASE LTD 087,77.98,EQUIPMENT,"BUILDING MATERIALS, LUMBER STORES"
20/07/2017,http://opendatacommunities.org/id/county-council/surrey,Surrey,http://id.esd.org.uk/service/1465,Council expenditure,04/04/2017,CHEYNE WALK COMMUNITY HOME,WAITROSE 527,18.16,PURCHASE OF FOOD (RAW MATERIALS),"GROCERY STORES, SUPERMARKETS"
20/07/2017,http://opendatacommunities.org/id/county-council/surrey,Surrey,http://id.esd.org.uk/service/1465,Council expenditure,04/04/2017,ACL CENTRAL EXPENDITURE,AMAZON UK MARKETPLACE,38.97,EQUIPMENT,BOOK STORES
20/07/2017,http://opendatacommunities.org/id/county-council/surrey,Surrey,http://id.esd.org.uk/service/1465,Council expenditure,04/04/2017,BURBANK COMMUNITY HOME,WELCOME BREAK STARBUCK,9.65,REFRESHMENT COSTS,"MISC FOOD STORE-CONVENIENCE,MRKT,SPLTY,VENDNG MACS"
20/07/2017,http://opendatacommunities.org/id/county-council/surrey,Surrey,http://id.esd.org.uk/service/1465,Council expenditure,04/04/2017,SOLD ESTATES MANAGEMENT,NATIONAL TRUST,270,VENUE COSTS (INCLUDING HIRE OF ROOMS),"ORGANIZATIONS, CHARITABLE AND SOCIAL SERVICES"
20/07/2017,http://opendatacommunities.org/id/county-council/surrey,Surrey,http://id.esd.org.uk/service/1465,Council expenditure,04/04/2017,CLOSED LANDFILL,SHORTS GROUP LTD,300,UPKEEP OF GROUNDS,BUSINESS SERVICES-NOT ELSEWHERE CLASSIFIED
20/07/2017,http://opendatacommunities.org/id/county-council/surrey,Surrey,http://id.esd.org.uk/service/1465,Council expenditure,04/04/2017,READY FOR WORK YSS,VUE NCS CITB HS&E TEST,19.5,EDUC VISITS/HOLS/CAMPS/TOYS,SCHOOLS & EDUCATIONAL SVC-NOT ELSEWHERE CLASSIFIED
20/07/2017,http://opendatacommunities.org/id/county-council/surrey,Surrey,http://id.esd.org.uk/service/1465,Council expenditure,04/04/2017,READY FOR WORK YSS,VUE NCS CITB HS&E TEST,19.5,EDUC VISITS/HOLS/CAMPS/TOYS,SCHOOLS & EDUCATIONAL SVC-NOT ELSEWHERE CLASSIFIED
20/07/2017,http://opendatacommunities.org/id/county-council/surrey,Surrey,http://id.esd.org.uk/service/1465,Council expenditure,04/04/2017,RUTH HOUSE,AMAZON UK RETAIL AMAZO,17.99,BOOKS,MISCELLANEOUS AND SPECIALTY RETAIL STORES
20/07/2017,http://opendatacommunities.org/id/county-council/surrey,Surrey,http://id.esd.org.uk/service/1465,Council expenditure,04/04/2017,FAIRCROFT COMMUNITY HOME,TESCO STORE 2160,134.6,PURCHASE OF FOOD (RAW MATERIALS),"GROCERY STORES, SUPERMARKETS"
20/07/2017,http://opendatacommunities.org/id/county-council/surrey,Surrey,http://id.esd.org.uk/service/1465,Council expenditure,04/04/2017,MALLOW CRESCENT,TESCO STORE 2590,-1,PURCHASE OF FOOD (RAW MATERIALS),"GROCERY STORES, SUPERMARKETS"
20/07/2017,http://opendatacommunities.org/id/county-council/surrey,Surrey,http://id.esd.org.uk/service/1465,Council expenditure,04/04/2017,KARIBU COMMUNITY HOME,LEL- COSTA,20.15,PURCHASE OF FOOD (RAW MATERIALS),RECREATION SERVICES (NOT ELSEWHERE CLASSIFIED)
20/07/2017,http://opendatacommunities.org/id/county-council/surrey,Surrey,http://id.esd.org.uk/service/1465,Council expenditure,04/04/2017,B & C CHARGEABLE BUSINESS ADVICE        ,TUV SUD LIMITED,"1,710.00",FEES,"ARCHITECTURAL, ENGINEERING, AND SURVEYING SERVICES"
20/07/2017,http://opendatacommunities.org/id/county-council/surrey,Surrey,http://id.esd.org.uk/service/1465,Council expenditure,04/04/2017,PARK HALL RESIDENTIAL CARE,WILKO.COM,208,DAY TO DAY MAINTENANCE,HOUSEHOLD APPLIANCE STORES
20/07/2017,http://opendatacommunities.org/id/county-council/surrey,Surrey,http://id.esd.org.uk/service/1465,Council expenditure,04/04/2017,SURREY HEATH CMHRS CARE,HMCTS-SURREY125,75,FEES,FINES
20/07/2017,http://opendatacommunities.org/id/county-council/surrey,Surrey,http://id.esd.org.uk/service/1465,Council expenditure,04/04/2017,LIBERTAS COMMUNITY HOME,BLUE REEF AQUARIUM,58.05,EDUC VISITS/HOLS/CAMPS/TOYS,"AQUARIUMS, DOLPHINARIUMS, AND SEAQUARIUMS"
20/07/2017,http://opendatacommunities.org/id/county-council/surrey,Surrey,http://id.esd.org.uk/service/1465,Council expenditure,04/04/2017,HOLLAND CLOSE RESIDENTIAL HOME,TESCO DIRECT,-9.99,REMOVAL EXPENSES,MISCELLANEOUS AND SPECIALTY RETAIL STORES
20/07/2017,http://opendatacommunities.org/id/county-council/surrey,Surrey,http://id.esd.org.uk/service/1465,Council expenditure,04/04/2017,DOWNLANDS COUNTRYSIDE PROJECT,NORTHPOINT VET SERVICE,113.1,FEES,VETERINARY SERVICES
20/07/2017,http://opendatacommunities.org/id/county-council/surrey,Surrey,http://id.esd.org.uk/service/1465,Council expenditure,04/04/2017,CYWS COMMISSIONING,ROWES STATIONERS,6.34,CURRICULUM CONSUMABLES,"OFFICE, SCHOOL SUPPLY, AND STATIONERY STORES"
20/07/2017,http://opendatacommunities.org/id/county-council/surrey,Surrey,http://id.esd.org.uk/service/1465,Council expenditure,04/04/2017,"SE REF, ASS & INT SERVICE - HUB 2",CROSSBOW EDUCATION,19.68,EQUIPMENT,"SCHOOLS, CORRESPONDENCE"
20/07/2017,http://opendatacommunities.org/id/county-council/surrey,Surrey,http://id.esd.org.uk/service/1465,Council expenditure,04/04/2017,FOSTERING SERVICE CENTRAL COSTS,RNIB CHARITY,41,STATIONERY,DENTAL/LAB/MED/OPHTHALMIC HOSP EQUIP & SUPPLIES
20/07/2017,http://opendatacommunities.org/id/county-council/surrey,Surrey,http://id.esd.org.uk/service/1465,Council expenditure,04/04/2017,NW CARE - LAC,GRO HM PASSPORT OFFICE,46.25,CHILDREN ACT SEC 17 PAYMENTS,GOVERNMENT SERVICES-NOT ELSEWHERE CLASSIFIED
20/07/2017,http://opendatacommunities.org/id/county-council/surrey,Surrey,http://id.esd.org.uk/service/1465,Council expenditure,04/04/2017,NW CARE - LAC,TRAINLINE,80.33,NON-STAFF RELATED TRANSPORT COSTS,PASSENGER RAILWAYS
20/07/2017,http://opendatacommunities.org/id/county-council/surrey,Surrey,http://id.esd.org.uk/service/1465,Council expenditure,04/04/2017,ACL CENTRAL EXPENDITURE,WWW.NISBETS.COM,89.52,EQUIPMENT,DIRECT MARKETING-CATALOG MERCHANTS
20/07/2017,http://opendatacommunities.org/id/county-council/surrey,Surrey,http://id.esd.org.uk/service/1465,Council expenditure,04/04/2017,DOWNLANDS COUNTRYSIDE PROJECT,NORTHPOINT VET SERVICE,181.04,MEDICAL EXPENSES,VETERINARY SERVICES
20/07/2017,http://opendatacommunities.org/id/county-council/surrey,Surrey,http://id.esd.org.uk/service/1465,Council expenditure,04/04/2017,CAMHS SOCIAL WORKERS,BAKER ROSS LTD,29.89,EDUC VISITS/HOLS/CAMPS/TOYS,"ARTIST SUPPLY STORES, CRAFT SHOPS"
20/07/2017,http://opendatacommunities.org/id/county-council/surrey,Surrey,http://id.esd.org.uk/service/1465,Council expenditure,04/04/2017,CAMHS SOCIAL WORKERS,BANNER BUZZ,180.78,EDUC VISITS/HOLS/CAMPS/TOYS,MISCELLANEOUS PUBLISHING AND PRINTING
20/07/2017,http://opendatacommunities.org/id/county-council/surrey,Surrey,http://id.esd.org.uk/service/1465,Council expenditure,04/04/2017,SURREY HILLS AONB,BIKEMAPS ONLINE,10.5,BOOKS,BOOK STORES
20/07/2017,http://opendatacommunities.org/id/county-council/surrey,Surrey,http://id.esd.org.uk/service/1465,Council expenditure,04/04/2017,FAIRCROFT COMMUNITY HOME,GI AD  2006 SAS,178.01,EDUC VISITS/HOLS/CAMPS/TOYS,"BAR,LOUNGE,DISCO,NIGHTCLUB,TAVERN-ALCOHOLIC DRINKS"
20/07/2017,http://opendatacommunities.org/id/county-council/surrey,Surrey,http://id.esd.org.uk/service/1465,Council expenditure,04/04/2017,FAIRCROFT COMMUNITY HOME,BAR RISTORANTE ASS 056,53.01,EDUC VISITS/HOLS/CAMPS/TOYS,"BAR,LOUNGE,DISCO,NIGHTCLUB,TAVERN-ALCOHOLIC DRINKS"
20/07/2017,http://opendatacommunities.org/id/county-council/surrey,Surrey,http://id.esd.org.uk/service/1465,Council expenditure,04/04/2017,BURBANK COMMUNITY HOME,SUPERDRY,39.99,"CLOTHING, UNIFORM AND LAUNDRY",WOMEN'S ACCESSORY AND SPECIALTY STORES
20/07/2017,http://opendatacommunities.org/id/county-council/surrey,Surrey,http://id.esd.org.uk/service/1465,Council expenditure,04/04/2017,MALLOW CRESCENT,AMAZON UK MARKETPLACE,13.84,EQUIPMENT,BOOK STORES
20/07/2017,http://opendatacommunities.org/id/county-council/surrey,Surrey,http://id.esd.org.uk/service/1465,Council expenditure,04/04/2017,HILLSIDE,SAINSBURYS 0675,52.55,PURCHASE OF FOOD (RAW MATERIALS),"GROCERY STORES, SUPERMARKETS"
20/07/2017,http://opendatacommunities.org/id/county-council/surrey,Surrey,http://id.esd.org.uk/service/1465,Council expenditure,04/04/2017,WOODLANDS COMMUNITY HOME,PROVISIONS (2.24%),2.35,PURCHASE OF FOOD (RAW MATERIALS),"GROCERY STORES, SUPERMARKETS"
20/07/2017,http://opendatacommunities.org/id/county-council/surrey,Surrey,http://id.esd.org.uk/service/1465,Council expenditure,04/04/2017,WOODLANDS COMMUNITY HOME,PROVISIONS (97.76%),102.52,PURCHASE OF FOOD (RAW MATERIALS),"GROCERY STORES, SUPERMARKETS"
20/07/2017,http://opendatacommunities.org/id/county-council/surrey,Surrey,http://id.esd.org.uk/service/1465,Council expenditure,04/04/2017,PARKING TEAM,CELSUR PLASTICS LT,44.82,STATIONERY,"OFFICE, SCHOOL SUPPLY, AND STATIONERY STORES"
20/07/2017,http://opendatacommunities.org/id/county-council/surrey,Surrey,http://id.esd.org.uk/service/1465,Council expenditure,04/04/2017,STRATEGIC TREE MAINTENANCE - PR,AMAZON UK MARKETPLACE,28.99,EQUIPMENT,BOOK STORES
20/07/2017,http://opendatacommunities.org/id/county-council/surrey,Surrey,http://id.esd.org.uk/service/1465,Council expenditure,04/04/2017,KARIBU COMMUNITY HOME,LEL- COSTA,5.8,PURCHASE OF FOOD (RAW MATERIALS),RECREATION SERVICES (NOT ELSEWHERE CLASSIFIED)
20/07/2017,http://opendatacommunities.org/id/county-council/surrey,Surrey,http://id.esd.org.uk/service/1465,Council expenditure,04/04/2017,KARIBU COMMUNITY HOME,WAITROSE 315,27.32,PURCHASE OF FOOD (RAW MATERIALS),"GROCERY STORES, SUPERMARKETS"
20/07/2017,http://opendatacommunities.org/id/county-council/surrey,Surrey,http://id.esd.org.uk/service/1465,Council expenditure,04/04/2017,LIBERTAS COMMUNITY HOME,THE BAKERY SHOP,34.7,PURCHASE OF FOOD (RAW MATERIALS),BAKERIES
20/07/2017,http://opendatacommunities.org/id/county-council/surrey,Surrey,http://id.esd.org.uk/service/1465,Council expenditure,04/04/2017,LIBERTAS COMMUNITY HOME,SQUIRES GARDEN CENTRE,28.81,EQUIPMENT,LAWN AND GARDEN SUPPLY STORES
20/07/2017,http://opendatacommunities.org/id/county-council/surrey,Surrey,http://id.esd.org.uk/service/1465,Council expenditure,04/04/2017,HERITAGE ENTERPRISE (SCAU),WWW.GREEN-TECH.CO.UK,52.2,EQUIPMENT,BUSINESS SERVICES-NOT ELSEWHERE CLASSIFIED
20/07/2017,http://opendatacommunities.org/id/county-council/surrey,Surrey,http://id.esd.org.uk/service/1465,Council expenditure,04/04/2017,HILLSIDE,SAINSBURYS SACAT 0784,6.4,PURCHASE OF FOOD (RAW MATERIALS),"GROCERY STORES, SUPERMARKETS"
20/07/2017,http://opendatacommunities.org/id/county-council/surrey,Surrey,http://id.esd.org.uk/service/1465,Council expenditure,04/04/2017,SAP COMPETENCY CENTRE,AMAZON MKTPLACE PMTS,401.64,COMPUTER SERVICES,MISCELLANEOUS AND SPECIALTY RETAIL STORES
20/07/2017,http://opendatacommunities.org/id/county-council/surrey,Surrey,http://id.esd.org.uk/service/1465,Council expenditure,04/04/2017,FAIRCROFT COMMUNITY HOME,WWW.GROUPON.CO.UK,6.98,EQUIPMENT,"BUYING/SHOPPING CLUBS, SERVICES"
20/07/2017,http://opendatacommunities.org/id/county-council/surrey,Surrey,http://id.esd.org.uk/service/1465,Council expenditure,05/04/2017,TRANSPORT,TAIL LIFT SERVICES (ST,181.8,VEHICLE REPAIRS AND MAINTENANCE,AUTOMOTIVE BODY REPAIR SHOPS
20/07/2017,http://opendatacommunities.org/id/county-council/surrey,Surrey,http://id.esd.org.uk/service/1465,Council expenditure,05/04/2017,DEMOCRATIC SERVICES TEAM,POST OFFICE SHOP,112.68,STATIONERY,POSTAL SERVICES-GOVERNMENT ONLY
20/07/2017,http://opendatacommunities.org/id/county-council/surrey,Surrey,http://id.esd.org.uk/service/1465,Council expenditure,05/04/2017,FAIRCROFT COMMUNITY HOME,SCUOLA SCI SAUZE SPORT,106.11,EDUC VISITS/HOLS/CAMPS/TOYS,SCHOOLS & EDUCATIONAL SVC-NOT ELSEWHERE CLASSIFIED
20/07/2017,http://opendatacommunities.org/id/county-council/surrey,Surrey,http://id.esd.org.uk/service/1465,Council expenditure,05/04/2017,CHEYNE WALK COMMUNITY HOME,JD SPORTS INTERNET,43.99,3RD PARTY PAYMENTS PRIVATE INDIV,SPORTING GOODS STORES
20/07/2017,http://opendatacommunities.org/id/county-council/surrey,Surrey,http://id.esd.org.uk/service/1465,Council expenditure,05/04/2017,CHEYNE WALK COMMUNITY HOME,SPORTSDIRECT 91,8,"CLOTHING, UNIFORM AND LAUNDRY",SPORTING GOODS STORES
20/07/2017,http://opendatacommunities.org/id/county-council/surrey,Surrey,http://id.esd.org.uk/service/1465,Council expenditure,05/04/2017,CHEYNE WALK COMMUNITY HOME,SPORTSDIRECT 91,80.02,"CLOTHING, UNIFORM AND LAUNDRY",SPORTING GOODS STORES
20/07/2017,http://opendatacommunities.org/id/county-council/surrey,Surrey,http://id.esd.org.uk/service/1465,Council expenditure,05/04/2017,NW CARE - CP & COURT LAC,SURREY CC CARD PAY,11,FEES,COMPUTER NETWORK/INFORMATION SERVICES
20/07/2017,http://opendatacommunities.org/id/county-council/surrey,Surrey,http://id.esd.org.uk/service/1465,Council expenditure,05/04/2017,CHEYNE WALK COMMUNITY HOME,CHESSINGTON WORLD,142,EDUC VISITS/HOLS/CAMPS/TOYS,TOURIST ATTRACTIONS AND EXHIBITS
20/07/2017,http://opendatacommunities.org/id/county-council/surrey,Surrey,http://id.esd.org.uk/service/1465,Council expenditure,05/04/2017,MALLOW CRESCENT,TESCO STORE 2590,8.87,PURCHASE OF FOOD (RAW MATERIALS),"GROCERY STORES, SUPERMARKETS"
20/07/2017,http://opendatacommunities.org/id/county-council/surrey,Surrey,http://id.esd.org.uk/service/1465,Council expenditure,05/04/2017,MALLOW CRESCENT,TESCO STORE 2590,110.48,PURCHASE OF FOOD (RAW MATERIALS),"GROCERY STORES, SUPERMARKETS"
20/07/2017,http://opendatacommunities.org/id/county-council/surrey,Surrey,http://id.esd.org.uk/service/1465,Council expenditure,05/04/2017,DOWNLANDS COUNTRYSIDE PROJECT,MOLE COUNTRY STORES,2.34,EQUIPMENT,AGRICULTURAL COOPERATIVES
20/07/2017,http://opendatacommunities.org/id/county-council/surrey,Surrey,http://id.esd.org.uk/service/1465,Council expenditure,05/04/2017,EXTENDED HOPE,AMAZON UK MARKETPLACE,23.8,CLEANING AND DOMESTIC SUPPLIES,BOOK STORES
20/07/2017,http://opendatacommunities.org/id/county-council/surrey,Surrey,http://id.esd.org.uk/service/1465,Council expenditure,05/04/2017,LIBERTAS COMMUNITY HOME,SAINSBURYS SACAT 2209,8.55,PURCHASE OF FOOD (RAW MATERIALS),"GROCERY STORES, SUPERMARKETS"
20/07/2017,http://opendatacommunities.org/id/county-council/surrey,Surrey,http://id.esd.org.uk/service/1465,Council expenditure,05/04/2017,HOLLAND CLOSE RESIDENTIAL HOME,AMAZON UK RETAIL AMAZO,39.99,EQUIPMENT,MISCELLANEOUS AND SPECIALTY RETAIL STORES
20/07/2017,http://opendatacommunities.org/id/county-council/surrey,Surrey,http://id.esd.org.uk/service/1465,Council expenditure,05/04/2017,TRANSPORT,PAYPAL  JACKADLARDS,10.99,DAY TO DAY MAINTENANCE,ART DEALERS AND GALLERIES
20/07/2017,http://opendatacommunities.org/id/county-council/surrey,Surrey,http://id.esd.org.uk/service/1465,Council expenditure,05/04/2017,TRANSPORT,JMS JANITORIAL SUPPLIE,3.62,DAY TO DAY MAINTENANCE,"CLEANING AND MAINTENANCE, JANITORIAL SERVICES"
20/07/2017,http://opendatacommunities.org/id/county-council/surrey,Surrey,http://id.esd.org.uk/service/1465,Council expenditure,05/04/2017,MAYFORD CENTRE - BUSINESS,GUILDFORD LOCK & SAFE,20.7,SECURITY ALARM MAINTENANCE,HARDWARE EQUIPMENT AND SUPPLIES
20/07/2017,http://opendatacommunities.org/id/county-council/surrey,Surrey,http://id.esd.org.uk/service/1465,Council expenditure,05/04/2017,SUSTAINABILITY GROUP,WWW.ELMBRIDGE.GOV.UK,198.12,EQUIPMENT,GOVERNMENT SERVICES-NOT ELSEWHERE CLASSIFIED
20/07/2017,http://opendatacommunities.org/id/county-council/surrey,Surrey,http://id.esd.org.uk/service/1465,Council expenditure,05/04/2017,SOLD DAY TO DAY OPERATIONS,AMAZON UK MARKETPLACE,6.99,EQUIPMENT,BOOK STORES
20/07/2017,http://opendatacommunities.org/id/county-council/surrey,Surrey,http://id.esd.org.uk/service/1465,Council expenditure,05/04/2017,PE/CDT MAINTENANCE OVERHEADS,WICKES,22.08,EQUIPMENT,"BUILDING MATERIALS, LUMBER STORES"
20/07/2017,http://opendatacommunities.org/id/county-council/surrey,Surrey,http://id.esd.org.uk/service/1465,Council expenditure,05/04/2017,BURBANK COMMUNITY HOME,SAINSBURYS TO YOU 0686,301.81,PURCHASE OF FOOD (RAW MATERIALS),"GROCERY STORES, SUPERMARKETS"
20/07/2017,http://opendatacommunities.org/id/county-council/surrey,Surrey,http://id.esd.org.uk/service/1465,Council expenditure,05/04/2017,PE/CDT MAINTENANCE OVERHEADS,MARGNOR FASTENERS,30.58,EQUIPMENT,MISCELLANEOUS AND SPECIALTY RETAIL STORES
20/07/2017,http://opendatacommunities.org/id/county-council/surrey,Surrey,http://id.esd.org.uk/service/1465,Council expenditure,05/04/2017,RUTH HOUSE,AMAZON UK MARKETPLACE,29.48,EQUIPMENT,BOOK STORES
20/07/2017,http://opendatacommunities.org/id/county-council/surrey,Surrey,http://id.esd.org.uk/service/1465,Council expenditure,05/04/2017,PROPERTY OPERATIONS TEAM,SCREWFIX DIRECT,130.31,PURCHASE OF BUILDING MATERIALS,"BUILDING MATERIALS, LUMBER STORES"
20/07/2017,http://opendatacommunities.org/id/county-council/surrey,Surrey,http://id.esd.org.uk/service/1465,Council expenditure,05/04/2017,MALLOW CRESCENT,PARKDEAN HOLIDAY P,100.48,EDUC VISITS/HOLS/CAMPS/TOYS,CAMPGROUNDS AND TRAILER PARKS
20/07/2017,http://opendatacommunities.org/id/county-council/surrey,Surrey,http://id.esd.org.uk/service/1465,Council expenditure,05/04/2017,PROGRESSION SURREY ARTS,BONNERS LTD,192,VENUE COSTS (INCLUDING HIRE OF ROOMS),"MUSIC STORES-INSTRUMENTS, PIANOS, SHEET MUSIC"
20/07/2017,http://opendatacommunities.org/id/county-council/surrey,Surrey,http://id.esd.org.uk/service/1465,Council expenditure,05/04/2017,TARGETED INTERVENTION,TESCO STORE 3220,33.14,EDUC VISITS/HOLS/CAMPS/TOYS,"GROCERY STORES, SUPERMARKETS"
20/07/2017,http://opendatacommunities.org/id/county-council/surrey,Surrey,http://id.esd.org.uk/service/1465,Council expenditure,05/04/2017,NORTH EAST AREA TEAM,INSURANCECHOICE.CO,99,VEHICLE INSURANCE,"INSURANCE SALES,UNDERWRITING,AND PREMIUMS"
20/07/2017,http://opendatacommunities.org/id/county-council/surrey,Surrey,http://id.esd.org.uk/service/1465,Council expenditure,05/04/2017,CORPORATE GROUP - LEGAL SERVICES,BHCC-PAYPHONEPARKING,5.3,EXPENSES,AUTOMOBILE PARKING LOTS AND GARAGES
20/07/2017,http://opendatacommunities.org/id/county-council/surrey,Surrey,http://id.esd.org.uk/service/1465,Council expenditure,05/04/2017,CRANLEIGH YC,HOMEBASE LTD 305,3.49,EQUIPMENT,"BUILDING MATERIALS, LUMBER STORES"
20/07/2017,http://opendatacommunities.org/id/county-council/surrey,Surrey,http://id.esd.org.uk/service/1465,Council expenditure,05/04/2017,CRANLEIGH YC,HOMEBASE LTD 305,16.58,EQUIPMENT,"BUILDING MATERIALS, LUMBER STORES"
20/07/2017,http://opendatacommunities.org/id/county-council/surrey,Surrey,http://id.esd.org.uk/service/1465,Council expenditure,05/04/2017,CRANLEIGH YC,WAITROSE 216,1.47,PURCHASE OF FOOD (RAW MATERIALS),"GROCERY STORES, SUPERMARKETS"
20/07/2017,http://opendatacommunities.org/id/county-council/surrey,Surrey,http://id.esd.org.uk/service/1465,Council expenditure,05/04/2017,CRANLEIGH YC,WAITROSE 216,3.55,PURCHASE OF FOOD (RAW MATERIALS),"GROCERY STORES, SUPERMARKETS"
20/07/2017,http://opendatacommunities.org/id/county-council/surrey,Surrey,http://id.esd.org.uk/service/1465,Council expenditure,05/04/2017,HILLSIDE,SAINSBURYS 0675,46.7,PURCHASE OF FOOD (RAW MATERIALS),"GROCERY STORES, SUPERMARKETS"
20/07/2017,http://opendatacommunities.org/id/county-council/surrey,Surrey,http://id.esd.org.uk/service/1465,Council expenditure,05/04/2017,CHEYNE WALK COMMUNITY HOME,BURGER KING,14.08,PURCHASE OF FOOD (RAW MATERIALS),FAST FOOD RESTAURANTS
20/07/2017,http://opendatacommunities.org/id/county-council/surrey,Surrey,http://id.esd.org.uk/service/1465,Council expenditure,05/04/2017,KARIBU COMMUNITY HOME,EAST DEVON DISTRICT CO,3,NON-STAFF RELATED TRANSPORT COSTS,AUTOMOBILE PARKING LOTS AND GARAGES
20/07/2017,http://opendatacommunities.org/id/county-council/surrey,Surrey,http://id.esd.org.uk/service/1465,Council expenditure,05/04/2017,KARIBU COMMUNITY HOME,CLOCK TOWER CAFE SIDMO,26.5,PURCHASE OF FOOD (RAW MATERIALS),"EATING PLACES, RESTAURANTS"
20/07/2017,http://opendatacommunities.org/id/county-council/surrey,Surrey,http://id.esd.org.uk/service/1465,Council expenditure,05/04/2017,KARIBU COMMUNITY HOME,ASDA STORES 4408,21.53,PURCHASE OF FOOD (RAW MATERIALS),"GROCERY STORES, SUPERMARKETS"
20/07/2017,http://opendatacommunities.org/id/county-council/surrey,Surrey,http://id.esd.org.uk/service/1465,Council expenditure,05/04/2017,LIBERTAS COMMUNITY HOME,WAITROSE 216,23.91,PURCHASE OF FOOD (RAW MATERIALS),"GROCERY STORES, SUPERMARKETS"
20/07/2017,http://opendatacommunities.org/id/county-council/surrey,Surrey,http://id.esd.org.uk/service/1465,Council expenditure,05/04/2017,WALTON YC,SAINSBURYS SACAT 2663,8.1,PURCHASE OF FOOD (RAW MATERIALS),"GROCERY STORES, SUPERMARKETS"
20/07/2017,http://opendatacommunities.org/id/county-council/surrey,Surrey,http://id.esd.org.uk/service/1465,Council expenditure,05/04/2017,FAIRCROFT COMMUNITY HOME,MONTE TRIPLEX,165.35,EDUC VISITS/HOLS/CAMPS/TOYS,"LODGING-HOTELS,MOTELS,RESORTS-NOT CLASSIFIED"
20/07/2017,http://opendatacommunities.org/id/county-council/surrey,Surrey,http://id.esd.org.uk/service/1465,Council expenditure,05/04/2017,FAIRCROFT COMMUNITY HOME,BAR RISTORANTE ASS 056,139.27,EDUC VISITS/HOLS/CAMPS/TOYS,"BAR,LOUNGE,DISCO,NIGHTCLUB,TAVERN-ALCOHOLIC DRINKS"
20/07/2017,http://opendatacommunities.org/id/county-council/surrey,Surrey,http://id.esd.org.uk/service/1465,Council expenditure,05/04/2017,CHEYNE WALK COMMUNITY HOME,WWW.WORLDOFPOWER.CO.UK,511.98,EQUIPMENT,HOUSEHOLD APPLIANCE STORES
20/07/2017,http://opendatacommunities.org/id/county-council/surrey,Surrey,http://id.esd.org.uk/service/1465,Council expenditure,05/04/2017,CHEYNE WALK COMMUNITY HOME,FAT JACKETS-CRAWLEY,20.57,PURCHASE OF FOOD (RAW MATERIALS),"EATING PLACES, RESTAURANTS"
20/07/2017,http://opendatacommunities.org/id/county-council/surrey,Surrey,http://id.esd.org.uk/service/1465,Council expenditure,05/04/2017,WOODLANDS COMMUNITY HOME,THORPE PARK /ENT/,169,EDUC VISITS/HOLS/CAMPS/TOYS,"AMUSEMENT PARKS,CARNIVALS,CIRCUS,FORTUNE TELLERS"
20/07/2017,http://opendatacommunities.org/id/county-council/surrey,Surrey,http://id.esd.org.uk/service/1465,Council expenditure,05/04/2017,RUTH HOUSE,AMAZON UK MARKETPLACE,14.24,BOOKS,BOOK STORES
20/07/2017,http://opendatacommunities.org/id/county-council/surrey,Surrey,http://id.esd.org.uk/service/1465,Council expenditure,05/04/2017,RUTH HOUSE,G J HONOUR,186.82,PURCHASE OF FOOD (RAW MATERIALS),"MISC FOOD STORE-CONVENIENCE,MRKT,SPLTY,VENDNG MACS"
20/07/2017,http://opendatacommunities.org/id/county-council/surrey,Surrey,http://id.esd.org.uk/service/1465,Council expenditure,05/04/2017,RUTH HOUSE,ARGOS RETAIL GROUP,22.49,"CLOTHING, UNIFORM AND LAUNDRY",DISCOUNT STORES
20/07/2017,http://opendatacommunities.org/id/county-council/surrey,Surrey,http://id.esd.org.uk/service/1465,Council expenditure,05/04/2017,RUTH HOUSE,ARGOS RETAIL GROUP,23.99,EQUIPMENT,DISCOUNT STORES
20/07/2017,http://opendatacommunities.org/id/county-council/surrey,Surrey,http://id.esd.org.uk/service/1465,Council expenditure,05/04/2017,RUTH HOUSE,RUTH HOUSE MARCH,405.5,PURCHASE OF FOOD (RAW MATERIALS),COMPUTER SOFTWARE STORES
20/07/2017,http://opendatacommunities.org/id/county-council/surrey,Surrey,http://id.esd.org.uk/service/1465,Council expenditure,05/04/2017,PROPERTY OPERATIONS TEAM,TOOLSTATION LTD,83.26,PURCHASE OF BUILDING MATERIALS,HARDWARE STORES
20/07/2017,http://opendatacommunities.org/id/county-council/surrey,Surrey,http://id.esd.org.uk/service/1465,Council expenditure,05/04/2017,CHEYNE WALK COMMUNITY HOME,TESCO-STORES 6647,228.28,PURCHASE OF FOOD (RAW MATERIALS),"GROCERY STORES, SUPERMARKETS"
20/07/2017,http://opendatacommunities.org/id/county-council/surrey,Surrey,http://id.esd.org.uk/service/1465,Council expenditure,05/04/2017,PERFORMING ARTS LIBRARY,HAMPSHIRE COUNTY COUNC,300,LIBRARY RESOURCES,GOVERNMENT SERVICES-NOT ELSEWHERE CLASSIFIED
20/07/2017,http://opendatacommunities.org/id/county-council/surrey,Surrey,http://id.esd.org.uk/service/1465,Council expenditure,05/04/2017,ACL CENTRAL EXPENDITURE,EB  APPRENTICESHIP FUN,318,TRAINING EXPENSES EXTERNAL GENERAL,BUSINESS SERVICES-NOT ELSEWHERE CLASSIFIED
20/07/2017,http://opendatacommunities.org/id/county-council/surrey,Surrey,http://id.esd.org.uk/service/1465,Council expenditure,05/04/2017,LIBERTAS COMMUNITY HOME,PIZZA HUT 344,19.95,REFRESHMENT COSTS,"EATING PLACES, RESTAURANTS"
20/07/2017,http://opendatacommunities.org/id/county-council/surrey,Surrey,http://id.esd.org.uk/service/1465,Council expenditure,05/04/2017,VIRTUAL SCHOOL FOR LAC PUPIL PREMIUM,PAYPAL  WORDERY,36.79,BOOKS,BOOK STORES
20/07/2017,http://opendatacommunities.org/id/county-council/surrey,Surrey,http://id.esd.org.uk/service/1465,Council expenditure,05/04/2017,DEPUTYSHIP TEAM,"AMAZON SVCS EUROPE,SAR",94.98,3RD PARTY PAYMENTS PRIVATE INDIV,BOOK STORES
20/07/2017,http://opendatacommunities.org/id/county-council/surrey,Surrey,http://id.esd.org.uk/service/1465,Council expenditure,05/04/2017,ACL CENTRAL EXPENDITURE,AMAZON UK MARKETPLACE,32.43,EQUIPMENT,BOOK STORES
20/07/2017,http://opendatacommunities.org/id/county-council/surrey,Surrey,http://id.esd.org.uk/service/1465,Council expenditure,05/04/2017,TRANSPORT,BUCK & HICKMAN,194.76,OPERATIONAL FIRE EQUIPMENT,HARDWARE EQUIPMENT AND SUPPLIES
20/07/2017,http://opendatacommunities.org/id/county-council/surrey,Surrey,http://id.esd.org.uk/service/1465,Council expenditure,05/04/2017,SOLD ESTATES MANAGEMENT,WWW.THEMETALSTORE.CO.U,139.18,DAY TO DAY MAINTENANCE,CONSTRUCTION MATERIALS NOT ELSEWHERE CLASSIFIED
20/07/2017,http://opendatacommunities.org/id/county-council/surrey,Surrey,http://id.esd.org.uk/service/1465,Council expenditure,05/04/2017,TRANSPORT,GRANGERS CAR VALET,100,VEHICLE REPAIRS AND MAINTENANCE,CAR WASHES
20/07/2017,http://opendatacommunities.org/id/county-council/surrey,Surrey,http://id.esd.org.uk/service/1465,Council expenditure,05/04/2017,TRANSPORT,PAYPAL  MYLDANAUTOD,17.99,VEHICLE REPAIRS AND MAINTENANCE,VARIETY STORES
20/07/2017,http://opendatacommunities.org/id/county-council/surrey,Surrey,http://id.esd.org.uk/service/1465,Council expenditure,05/04/2017,LOWER MOLE COUNTRYSIDE PROJECT,SAINSBURYS 0683,59.1,REFRESHMENT COSTS,"GROCERY STORES, SUPERMARKETS"
20/07/2017,http://opendatacommunities.org/id/county-council/surrey,Surrey,http://id.esd.org.uk/service/1465,Council expenditure,05/04/2017,LOWER MOLE COUNTRYSIDE PROJECT,SCREWFIX DIRECT,24.27,PURCHASE OF BUILDING MATERIALS,"BUILDING MATERIALS, LUMBER STORES"
20/07/2017,http://opendatacommunities.org/id/county-council/surrey,Surrey,http://id.esd.org.uk/service/1465,Council expenditure,05/04/2017,SOLD CATERING,WWW.STAC.CO.UK,223.87,FURNITURE,"EQUIP, FURNITURE, HOME FURNSHNGS STRS (EXCPT APPL)"
20/07/2017,http://opendatacommunities.org/id/county-council/surrey,Surrey,http://id.esd.org.uk/service/1465,Council expenditure,05/04/2017,HERITAGE ENTERPRISE (SCAU),WWW.ALLPLAS.CO.UK,66.06,STATIONERY,BUSINESS SERVICES-NOT ELSEWHERE CLASSIFIED
20/07/2017,http://opendatacommunities.org/id/county-council/surrey,Surrey,http://id.esd.org.uk/service/1465,Council expenditure,05/04/2017,SOLD BUSINESS SUPPORT,GUILDFORD BOROUGH CNCL,72.73,EDUC VISITS/HOLS/CAMPS/TOYS,GOVERNMENT SERVICES-NOT ELSEWHERE CLASSIFIED
20/07/2017,http://opendatacommunities.org/id/county-council/surrey,Surrey,http://id.esd.org.uk/service/1465,Council expenditure,05/04/2017,BURBANK COMMUNITY HOME,WWW.PHS.CO.UK,40.74,EQUIPMENT,BUSINESS SERVICES-NOT ELSEWHERE CLASSIFIED
20/07/2017,http://opendatacommunities.org/id/county-council/surrey,Surrey,http://id.esd.org.uk/service/1465,Council expenditure,05/04/2017,IMT CRITICAL ENVIRONMENTS,AMAZON UK MARKETPLACE,9.58,COMPUTER HARDWARE,BOOK STORES
20/07/2017,http://opendatacommunities.org/id/county-council/surrey,Surrey,http://id.esd.org.uk/service/1465,Council expenditure,05/04/2017,WOODLANDS COMMUNITY HOME,SAINSBURYS SACAT 0686,20.5,"CLOTHING, UNIFORM AND LAUNDRY","GROCERY STORES, SUPERMARKETS"
20/07/2017,http://opendatacommunities.org/id/county-council/surrey,Surrey,http://id.esd.org.uk/service/1465,Council expenditure,05/04/2017,WOODLANDS COMMUNITY HOME,SAINSBURYS 0686,10.4,REFRESHMENT COSTS,"GROCERY STORES, SUPERMARKETS"
20/07/2017,http://opendatacommunities.org/id/county-council/surrey,Surrey,http://id.esd.org.uk/service/1465,Council expenditure,05/04/2017,NW CARE - LAC,TRAVELODGE GB0000,82,CHILDREN ACT SEC 17 PAYMENTS,TRAVELODGE
20/07/2017,http://opendatacommunities.org/id/county-council/surrey,Surrey,http://id.esd.org.uk/service/1465,Council expenditure,05/04/2017,NW CARE - CP & COURT LAC,SURREY CC CARD PAY,21,CHILDREN ACT SEC 17 PAYMENTS,COMPUTER NETWORK/INFORMATION SERVICES
20/07/2017,http://opendatacommunities.org/id/county-council/surrey,Surrey,http://id.esd.org.uk/service/1465,Council expenditure,05/04/2017,STANWELL YOUTH CLUB,SAINSBURYS SACAT (4117,2.6,REFRESHMENT COSTS,"GROCERY STORES, SUPERMARKETS"
20/07/2017,http://opendatacommunities.org/id/county-council/surrey,Surrey,http://id.esd.org.uk/service/1465,Council expenditure,05/04/2017,ARUNDEL,TESCO STORES 5999,152.65,REFRESHMENT COSTS,"GROCERY STORES, SUPERMARKETS"
20/07/2017,http://opendatacommunities.org/id/county-council/surrey,Surrey,http://id.esd.org.uk/service/1465,Council expenditure,05/04/2017,ARUNDEL,TESCO STORE 3539,-7.4,REFRESHMENT COSTS,"GROCERY STORES, SUPERMARKETS"
20/07/2017,http://opendatacommunities.org/id/county-council/surrey,Surrey,http://id.esd.org.uk/service/1465,Council expenditure,05/04/2017,ARUNDEL,TESCO STORES 5999,-7.4,REFRESHMENT COSTS,"GROCERY STORES, SUPERMARKETS"
20/07/2017,http://opendatacommunities.org/id/county-council/surrey,Surrey,http://id.esd.org.uk/service/1465,Council expenditure,05/04/2017,CHEYNE WALK COMMUNITY HOME,SMITH & WESTERN (TILGA,8.25,PURCHASE OF FOOD (RAW MATERIALS),"EATING PLACES, RESTAURANTS"
20/07/2017,http://opendatacommunities.org/id/county-council/surrey,Surrey,http://id.esd.org.uk/service/1465,Council expenditure,05/04/2017,CHEYNE WALK COMMUNITY HOME,SMITH & WESTERN (TILGA,7.8,PURCHASE OF FOOD (RAW MATERIALS),"EATING PLACES, RESTAURANTS"
20/07/2017,http://opendatacommunities.org/id/county-council/surrey,Surrey,http://id.esd.org.uk/service/1465,Council expenditure,05/04/2017,CHEYNE WALK COMMUNITY HOME,J D SPORTS PLC,25.05,"CLOTHING, UNIFORM AND LAUNDRY",SPORTING GOODS STORES
20/07/2017,http://opendatacommunities.org/id/county-council/surrey,Surrey,http://id.esd.org.uk/service/1465,Council expenditure,06/04/2017,KARIBU COMMUNITY HOME,EXETER MWSA,7.45,PURCHASE OF FOOD (RAW MATERIALS),SERVICE STATIONS WITH OR WITHOUT ANCILLARY SERVICE
20/07/2017,http://opendatacommunities.org/id/county-council/surrey,Surrey,http://id.esd.org.uk/service/1465,Council expenditure,06/04/2017,PE/CDT MAINTENANCE OVERHEADS,FRESH AIR FITNESS,80.4,ITEMS PURCHASED FOR RE-SALE,MISCELLANEOUS AND SPECIALTY RETAIL STORES
20/07/2017,http://opendatacommunities.org/id/county-council/surrey,Surrey,http://id.esd.org.uk/service/1465,Council expenditure,06/04/2017,CHEYNE WALK COMMUNITY HOME,SKY BUSINESS,135.6,SUBSCRIPTIONS,"CABLE, SATELLITE, OTHER PAY TELEVISION, RADIO SVCS"
20/07/2017,http://opendatacommunities.org/id/county-council/surrey,Surrey,http://id.esd.org.uk/service/1465,Council expenditure,06/04/2017,ACL CENTRAL EXPENDITURE,AMAZON UK MARKETPLACE,13.96,EQUIPMENT,BOOK STORES
20/07/2017,http://opendatacommunities.org/id/county-council/surrey,Surrey,http://id.esd.org.uk/service/1465,Council expenditure,06/04/2017,ACL CENTRAL EXPENDITURE,AMAZON UK MARKETPLACE,19.98,EQUIPMENT,BOOK STORES
20/07/2017,http://opendatacommunities.org/id/county-council/surrey,Surrey,http://id.esd.org.uk/service/1465,Council expenditure,06/04/2017,ACL CENTRAL EXPENDITURE,AMAZON UK MARKETPLACE,35.88,EQUIPMENT,BOOK STORES
20/07/2017,http://opendatacommunities.org/id/county-council/surrey,Surrey,http://id.esd.org.uk/service/1465,Council expenditure,06/04/2017,ACL CENTRAL EXPENDITURE,AMAZON UK MARKETPLACE,1.92,EQUIPMENT,BOOK STORES
20/07/2017,http://opendatacommunities.org/id/county-council/surrey,Surrey,http://id.esd.org.uk/service/1465,Council expenditure,06/04/2017,ACL CENTRAL EXPENDITURE,AMAZON UK MARKETPLACE,4.99,EQUIPMENT,BOOK STORES
20/07/2017,http://opendatacommunities.org/id/county-council/surrey,Surrey,http://id.esd.org.uk/service/1465,Council expenditure,06/04/2017,BURBANK COMMUNITY HOME,TIMPSON INSIDE,6.5,PRINTING,"HAT CLEANING SHOPS, SHOE REPAIR SHOPS, SHOE SHINE"
20/07/2017,http://opendatacommunities.org/id/county-council/surrey,Surrey,http://id.esd.org.uk/service/1465,Council expenditure,06/04/2017,BURBANK COMMUNITY HOME,W M MORRISONS,14.8,REFRESHMENT COSTS,"GROCERY STORES, SUPERMARKETS"
20/07/2017,http://opendatacommunities.org/id/county-council/surrey,Surrey,http://id.esd.org.uk/service/1465,Council expenditure,06/04/2017,KARIBU COMMUNITY HOME,CREALY GREAT ADVEN,120.7,EDUC VISITS/HOLS/CAMPS/TOYS,"AMUSEMENT PARKS,CARNIVALS,CIRCUS,FORTUNE TELLERS"
20/07/2017,http://opendatacommunities.org/id/county-council/surrey,Surrey,http://id.esd.org.uk/service/1465,Council expenditure,06/04/2017,KARIBU COMMUNITY HOME,TESCO STORE 2812,325.93,PURCHASE OF FOOD (RAW MATERIALS),"GROCERY STORES, SUPERMARKETS"
20/07/2017,http://opendatacommunities.org/id/county-council/surrey,Surrey,http://id.esd.org.uk/service/1465,Council expenditure,06/04/2017,HERITAGE ENTERPRISE (SCAU),AMAZON UK RETAIL AMAZO,20.27,EQUIPMENT,MISCELLANEOUS AND SPECIALTY RETAIL STORES
20/07/2017,http://opendatacommunities.org/id/county-council/surrey,Surrey,http://id.esd.org.uk/service/1465,Council expenditure,06/04/2017,HILLSIDE,SAINSBURYS 0675,3,PURCHASE OF FOOD (RAW MATERIALS),"GROCERY STORES, SUPERMARKETS"
20/07/2017,http://opendatacommunities.org/id/county-council/surrey,Surrey,http://id.esd.org.uk/service/1465,Council expenditure,06/04/2017,HILLSIDE,SAINSBURYS 0675,81.88,PURCHASE OF FOOD (RAW MATERIALS),"GROCERY STORES, SUPERMARKETS"
20/07/2017,http://opendatacommunities.org/id/county-council/surrey,Surrey,http://id.esd.org.uk/service/1465,Council expenditure,06/04/2017,ASH YC,CO-OP GROUP FOOD,3,CURRICULUM CONSUMABLES,"GROCERY STORES, SUPERMARKETS"
20/07/2017,http://opendatacommunities.org/id/county-council/surrey,Surrey,http://id.esd.org.uk/service/1465,Council expenditure,06/04/2017,FRIMLEY YC,ARGOS LTD,16.54,EQUIPMENT,DISCOUNT STORES
20/07/2017,http://opendatacommunities.org/id/county-council/surrey,Surrey,http://id.esd.org.uk/service/1465,Council expenditure,06/04/2017,ORDER TO CASH TEAM,WWW.MONEYCLAIM.GOV,185,FEES,GOVERNMENT SERVICES-NOT ELSEWHERE CLASSIFIED
20/07/2017,http://opendatacommunities.org/id/county-council/surrey,Surrey,http://id.esd.org.uk/service/1465,Council expenditure,06/04/2017,ORDER TO CASH TEAM,WWW.MONEYCLAIM.GOV,77,FEES,GOVERNMENT SERVICES-NOT ELSEWHERE CLASSIFIED
20/07/2017,http://opendatacommunities.org/id/county-council/surrey,Surrey,http://id.esd.org.uk/service/1465,Council expenditure,06/04/2017,ORDER TO CASH TEAM,WWW.MONEYCLAIM.GOV,77,FEES,GOVERNMENT SERVICES-NOT ELSEWHERE CLASSIFIED
20/07/2017,http://opendatacommunities.org/id/county-council/surrey,Surrey,http://id.esd.org.uk/service/1465,Council expenditure,06/04/2017,ORDER TO CASH TEAM,WWW.MONEYCLAIM.GOV,70,FEES,GOVERNMENT SERVICES-NOT ELSEWHERE CLASSIFIED
20/07/2017,http://opendatacommunities.org/id/county-council/surrey,Surrey,http://id.esd.org.uk/service/1465,Council expenditure,06/04/2017,FAIRCROFT COMMUNITY HOME,HOMEBASE LTD 067,30.37,EQUIPMENT,"BUILDING MATERIALS, LUMBER STORES"
20/07/2017,http://opendatacommunities.org/id/county-council/surrey,Surrey,http://id.esd.org.uk/service/1465,Council expenditure,06/04/2017,WOODLANDS COMMUNITY HOME,WICKES,145.8,EQUIPMENT,HOME SUPPLY WAREHOUSE STORES
20/07/2017,http://opendatacommunities.org/id/county-council/surrey,Surrey,http://id.esd.org.uk/service/1465,Council expenditure,06/04/2017,TS SERVICE MANAGEMENT,WWW.FORCE4.CO.UK,-49.9,OPERATIONAL FIRE EQUIPMENT,BOAT DEALERS
20/07/2017,http://opendatacommunities.org/id/county-council/surrey,Surrey,http://id.esd.org.uk/service/1465,Council expenditure,06/04/2017,OCCUPATIONAL HEALTH,AMAZON UK MARKETPLACE,41.53,EQUIPMENT,BOOK STORES
20/07/2017,http://opendatacommunities.org/id/county-council/surrey,Surrey,http://id.esd.org.uk/service/1465,Council expenditure,06/04/2017,TRANSPORT,MJR SUPPLIES,57.94,STATIONERY,"SANITATION, POLISHING & SPECIALITY CLEANING PREP"
20/07/2017,http://opendatacommunities.org/id/county-council/surrey,Surrey,http://id.esd.org.uk/service/1465,Council expenditure,06/04/2017,TRANSPORT,WWW.PRINTEDPAPERPRODUC,46.56,STATIONERY,"OFFICE, SCHOOL SUPPLY, AND STATIONERY STORES"
20/07/2017,http://opendatacommunities.org/id/county-council/surrey,Surrey,http://id.esd.org.uk/service/1465,Council expenditure,06/04/2017,FOSTERING SERVICE CENTRAL COSTS,WWW.UEA.AC.UK,150,TRAINING EXPENSES EXTERNAL GENERAL,BUSINESS SERVICES-NOT ELSEWHERE CLASSIFIED
20/07/2017,http://opendatacommunities.org/id/county-council/surrey,Surrey,http://id.esd.org.uk/service/1465,Council expenditure,06/04/2017,ASYLUM SEEKERS 16-17,TRAVELODGE GB0000,100,CHILDREN ACT SEC 17 PAYMENTS,TRAVELODGE
20/07/2017,http://opendatacommunities.org/id/county-council/surrey,Surrey,http://id.esd.org.uk/service/1465,Council expenditure,06/04/2017,ARUNDEL,TESCO STORES 5999,83.99,REFRESHMENT COSTS,"GROCERY STORES, SUPERMARKETS"
20/07/2017,http://opendatacommunities.org/id/county-council/surrey,Surrey,http://id.esd.org.uk/service/1465,Council expenditure,06/04/2017,MULBERRY YC,WWW.DOMINOS.CO.UK,35.43,REFRESHMENT COSTS,"EATING PLACES, RESTAURANTS"
20/07/2017,http://opendatacommunities.org/id/county-council/surrey,Surrey,http://id.esd.org.uk/service/1465,Council expenditure,06/04/2017,THE BRIDGE YC,TESCO STORES 2812,7.9,PURCHASE OF FOOD (RAW MATERIALS),"GROCERY STORES, SUPERMARKETS"
20/07/2017,http://opendatacommunities.org/id/county-council/surrey,Surrey,http://id.esd.org.uk/service/1465,Council expenditure,06/04/2017,CHEYNE WALK COMMUNITY HOME,TESCO STORE 2675,8.85,PURCHASE OF FOOD (RAW MATERIALS),"GROCERY STORES, SUPERMARKETS"
20/07/2017,http://opendatacommunities.org/id/county-council/surrey,Surrey,http://id.esd.org.uk/service/1465,Council expenditure,06/04/2017,SW CARE - LAC,CHELSEA TOURS,33,EDUC VISITS/HOLS/CAMPS/TOYS,"CLUBS-CNTRY,MBRSHIP(ATHLET,REC,SPRTS,PRIVATE GOLF"
20/07/2017,http://opendatacommunities.org/id/county-council/surrey,Surrey,http://id.esd.org.uk/service/1465,Council expenditure,06/04/2017,HOPE SERVICE - WEST,SAINSBURYS TO YOU 0686,52.15,PURCHASE OF FOOD (RAW MATERIALS),"GROCERY STORES, SUPERMARKETS"
20/07/2017,http://opendatacommunities.org/id/county-council/surrey,Surrey,http://id.esd.org.uk/service/1465,Council expenditure,06/04/2017,HOPE SERVICE - WEST,SAINSBURYS TO YOU 0686,-3.5,PURCHASE OF FOOD (RAW MATERIALS),"GROCERY STORES, SUPERMARKETS"
20/07/2017,http://opendatacommunities.org/id/county-council/surrey,Surrey,http://id.esd.org.uk/service/1465,Council expenditure,06/04/2017,CHEYNE WALK COMMUNITY HOME,JD SPORTS 608,108.05,"CLOTHING, UNIFORM AND LAUNDRY",SPORTING GOODS STORES
20/07/2017,http://opendatacommunities.org/id/county-council/surrey,Surrey,http://id.esd.org.uk/service/1465,Council expenditure,06/04/2017,CHEYNE WALK COMMUNITY HOME,JD SPORTS 608,40.05,"CLOTHING, UNIFORM AND LAUNDRY",SPORTING GOODS STORES
20/07/2017,http://opendatacommunities.org/id/county-council/surrey,Surrey,http://id.esd.org.uk/service/1465,Council expenditure,06/04/2017,CHEYNE WALK COMMUNITY HOME,AMFBOWLING.CO.UK,71.1,EDUC VISITS/HOLS/CAMPS/TOYS,"CLUBS-CNTRY,MBRSHIP(ATHLET,REC,SPRTS,PRIVATE GOLF"
20/07/2017,http://opendatacommunities.org/id/county-council/surrey,Surrey,http://id.esd.org.uk/service/1465,Council expenditure,06/04/2017,CHEYNE WALK COMMUNITY HOME,DEBENHAMS,35.5,"CLOTHING, UNIFORM AND LAUNDRY",DEPARTMENT STORES
20/07/2017,http://opendatacommunities.org/id/county-council/surrey,Surrey,http://id.esd.org.uk/service/1465,Council expenditure,06/04/2017,CHEYNE WALK COMMUNITY HOME,NCP LIMITED,5.74,NON-STAFF RELATED TRANSPORT COSTS,AUTOMOBILE PARKING LOTS AND GARAGES
20/07/2017,http://opendatacommunities.org/id/county-council/surrey,Surrey,http://id.esd.org.uk/service/1465,Council expenditure,06/04/2017,CHEYNE WALK COMMUNITY HOME,SPORTSDIRECT 190,19,"CLOTHING, UNIFORM AND LAUNDRY",SPORTING GOODS STORES
20/07/2017,http://opendatacommunities.org/id/county-council/surrey,Surrey,http://id.esd.org.uk/service/1465,Council expenditure,06/04/2017,YSS YOUTH CENTRE IMPROVEMENTS,ARGOS RETAIL GROUP,17.99,EQUIPMENT,DISCOUNT STORES
20/07/2017,http://opendatacommunities.org/id/county-council/surrey,Surrey,http://id.esd.org.uk/service/1465,Council expenditure,06/04/2017,DEMOCRATIC SERVICES TEAM,AMAZON UK MARKETPLACE,39.99,REFRESHMENT COSTS,BOOK STORES
20/07/2017,http://opendatacommunities.org/id/county-council/surrey,Surrey,http://id.esd.org.uk/service/1465,Council expenditure,06/04/2017,FAIRCROFT COMMUNITY HOME,MIRAVALLINO        192,111.06,EDUC VISITS/HOLS/CAMPS/TOYS,"BAR,LOUNGE,DISCO,NIGHTCLUB,TAVERN-ALCOHOLIC DRINKS"
20/07/2017,http://opendatacommunities.org/id/county-council/surrey,Surrey,http://id.esd.org.uk/service/1465,Council expenditure,06/04/2017,FAIRCROFT COMMUNITY HOME,MONTE TRIPLEX,85.5,EDUC VISITS/HOLS/CAMPS/TOYS,"LODGING-HOTELS,MOTELS,RESORTS-NOT CLASSIFIED"
20/07/2017,http://opendatacommunities.org/id/county-council/surrey,Surrey,http://id.esd.org.uk/service/1465,Council expenditure,06/04/2017,SPELTHORNE CMHRS CARE,TRAVELODGE GB0000,380,FEES,TRAVELODGE
20/07/2017,http://opendatacommunities.org/id/county-council/surrey,Surrey,http://id.esd.org.uk/service/1465,Council expenditure,06/04/2017,LIBERTAS COMMUNITY HOME,BUDE SERVICE STATI,50.01,VEHICLE RUNNING COSTS,SERVICE STATIONS WITH OR WITHOUT ANCILLARY SERVICE
20/07/2017,http://opendatacommunities.org/id/county-council/surrey,Surrey,http://id.esd.org.uk/service/1465,Council expenditure,06/04/2017,LIBERTAS COMMUNITY HOME,THE BRENDON ARMS L,96.6,REFRESHMENT COSTS,"EATING PLACES, RESTAURANTS"
20/07/2017,http://opendatacommunities.org/id/county-council/surrey,Surrey,http://id.esd.org.uk/service/1465,Council expenditure,06/04/2017,LIBERTAS COMMUNITY HOME,THE BRENDON ARMS L,14.5,REFRESHMENT COSTS,"EATING PLACES, RESTAURANTS"
20/07/2017,http://opendatacommunities.org/id/county-council/surrey,Surrey,http://id.esd.org.uk/service/1465,Council expenditure,06/04/2017,HOLLAND CLOSE RESIDENTIAL HOME,AIRHOP TRAMPELINE PARK,40,EDUC VISITS/HOLS/CAMPS/TOYS,RECREATIONAL AND SPORTING CAMPS
20/07/2017,http://opendatacommunities.org/id/county-council/surrey,Surrey,http://id.esd.org.uk/service/1465,Council expenditure,06/04/2017,ACL CENTRAL EXPENDITURE,TESCO DELIVERY SAVER2,6,REFRESHMENT COSTS,DIRECT MARKETING-CONTINUITY/SUBSCRIPTION MERCHANTS
20/07/2017,http://opendatacommunities.org/id/county-council/surrey,Surrey,http://id.esd.org.uk/service/1465,Council expenditure,06/04/2017,TARGETED INTERVENTION,TOP GOLF LTD,28,EDUC VISITS/HOLS/CAMPS/TOYS,"CLUBS-CNTRY,MBRSHIP(ATHLET,REC,SPRTS,PRIVATE GOLF"
20/07/2017,http://opendatacommunities.org/id/county-council/surrey,Surrey,http://id.esd.org.uk/service/1465,Council expenditure,06/04/2017,DEVELOPMENT TEAM,POWTOON,226.16,COMPUTER SOFTWARE,COMPUTER SOFTWARE STORES
20/07/2017,http://opendatacommunities.org/id/county-council/surrey,Surrey,http://id.esd.org.uk/service/1465,Council expenditure,06/04/2017,GODALMING YC,SAINSBURYS SACAT 0670,0.6,PURCHASE OF FOOD (RAW MATERIALS),"GROCERY STORES, SUPERMARKETS"
20/07/2017,http://opendatacommunities.org/id/county-council/surrey,Surrey,http://id.esd.org.uk/service/1465,Council expenditure,06/04/2017,GODALMING YC,SAINSBURYS SACAT 0670,10.5,PURCHASE OF FOOD (RAW MATERIALS),"GROCERY STORES, SUPERMARKETS"
20/07/2017,http://opendatacommunities.org/id/county-council/surrey,Surrey,http://id.esd.org.uk/service/1465,Council expenditure,06/04/2017,HARRY'S YC,WAITROSE 838,5.33,PURCHASE OF FOOD (RAW MATERIALS),"GROCERY STORES, SUPERMARKETS"
20/07/2017,http://opendatacommunities.org/id/county-council/surrey,Surrey,http://id.esd.org.uk/service/1465,Council expenditure,06/04/2017,HARRY'S YC,WM MORRISONS,3.58,REFRESHMENT COSTS,"GROCERY STORES, SUPERMARKETS"
20/07/2017,http://opendatacommunities.org/id/county-council/surrey,Surrey,http://id.esd.org.uk/service/1465,Council expenditure,06/04/2017,HOPE SERVICE - WEST,TESCO STORES 6320,29.19,PURCHASE OF FOOD (RAW MATERIALS),"GROCERY STORES, SUPERMARKETS"
20/07/2017,http://opendatacommunities.org/id/county-council/surrey,Surrey,http://id.esd.org.uk/service/1465,Council expenditure,06/04/2017,ACL CENTRAL EXPENDITURE,SHOECARE,14,DAY TO DAY MAINTENANCE,"HAT CLEANING SHOPS, SHOE REPAIR SHOPS, SHOE SHINE"
20/07/2017,http://opendatacommunities.org/id/county-council/surrey,Surrey,http://id.esd.org.uk/service/1465,Council expenditure,06/04/2017,ACL CENTRAL EXPENDITURE,AMAZON UK RETAIL AMAZO,54.73,EQUIPMENT,MISCELLANEOUS AND SPECIALTY RETAIL STORES
20/07/2017,http://opendatacommunities.org/id/county-council/surrey,Surrey,http://id.esd.org.uk/service/1465,Council expenditure,06/04/2017,CAMBERLEY LIBRARY,AMAZON UK MARKETPLACE,15.98,EQUIPMENT,BOOK STORES
20/07/2017,http://opendatacommunities.org/id/county-council/surrey,Surrey,http://id.esd.org.uk/service/1465,Council expenditure,06/04/2017,SOUTH WEST AREA TEAM,DIGITAL HEARING CARE S,"1,596.00",EQUIPMENT,"HEARING AIDS-SALES, SERVICE, SUPPLY STORES"
20/07/2017,http://opendatacommunities.org/id/county-council/surrey,Surrey,http://id.esd.org.uk/service/1465,Council expenditure,06/04/2017,PARKING TEAM,MEON LTD,148.39,EQUIPMENT,BUSINESS SERVICES-NOT ELSEWHERE CLASSIFIED
20/07/2017,http://opendatacommunities.org/id/county-council/surrey,Surrey,http://id.esd.org.uk/service/1465,Council expenditure,06/04/2017,VIRTUAL SCHOOL FOR LAC PUPIL PREMIUM,AMAZON EU,13.49,BOOKS,DIRECT MARKETING-OTHER DIRECT MARKETERS/NOT ELSEW.
20/07/2017,http://opendatacommunities.org/id/county-council/surrey,Surrey,http://id.esd.org.uk/service/1465,Council expenditure,06/04/2017,VIRTUAL SCHOOL FOR LAC PUPIL PREMIUM,AMAZON UK MARKETPLACE,10.14,BOOKS,BOOK STORES
20/07/2017,http://opendatacommunities.org/id/county-council/surrey,Surrey,http://id.esd.org.uk/service/1465,Council expenditure,06/04/2017,ACL CENTRAL EXPENDITURE,AMAZON UK MARKETPLACE,12.54,EQUIPMENT,BOOK STORES
20/07/2017,http://opendatacommunities.org/id/county-council/surrey,Surrey,http://id.esd.org.uk/service/1465,Council expenditure,06/04/2017,ACL CENTRAL EXPENDITURE,AMAZON UK MARKETPLACE,3.02,EQUIPMENT,BOOK STORES
20/07/2017,http://opendatacommunities.org/id/county-council/surrey,Surrey,http://id.esd.org.uk/service/1465,Council expenditure,06/04/2017,ACL CENTRAL EXPENDITURE,AMAZON UK MARKETPLACE,23.97,EQUIPMENT,BOOK STORES
20/07/2017,http://opendatacommunities.org/id/county-council/surrey,Surrey,http://id.esd.org.uk/service/1465,Council expenditure,06/04/2017,TRANSPORT,AMAZON UK MARKETPLACE,41.44,CLEANING AND DOMESTIC SUPPLIES,BOOK STORES
20/07/2017,http://opendatacommunities.org/id/county-council/surrey,Surrey,http://id.esd.org.uk/service/1465,Council expenditure,06/04/2017,CAMHS SOCIAL WORKERS,HOBBYCRAFT (INTERNET),15,EDUC VISITS/HOLS/CAMPS/TOYS,"ARTIST SUPPLY STORES, CRAFT SHOPS"
20/07/2017,http://opendatacommunities.org/id/county-council/surrey,Surrey,http://id.esd.org.uk/service/1465,Council expenditure,06/04/2017,CAMHS SOCIAL WORKERS,HANCOCK CASH AND CARRY,137.02,EDUC VISITS/HOLS/CAMPS/TOYS,WHOLESALE CLUBS
20/07/2017,http://opendatacommunities.org/id/county-council/surrey,Surrey,http://id.esd.org.uk/service/1465,Council expenditure,06/04/2017,ORDER TO CASH TEAM,WWW.MONEYCLAIM.GOV,60,FEES,GOVERNMENT SERVICES-NOT ELSEWHERE CLASSIFIED
20/07/2017,http://opendatacommunities.org/id/county-council/surrey,Surrey,http://id.esd.org.uk/service/1465,Council expenditure,06/04/2017,TRANSPORT,OMBINDING.CO.UK,217.2,STATIONERY,"OFFICE, SCHOOL SUPPLY, AND STATIONERY STORES"
20/07/2017,http://opendatacommunities.org/id/county-council/surrey,Surrey,http://id.esd.org.uk/service/1465,Council expenditure,06/04/2017,ASSET PLANNING - OPERATIONS,MUNRO INSTRUMENTS LTD,188.4,EQUIPMENT,INDUSTRIAL SUPPLIES NOT ELSEWHERE CLASSIFIED
20/07/2017,http://opendatacommunities.org/id/county-council/surrey,Surrey,http://id.esd.org.uk/service/1465,Council expenditure,06/04/2017,CENTRAL COMMUNICATIONS,HOOTSUITE MEDIA INC.,9.59,SUBSCRIPTIONS,BUSINESS SERVICES-NOT ELSEWHERE CLASSIFIED
20/07/2017,http://opendatacommunities.org/id/county-council/surrey,Surrey,http://id.esd.org.uk/service/1465,Council expenditure,06/04/2017,ARUNDEL,SCOUT & GUIDE SHOP,63.5,EDUC VISITS/HOLS/CAMPS/TOYS,WOMEN'S ACCESSORY AND SPECIALTY STORES
20/07/2017,http://opendatacommunities.org/id/county-council/surrey,Surrey,http://id.esd.org.uk/service/1465,Council expenditure,06/04/2017,KARIBU COMMUNITY HOME,THE MARINE,66.75,PURCHASE OF FOOD (RAW MATERIALS),"EATING PLACES, RESTAURANTS"
20/07/2017,http://opendatacommunities.org/id/county-council/surrey,Surrey,http://id.esd.org.uk/service/1465,Council expenditure,06/04/2017,ACL CENTRAL EXPENDITURE,AMAZON UK MARKETPLACE,2,EQUIPMENT,BOOK STORES
20/07/2017,http://opendatacommunities.org/id/county-council/surrey,Surrey,http://id.esd.org.uk/service/1465,Council expenditure,06/04/2017,"NW REF, ASS & INT SERVICE - HUB 1",AMAZON UK MARKETPLACE,8.09,EQUIPMENT,BOOK STORES
20/07/2017,http://opendatacommunities.org/id/county-council/surrey,Surrey,http://id.esd.org.uk/service/1465,Council expenditure,06/04/2017,ACL CENTRAL EXPENDITURE,AMAZON UK MARKETPLACE,61.88,EQUIPMENT,BOOK STORES
20/07/2017,http://opendatacommunities.org/id/county-council/surrey,Surrey,http://id.esd.org.uk/service/1465,Council expenditure,06/04/2017,ACL CENTRAL EXPENDITURE,AMAZON UK MARKETPLACE,61.88,EQUIPMENT,BOOK STORES
20/07/2017,http://opendatacommunities.org/id/county-council/surrey,Surrey,http://id.esd.org.uk/service/1465,Council expenditure,06/04/2017,ACL CENTRAL EXPENDITURE,AMAZON UK MARKETPLACE,61.88,EQUIPMENT,BOOK STORES
20/07/2017,http://opendatacommunities.org/id/county-council/surrey,Surrey,http://id.esd.org.uk/service/1465,Council expenditure,07/04/2017,RUTH HOUSE,LLOYDS AT SAINSBURYS,5.09,PURCHASE OF FOOD (RAW MATERIALS),"GROCERY STORES, SUPERMARKETS"
20/07/2017,http://opendatacommunities.org/id/county-council/surrey,Surrey,http://id.esd.org.uk/service/1465,Council expenditure,07/04/2017,RUTH HOUSE,SAINSBURYS SACAT 0652,17.85,EQUIPMENT,"GROCERY STORES, SUPERMARKETS"
20/07/2017,http://opendatacommunities.org/id/county-council/surrey,Surrey,http://id.esd.org.uk/service/1465,Council expenditure,07/04/2017,RUTH HOUSE,SAINSBURY'S FOOD DELIVERY FOR YOUNG PEOPLE (23.72%),50.15,PURCHASE OF FOOD (RAW MATERIALS),"GROCERY STORES, SUPERMARKETS"
20/07/2017,http://opendatacommunities.org/id/county-council/surrey,Surrey,http://id.esd.org.uk/service/1465,Council expenditure,07/04/2017,RUTH HOUSE,SAINSBURY'S FOOD DELIVERY FOR YOUNG PEOPLE (76.28%),161.3,PURCHASE OF FOOD (RAW MATERIALS),"GROCERY STORES, SUPERMARKETS"
20/07/2017,http://opendatacommunities.org/id/county-council/surrey,Surrey,http://id.esd.org.uk/service/1465,Council expenditure,07/04/2017,RUTH HOUSE,HOBBYCRAFT,39.8,EDUC VISITS/HOLS/CAMPS/TOYS,"ARTIST SUPPLY STORES, CRAFT SHOPS"
20/07/2017,http://opendatacommunities.org/id/county-council/surrey,Surrey,http://id.esd.org.uk/service/1465,Council expenditure,07/04/2017,RUTH HOUSE,ASDA  STORES 4775,14,EQUIPMENT,"GROCERY STORES, SUPERMARKETS"
20/07/2017,http://opendatacommunities.org/id/county-council/surrey,Surrey,http://id.esd.org.uk/service/1465,Council expenditure,07/04/2017,FAIRCROFT COMMUNITY HOME,HOME BARGAINS BYFLEET,10.96,EQUIPMENT,HARDWARE STORES
20/07/2017,http://opendatacommunities.org/id/county-council/surrey,Surrey,http://id.esd.org.uk/service/1465,Council expenditure,07/04/2017,FAIRCROFT COMMUNITY HOME,ARGOS LTD,18.49,EQUIPMENT,DISCOUNT STORES
20/07/2017,http://opendatacommunities.org/id/county-council/surrey,Surrey,http://id.esd.org.uk/service/1465,Council expenditure,07/04/2017,FAIRCROFT COMMUNITY HOME,ARGOS LTD,18.49,EQUIPMENT,DISCOUNT STORES
20/07/2017,http://opendatacommunities.org/id/county-council/surrey,Surrey,http://id.esd.org.uk/service/1465,Council expenditure,07/04/2017,RUTH HOUSE,B & Q 1029,4.82,EQUIPMENT,"BUILDING MATERIALS, LUMBER STORES"
20/07/2017,http://opendatacommunities.org/id/county-council/surrey,Surrey,http://id.esd.org.uk/service/1465,Council expenditure,07/04/2017,RUTH HOUSE,ARGOS RETAIL GROUP,50.4,EQUIPMENT,DISCOUNT STORES
20/07/2017,http://opendatacommunities.org/id/county-council/surrey,Surrey,http://id.esd.org.uk/service/1465,Council expenditure,07/04/2017,ACL CENTRAL EXPENDITURE,AMAZON UK MARKETPLACE,5.25,EQUIPMENT,BOOK STORES
20/07/2017,http://opendatacommunities.org/id/county-council/surrey,Surrey,http://id.esd.org.uk/service/1465,Council expenditure,07/04/2017,SOLD ESTATES MANAGEMENT,TOOLSTATION LTD,10.95,EQUIPMENT,HARDWARE STORES
20/07/2017,http://opendatacommunities.org/id/county-council/surrey,Surrey,http://id.esd.org.uk/service/1465,Council expenditure,07/04/2017,SOLD DAY TO DAY OPERATIONS,SAINSBURYS SACAT 2053,6,EQUIPMENT,"GROCERY STORES, SUPERMARKETS"
20/07/2017,http://opendatacommunities.org/id/county-council/surrey,Surrey,http://id.esd.org.uk/service/1465,Council expenditure,07/04/2017,SOLD DAY TO DAY OPERATIONS,SCREWFIX DIRECT,26.76,EQUIPMENT,"BUILDING MATERIALS, LUMBER STORES"
20/07/2017,http://opendatacommunities.org/id/county-council/surrey,Surrey,http://id.esd.org.uk/service/1465,Council expenditure,07/04/2017,SOUTH EAST AREA TEAM,WICKES,11.19,CURRICULUM CONSUMABLES,"BUILDING MATERIALS, LUMBER STORES"
20/07/2017,http://opendatacommunities.org/id/county-council/surrey,Surrey,http://id.esd.org.uk/service/1465,Council expenditure,07/04/2017,WOODLANDS COMMUNITY HOME,SAINSBURYS 0686,16.05,PURCHASE OF FOOD (RAW MATERIALS),"GROCERY STORES, SUPERMARKETS"
20/07/2017,http://opendatacommunities.org/id/county-council/surrey,Surrey,http://id.esd.org.uk/service/1465,Council expenditure,07/04/2017,WOODLANDS COMMUNITY HOME,SAINSBURYS 0686,92.54,PURCHASE OF FOOD (RAW MATERIALS),"GROCERY STORES, SUPERMARKETS"
20/07/2017,http://opendatacommunities.org/id/county-council/surrey,Surrey,http://id.esd.org.uk/service/1465,Council expenditure,07/04/2017,VIRTUAL SCHOOL FOR LAC PUPIL PREMIUM,WWW.PMGLTD.CO.UK,462,SUBSISTENCE AND CONFERENCE EXPENSES,BUSINESS SERVICES-NOT ELSEWHERE CLASSIFIED
20/07/2017,http://opendatacommunities.org/id/county-council/surrey,Surrey,http://id.esd.org.uk/service/1465,Council expenditure,07/04/2017,WOODLANDS COMMUNITY HOME,TEAM SPORT FARNBOROUGH,46,EDUC VISITS/HOLS/CAMPS/TOYS,"AMUSEMENT PARKS,CARNIVALS,CIRCUS,FORTUNE TELLERS"
20/07/2017,http://opendatacommunities.org/id/county-council/surrey,Surrey,http://id.esd.org.uk/service/1465,Council expenditure,07/04/2017,ACL CENTRAL EXPENDITURE,AMAZON UK MARKETPLACE,26.69,EQUIPMENT,BOOK STORES
20/07/2017,http://opendatacommunities.org/id/county-council/surrey,Surrey,http://id.esd.org.uk/service/1465,Council expenditure,07/04/2017,ACL CENTRAL EXPENDITURE,AMAZON UK MARKETPLACE,3.32,EQUIPMENT,BOOK STORES
20/07/2017,http://opendatacommunities.org/id/county-council/surrey,Surrey,http://id.esd.org.uk/service/1465,Council expenditure,07/04/2017,ACL CENTRAL EXPENDITURE,"AMAZON SVCS EUROPE,SAR",32.78,EQUIPMENT,BOOK STORES
20/07/2017,http://opendatacommunities.org/id/county-council/surrey,Surrey,http://id.esd.org.uk/service/1465,Council expenditure,07/04/2017,ACL CENTRAL EXPENDITURE,AMAZON UK MARKETPLACE,3.62,EQUIPMENT,BOOK STORES
20/07/2017,http://opendatacommunities.org/id/county-council/surrey,Surrey,http://id.esd.org.uk/service/1465,Council expenditure,07/04/2017,ACL CENTRAL EXPENDITURE,AMAZON UK MARKETPLACE,3.6,EQUIPMENT,BOOK STORES
20/07/2017,http://opendatacommunities.org/id/county-council/surrey,Surrey,http://id.esd.org.uk/service/1465,Council expenditure,07/04/2017,ACL CENTRAL EXPENDITURE,AMAZON EU,5.19,EQUIPMENT,DIRECT MARKETING-OTHER DIRECT MARKETERS/NOT ELSEW.
20/07/2017,http://opendatacommunities.org/id/county-council/surrey,Surrey,http://id.esd.org.uk/service/1465,Council expenditure,07/04/2017,TRANSPORT,AMAZON UK MARKETPLACE,9.97,COMPUTER HARDWARE,BOOK STORES
20/07/2017,http://opendatacommunities.org/id/county-council/surrey,Surrey,http://id.esd.org.uk/service/1465,Council expenditure,07/04/2017,ASSET PLANNING - OPERATIONS,POST OFFICE COUNTER,12.98,POSTAGE AND COURIER CHARGES,POSTAL SERVICES-GOVERNMENT ONLY
20/07/2017,http://opendatacommunities.org/id/county-council/surrey,Surrey,http://id.esd.org.uk/service/1465,Council expenditure,07/04/2017,ASSET PLANNING GROUP,AUTOELECTRI,9.99,EQUIPMENT,"AUTOMOTIVE PARTS, ACCESSORIES STORES"
20/07/2017,http://opendatacommunities.org/id/county-council/surrey,Surrey,http://id.esd.org.uk/service/1465,Council expenditure,07/04/2017,SOLD DAY TO DAY OPERATIONS,AMAZON UK MARKETPLACE,31.09,EQUIPMENT,BOOK STORES
20/07/2017,http://opendatacommunities.org/id/county-council/surrey,Surrey,http://id.esd.org.uk/service/1465,Council expenditure,07/04/2017,WOODLANDS COMMUNITY HOME,TEAM SPORT V/T,20,EDUC VISITS/HOLS/CAMPS/TOYS,"AMUSEMENT PARKS,CARNIVALS,CIRCUS,FORTUNE TELLERS"
20/07/2017,http://opendatacommunities.org/id/county-council/surrey,Surrey,http://id.esd.org.uk/service/1465,Council expenditure,07/04/2017,ACL CENTRAL EXPENDITURE,AMAZON UK MARKETPLACE,6.96,EQUIPMENT,BOOK STORES
20/07/2017,http://opendatacommunities.org/id/county-council/surrey,Surrey,http://id.esd.org.uk/service/1465,Council expenditure,07/04/2017,KARIBU COMMUNITY HOME,EAST DEVON DISTRICT CO,2,NON-STAFF RELATED TRANSPORT COSTS,AUTOMOBILE PARKING LOTS AND GARAGES
20/07/2017,http://opendatacommunities.org/id/county-council/surrey,Surrey,http://id.esd.org.uk/service/1465,Council expenditure,07/04/2017,KARIBU COMMUNITY HOME,CLOCK TOWER CAFE SIDMO,54,PURCHASE OF FOOD (RAW MATERIALS),"EATING PLACES, RESTAURANTS"
20/07/2017,http://opendatacommunities.org/id/county-council/surrey,Surrey,http://id.esd.org.uk/service/1465,Council expenditure,07/04/2017,CHEYNE WALK COMMUNITY HOME,AMFBOWLING.CO.UK,19.76,EDUC VISITS/HOLS/CAMPS/TOYS,"CLUBS-CNTRY,MBRSHIP(ATHLET,REC,SPRTS,PRIVATE GOLF"
20/07/2017,http://opendatacommunities.org/id/county-council/surrey,Surrey,http://id.esd.org.uk/service/1465,Council expenditure,07/04/2017,WOODLANDS COMMUNITY HOME,HOMEBASE LTD 084,15.82,EQUIPMENT,"BUILDING MATERIALS, LUMBER STORES"
20/07/2017,http://opendatacommunities.org/id/county-council/surrey,Surrey,http://id.esd.org.uk/service/1465,Council expenditure,07/04/2017,LOWER MOLE COUNTRYSIDE PROJECT,J&S FASTENERS &FIXINGS,175.33,PURCHASE OF BUILDING MATERIALS,INDUSTRIAL SUPPLIES NOT ELSEWHERE CLASSIFIED
20/07/2017,http://opendatacommunities.org/id/county-council/surrey,Surrey,http://id.esd.org.uk/service/1465,Council expenditure,07/04/2017,EMERGENCY MANAGEMENT,PREMIER INN44521690,155.5,MISCELLANEOUS STAFF TRAVEL,PREMIER INN
20/07/2017,http://opendatacommunities.org/id/county-council/surrey,Surrey,http://id.esd.org.uk/service/1465,Council expenditure,07/04/2017,FAIRCROFT COMMUNITY HOME,MONTE TRIPLEX,127.58,EDUC VISITS/HOLS/CAMPS/TOYS,"LODGING-HOTELS,MOTELS,RESORTS-NOT CLASSIFIED"
20/07/2017,http://opendatacommunities.org/id/county-council/surrey,Surrey,http://id.esd.org.uk/service/1465,Council expenditure,07/04/2017,APPLEWOOD,ASDA HOME SHOPPING,207.58,PURCHASE OF FOOD (RAW MATERIALS),"GROCERY STORES, SUPERMARKETS"
20/07/2017,http://opendatacommunities.org/id/county-council/surrey,Surrey,http://id.esd.org.uk/service/1465,Council expenditure,07/04/2017,APPLEWOOD,ASDA HOME SHOPPING,-1.83,PURCHASE OF FOOD (RAW MATERIALS),"GROCERY STORES, SUPERMARKETS"
20/07/2017,http://opendatacommunities.org/id/county-council/surrey,Surrey,http://id.esd.org.uk/service/1465,Council expenditure,07/04/2017,FAIRCROFT COMMUNITY HOME,GI AD  2006 SAS,117.42,EDUC VISITS/HOLS/CAMPS/TOYS,"BAR,LOUNGE,DISCO,NIGHTCLUB,TAVERN-ALCOHOLIC DRINKS"
20/07/2017,http://opendatacommunities.org/id/county-council/surrey,Surrey,http://id.esd.org.uk/service/1465,Council expenditure,07/04/2017,FAIRCROFT COMMUNITY HOME,HOTEL RELAIS DES A 602,18.54,EDUC VISITS/HOLS/CAMPS/TOYS,"LODGING-HOTELS,MOTELS,RESORTS-NOT CLASSIFIED"
20/07/2017,http://opendatacommunities.org/id/county-council/surrey,Surrey,http://id.esd.org.uk/service/1465,Council expenditure,07/04/2017,HEAD OF SCH COMMISSIONING & ADMISSIONS,SWINDON BOROUGH COUNCI,216,TRAINING EXPENSES EXTERNAL GENERAL,GOVERNMENT SERVICES-NOT ELSEWHERE CLASSIFIED
20/07/2017,http://opendatacommunities.org/id/county-council/surrey,Surrey,http://id.esd.org.uk/service/1465,Council expenditure,07/04/2017,POLICY AND OPERATIONS TEAM              ,SAS SOFTWARE LTD,"2,001.60",SUBSCRIPTIONS,SCHOOLS & EDUCATIONAL SVC-NOT ELSEWHERE CLASSIFIED
20/07/2017,http://opendatacommunities.org/id/county-council/surrey,Surrey,http://id.esd.org.uk/service/1465,Council expenditure,07/04/2017,HILLSIDE,SAINSBURYS 0784,3.3,PURCHASE OF FOOD (RAW MATERIALS),"GROCERY STORES, SUPERMARKETS"
20/07/2017,http://opendatacommunities.org/id/county-council/surrey,Surrey,http://id.esd.org.uk/service/1465,Council expenditure,07/04/2017,HILLSIDE,SAINSBURYS 0784,36.5,PURCHASE OF FOOD (RAW MATERIALS),"GROCERY STORES, SUPERMARKETS"
20/07/2017,http://opendatacommunities.org/id/county-council/surrey,Surrey,http://id.esd.org.uk/service/1465,Council expenditure,07/04/2017,LIBERTAS COMMUNITY HOME,BURGER KING ILMINSTER,18.03,REFRESHMENT COSTS,FAST FOOD RESTAURANTS
20/07/2017,http://opendatacommunities.org/id/county-council/surrey,Surrey,http://id.esd.org.uk/service/1465,Council expenditure,07/04/2017,LIBERTAS COMMUNITY HOME,BP MERROW CONVENIENCE,60.3,VEHICLE RUNNING COSTS,SERVICE STATIONS WITH OR WITHOUT ANCILLARY SERVICE
20/07/2017,http://opendatacommunities.org/id/county-council/surrey,Surrey,http://id.esd.org.uk/service/1465,Council expenditure,07/04/2017,HOLLAND CLOSE RESIDENTIAL HOME,TEAM SPORT V/T,102.5,EDUC VISITS/HOLS/CAMPS/TOYS,"AMUSEMENT PARKS,CARNIVALS,CIRCUS,FORTUNE TELLERS"
20/07/2017,http://opendatacommunities.org/id/county-council/surrey,Surrey,http://id.esd.org.uk/service/1465,Council expenditure,07/04/2017,NW CARE - LAC,TRAINLINE,22.69,NON-STAFF RELATED TRANSPORT COSTS,PASSENGER RAILWAYS
20/07/2017,http://opendatacommunities.org/id/county-council/surrey,Surrey,http://id.esd.org.uk/service/1465,Council expenditure,07/04/2017,NW CARE - LAC,TRAINLINE,109.24,NON-STAFF RELATED TRANSPORT COSTS,PASSENGER RAILWAYS
20/07/2017,http://opendatacommunities.org/id/county-council/surrey,Surrey,http://id.esd.org.uk/service/1465,Council expenditure,07/04/2017,NW CARE - LAC,TRAINLINE,104.96,NON-STAFF RELATED TRANSPORT COSTS,PASSENGER RAILWAYS
20/07/2017,http://opendatacommunities.org/id/county-council/surrey,Surrey,http://id.esd.org.uk/service/1465,Council expenditure,07/04/2017,NW CARE - LAC,TRAINLINE,32.69,NON-STAFF RELATED TRANSPORT COSTS,PASSENGER RAILWAYS
20/07/2017,http://opendatacommunities.org/id/county-council/surrey,Surrey,http://id.esd.org.uk/service/1465,Council expenditure,07/04/2017,LIBERTAS COMMUNITY HOME,SAINSBURYS SACAT 0652,7.8,PURCHASE OF FOOD (RAW MATERIALS),"GROCERY STORES, SUPERMARKETS"
20/07/2017,http://opendatacommunities.org/id/county-council/surrey,Surrey,http://id.esd.org.uk/service/1465,Council expenditure,07/04/2017,LIBERTAS COMMUNITY HOME,ADDLESTONE NEW HAW ROA,8.6,REFRESHMENT COSTS,DEPARTMENT STORES
20/07/2017,http://opendatacommunities.org/id/county-council/surrey,Surrey,http://id.esd.org.uk/service/1465,Council expenditure,07/04/2017,LIBERTAS COMMUNITY HOME,ARGOS LTD,15,EQUIPMENT,DISCOUNT STORES
20/07/2017,http://opendatacommunities.org/id/county-council/surrey,Surrey,http://id.esd.org.uk/service/1465,Council expenditure,07/04/2017,IMT PRODUCTION APPLICATIONS TEAM,RACKSPACE EMAIL & APPS,6.03,COMPUTER SERVICES,COMPUTER NETWORK/INFORMATION SERVICES
20/07/2017,http://opendatacommunities.org/id/county-council/surrey,Surrey,http://id.esd.org.uk/service/1465,Council expenditure,07/04/2017,IMT PRODUCTION APPLICATIONS TEAM,RACKSPACE EMAIL & APPS,6.03,COMPUTER SERVICES,COMPUTER NETWORK/INFORMATION SERVICES
20/07/2017,http://opendatacommunities.org/id/county-council/surrey,Surrey,http://id.esd.org.uk/service/1465,Council expenditure,07/04/2017,NE CARE - LAC,THE CHALLENGE NETWORK,20,CHILDREN ACT SEC 17 PAYMENTS,"ORGANIZATIONS, CHARITABLE AND SOCIAL SERVICES"
20/07/2017,http://opendatacommunities.org/id/county-council/surrey,Surrey,http://id.esd.org.uk/service/1465,Council expenditure,07/04/2017,NW SECTION 17 CARE,TRAVELODGE GB0000,460,CHILDREN ACT SEC 17 PAYMENTS,TRAVELODGE
20/07/2017,http://opendatacommunities.org/id/county-council/surrey,Surrey,http://id.esd.org.uk/service/1465,Council expenditure,07/04/2017,ARUNDEL,SPLIT - FOOD FOR SERVICE USERS (97.37%),147.97,REFRESHMENT COSTS,"GROCERY STORES, SUPERMARKETS"
20/07/2017,http://opendatacommunities.org/id/county-council/surrey,Surrey,http://id.esd.org.uk/service/1465,Council expenditure,07/04/2017,ARUNDEL,SPLIT - FOOD FOR SERVICE USERS (2.63%),4,REFRESHMENT COSTS,"GROCERY STORES, SUPERMARKETS"
20/07/2017,http://opendatacommunities.org/id/county-council/surrey,Surrey,http://id.esd.org.uk/service/1465,Council expenditure,07/04/2017,COMMUNICATIONS TEAM,ITUNES.COM/BILL,4.99,SUBSCRIPTIONS,RECORD SHOPS
20/07/2017,http://opendatacommunities.org/id/county-council/surrey,Surrey,http://id.esd.org.uk/service/1465,Council expenditure,07/04/2017,ROW VOLUNTEERS EAST                     ,MOLE COUNTRY STORES,23.4,EQUIPMENT,AGRICULTURAL COOPERATIVES
20/07/2017,http://opendatacommunities.org/id/county-council/surrey,Surrey,http://id.esd.org.uk/service/1465,Council expenditure,07/04/2017,CAMHS SOCIAL WORKERS,WWW.POSTPACK.CO.UK,48.72,EDUC VISITS/HOLS/CAMPS/TOYS,BUSINESS SERVICES-NOT ELSEWHERE CLASSIFIED
20/07/2017,http://opendatacommunities.org/id/county-council/surrey,Surrey,http://id.esd.org.uk/service/1465,Council expenditure,07/04/2017,RUTH HOUSE,JAYLING LTD,27.4,REFRESHMENT COSTS,FAST FOOD RESTAURANTS
20/07/2017,http://opendatacommunities.org/id/county-council/surrey,Surrey,http://id.esd.org.uk/service/1465,Council expenditure,07/04/2017,DOWNLANDS COUNTRYSIDE PROJECT,TESCO STORES,30.95,REFRESHMENT COSTS,"GROCERY STORES, SUPERMARKETS"
20/07/2017,http://opendatacommunities.org/id/county-council/surrey,Surrey,http://id.esd.org.uk/service/1465,Council expenditure,07/04/2017,READY FOR WORK YSS,VUE NCS CITB HS&E TEST,-19.5,EDUC VISITS/HOLS/CAMPS/TOYS,SCHOOLS & EDUCATIONAL SVC-NOT ELSEWHERE CLASSIFIED
20/07/2017,http://opendatacommunities.org/id/county-council/surrey,Surrey,http://id.esd.org.uk/service/1465,Council expenditure,07/04/2017,ACL CENTRAL EXPENDITURE,AMAZON UK MARKETPLACE,4.98,EQUIPMENT,BOOK STORES
20/07/2017,http://opendatacommunities.org/id/county-council/surrey,Surrey,http://id.esd.org.uk/service/1465,Council expenditure,08/04/2017,LIBERTAS COMMUNITY HOME,WAITROSE 216,116.07,PURCHASE OF FOOD (RAW MATERIALS),"GROCERY STORES, SUPERMARKETS"
20/07/2017,http://opendatacommunities.org/id/county-council/surrey,Surrey,http://id.esd.org.uk/service/1465,Council expenditure,08/04/2017,HILLSIDE,SAINSBURYS SACAT 0784,1.65,PURCHASE OF FOOD (RAW MATERIALS),"GROCERY STORES, SUPERMARKETS"
20/07/2017,http://opendatacommunities.org/id/county-council/surrey,Surrey,http://id.esd.org.uk/service/1465,Council expenditure,08/04/2017,CHEYNE WALK COMMUNITY HOME,ORIGINAL FACTORY S,30.99,EQUIPMENT,DEPARTMENT STORES
20/07/2017,http://opendatacommunities.org/id/county-council/surrey,Surrey,http://id.esd.org.uk/service/1465,Council expenditure,08/04/2017,CHEYNE WALK COMMUNITY HOME,CAFE LE MANGER,23.7,PURCHASE OF FOOD (RAW MATERIALS),FAST FOOD RESTAURANTS
20/07/2017,http://opendatacommunities.org/id/county-council/surrey,Surrey,http://id.esd.org.uk/service/1465,Council expenditure,08/04/2017,FAIRCROFT COMMUNITY HOME,BAR RISTORANTE ASS 056,45.46,EDUC VISITS/HOLS/CAMPS/TOYS,"BAR,LOUNGE,DISCO,NIGHTCLUB,TAVERN-ALCOHOLIC DRINKS"
20/07/2017,http://opendatacommunities.org/id/county-council/surrey,Surrey,http://id.esd.org.uk/service/1465,Council expenditure,08/04/2017,FAIRCROFT COMMUNITY HOME,VECCHIA TRATTORIA,142.14,EDUC VISITS/HOLS/CAMPS/TOYS,"EATING PLACES, RESTAURANTS"
20/07/2017,http://opendatacommunities.org/id/county-council/surrey,Surrey,http://id.esd.org.uk/service/1465,Council expenditure,08/04/2017,FAIRCROFT COMMUNITY HOME,ORSO BIANCO        152,46.79,EDUC VISITS/HOLS/CAMPS/TOYS,"EATING PLACES, RESTAURANTS"
20/07/2017,http://opendatacommunities.org/id/county-council/surrey,Surrey,http://id.esd.org.uk/service/1465,Council expenditure,08/04/2017,FAIRCROFT COMMUNITY HOME,HOTEL RELAIS DES A 602,18.54,EDUC VISITS/HOLS/CAMPS/TOYS,"LODGING-HOTELS,MOTELS,RESORTS-NOT CLASSIFIED"
20/07/2017,http://opendatacommunities.org/id/county-council/surrey,Surrey,http://id.esd.org.uk/service/1465,Council expenditure,08/04/2017,FAIRCROFT COMMUNITY HOME,BAR RISTORANTE ASS 056,7.06,EDUC VISITS/HOLS/CAMPS/TOYS,"BAR,LOUNGE,DISCO,NIGHTCLUB,TAVERN-ALCOHOLIC DRINKS"
20/07/2017,http://opendatacommunities.org/id/county-council/surrey,Surrey,http://id.esd.org.uk/service/1465,Council expenditure,08/04/2017,FAIRCROFT COMMUNITY HOME,HOTEL K2           708,32.22,EDUC VISITS/HOLS/CAMPS/TOYS,"LODGING-HOTELS,MOTELS,RESORTS-NOT CLASSIFIED"
20/07/2017,http://opendatacommunities.org/id/county-council/surrey,Surrey,http://id.esd.org.uk/service/1465,Council expenditure,08/04/2017,CHEYNE WALK COMMUNITY HOME,CINEWORLD CRA AT,50,EDUC VISITS/HOLS/CAMPS/TOYS,"THEATRICAL PRODUCERS(EXCL MOTION PIX),TICKET AGNCY"
20/07/2017,http://opendatacommunities.org/id/county-council/surrey,Surrey,http://id.esd.org.uk/service/1465,Council expenditure,08/04/2017,CHEYNE WALK COMMUNITY HOME,CINEWORLD CRA CP,17.3,PURCHASE OF FOOD (RAW MATERIALS),"THEATRICAL PRODUCERS(EXCL MOTION PIX),TICKET AGNCY"
20/07/2017,http://opendatacommunities.org/id/county-council/surrey,Surrey,http://id.esd.org.uk/service/1465,Council expenditure,08/04/2017,CHEYNE WALK COMMUNITY HOME,TESCO STORE 2313,106.72,PURCHASE OF FOOD (RAW MATERIALS),"GROCERY STORES, SUPERMARKETS"
20/07/2017,http://opendatacommunities.org/id/county-council/surrey,Surrey,http://id.esd.org.uk/service/1465,Council expenditure,08/04/2017,HOLLAND CLOSE RESIDENTIAL HOME,TESCO-STORES 6647,173.98,PURCHASE OF FOOD (RAW MATERIALS),"GROCERY STORES, SUPERMARKETS"
20/07/2017,http://opendatacommunities.org/id/county-council/surrey,Surrey,http://id.esd.org.uk/service/1465,Council expenditure,08/04/2017,E&I - TEXTILES                          ,GOOGLE  ADWS2060179426,500,PUBLICITY,DIRECT MARKETING-CONTINUITY/SUBSCRIPTION MERCHANTS
20/07/2017,http://opendatacommunities.org/id/county-council/surrey,Surrey,http://id.esd.org.uk/service/1465,Council expenditure,08/04/2017,CHEYNE WALK COMMUNITY HOME,TESCO STORE 2560,3.1,PURCHASE OF FOOD (RAW MATERIALS),"GROCERY STORES, SUPERMARKETS"
20/07/2017,http://opendatacommunities.org/id/county-council/surrey,Surrey,http://id.esd.org.uk/service/1465,Council expenditure,08/04/2017,DEMOCRATIC SERVICES TEAM,AMAZON UK RETAIL AMAZO,29.98,REFRESHMENT COSTS,MISCELLANEOUS AND SPECIALTY RETAIL STORES
20/07/2017,http://opendatacommunities.org/id/county-council/surrey,Surrey,http://id.esd.org.uk/service/1465,Council expenditure,08/04/2017,HILLSIDE,SAINSBURYS TO YOU 0675,19.2,PURCHASE OF FOOD (RAW MATERIALS),"GROCERY STORES, SUPERMARKETS"
20/07/2017,http://opendatacommunities.org/id/county-council/surrey,Surrey,http://id.esd.org.uk/service/1465,Council expenditure,08/04/2017,HILLSIDE,SAINSBURYS TO YOU 0675,232.76,PURCHASE OF FOOD (RAW MATERIALS),"GROCERY STORES, SUPERMARKETS"
20/07/2017,http://opendatacommunities.org/id/county-council/surrey,Surrey,http://id.esd.org.uk/service/1465,Council expenditure,09/04/2017,C&C DIRECTORATE SUPPORT,AMAZON UK RETAIL AMAZO,20.84,EQUIPMENT,MISCELLANEOUS AND SPECIALTY RETAIL STORES
20/07/2017,http://opendatacommunities.org/id/county-council/surrey,Surrey,http://id.esd.org.uk/service/1465,Council expenditure,09/04/2017,LIBERTAS COMMUNITY HOME,SAINSBURYS SACAT 0652,21,PURCHASE OF FOOD (RAW MATERIALS),"GROCERY STORES, SUPERMARKETS"
20/07/2017,http://opendatacommunities.org/id/county-council/surrey,Surrey,http://id.esd.org.uk/service/1465,Council expenditure,09/04/2017,LIBERTAS COMMUNITY HOME,HOMEBASE LTD 305,12.82,EQUIPMENT,"BUILDING MATERIALS, LUMBER STORES"
20/07/2017,http://opendatacommunities.org/id/county-council/surrey,Surrey,http://id.esd.org.uk/service/1465,Council expenditure,09/04/2017,CHEYNE WALK COMMUNITY HOME,BUTLINS,92,EDUC VISITS/HOLS/CAMPS/TOYS,TOURIST ATTRACTIONS AND EXHIBITS
20/07/2017,http://opendatacommunities.org/id/county-council/surrey,Surrey,http://id.esd.org.uk/service/1465,Council expenditure,09/04/2017,CHEYNE WALK COMMUNITY HOME,AIRJUMP.CO,55.8,EDUC VISITS/HOLS/CAMPS/TOYS,RECREATION SERVICES (NOT ELSEWHERE CLASSIFIED)
20/07/2017,http://opendatacommunities.org/id/county-council/surrey,Surrey,http://id.esd.org.uk/service/1465,Council expenditure,09/04/2017,TS SERVICE MANAGEMENT,AMAZON UK RETAIL AMAZO,51.98,MEDICAL EXPENSES,MISCELLANEOUS AND SPECIALTY RETAIL STORES
20/07/2017,http://opendatacommunities.org/id/county-council/surrey,Surrey,http://id.esd.org.uk/service/1465,Council expenditure,09/04/2017,COMMUNICATIONS TEAM,GUARDIAN NEWS  MEDIA,51.96,SUBSCRIPTIONS,"BOOKS,PERIODICALS AND NEWSPAPERS"
20/07/2017,http://opendatacommunities.org/id/county-council/surrey,Surrey,http://id.esd.org.uk/service/1465,Council expenditure,09/04/2017,HOLLAND CLOSE RESIDENTIAL HOME,THORPE PARK,90,EDUC VISITS/HOLS/CAMPS/TOYS,TOURIST ATTRACTIONS AND EXHIBITS
20/07/2017,http://opendatacommunities.org/id/county-council/surrey,Surrey,http://id.esd.org.uk/service/1465,Council expenditure,09/04/2017,MALLOW CRESCENT,PARKDEAN HOLIDAY P,100.48,EDUC VISITS/HOLS/CAMPS/TOYS,CAMPGROUNDS AND TRAILER PARKS
20/07/2017,http://opendatacommunities.org/id/county-council/surrey,Surrey,http://id.esd.org.uk/service/1465,Council expenditure,09/04/2017,ARUNDEL,ASDA SUPERSTORE,10.84,REFRESHMENT COSTS,"GROCERY STORES, SUPERMARKETS"
20/07/2017,http://opendatacommunities.org/id/county-council/surrey,Surrey,http://id.esd.org.uk/service/1465,Council expenditure,10/04/2017,TRAINING AND DEVELOPMENT,PREMIER INN44018230,215.97,SUBSISTENCE AND CONFERENCE EXPENSES,PREMIER INN
20/07/2017,http://opendatacommunities.org/id/county-council/surrey,Surrey,http://id.esd.org.uk/service/1465,Council expenditure,10/04/2017,HR LEADERSHIP DEVELOPMENT,WWW.KOGANPAGE.COM,499,TRAINING EXPENSES EXTERNAL GENERAL,BOOK STORES
20/07/2017,http://opendatacommunities.org/id/county-council/surrey,Surrey,http://id.esd.org.uk/service/1465,Council expenditure,10/04/2017,NE CARE - LAC,PREMIER INN44014555,225,CHILDREN ACT SEC 17 PAYMENTS,PREMIER INN
20/07/2017,http://opendatacommunities.org/id/county-council/surrey,Surrey,http://id.esd.org.uk/service/1465,Council expenditure,10/04/2017,TS SERVICE MANAGEMENT,WWW.UK.RS-ONLINE.C,353.5,OPERATIONAL FIRE EQUIPMENT,ELECTRICAL PARTS AND EQUIPMENT
20/07/2017,http://opendatacommunities.org/id/county-council/surrey,Surrey,http://id.esd.org.uk/service/1465,Council expenditure,10/04/2017,EXTENDED HOPE,SAINSBURYS TO YOU 0652,2.35,PURCHASE OF FOOD (RAW MATERIALS),"GROCERY STORES, SUPERMARKETS"
20/07/2017,http://opendatacommunities.org/id/county-council/surrey,Surrey,http://id.esd.org.uk/service/1465,Council expenditure,10/04/2017,EXTENDED HOPE,SAINSBURYS TO YOU 0652,70.57,PURCHASE OF FOOD (RAW MATERIALS),"GROCERY STORES, SUPERMARKETS"
20/07/2017,http://opendatacommunities.org/id/county-council/surrey,Surrey,http://id.esd.org.uk/service/1465,Council expenditure,10/04/2017,MALLOW CRESCENT,SAINSBURYS SACAT 0670,7.4,PURCHASE OF FOOD (RAW MATERIALS),"GROCERY STORES, SUPERMARKETS"
20/07/2017,http://opendatacommunities.org/id/county-council/surrey,Surrey,http://id.esd.org.uk/service/1465,Council expenditure,10/04/2017,MALLOW CRESCENT,SAINSBURYS SACAT 0670,117.28,PURCHASE OF FOOD (RAW MATERIALS),"GROCERY STORES, SUPERMARKETS"
20/07/2017,http://opendatacommunities.org/id/county-council/surrey,Surrey,http://id.esd.org.uk/service/1465,Council expenditure,10/04/2017,GODALMING YC,SAINSBURYS TO YOU 0652,9.8,PURCHASE OF FOOD (RAW MATERIALS),"GROCERY STORES, SUPERMARKETS"
20/07/2017,http://opendatacommunities.org/id/county-council/surrey,Surrey,http://id.esd.org.uk/service/1465,Council expenditure,10/04/2017,GODALMING YC,SAINSBURYS TO YOU 0652,3.8,PURCHASE OF FOOD (RAW MATERIALS),"GROCERY STORES, SUPERMARKETS"
20/07/2017,http://opendatacommunities.org/id/county-council/surrey,Surrey,http://id.esd.org.uk/service/1465,Council expenditure,10/04/2017,THE STREET YC,WAITROSE 838,3.77,PURCHASE OF FOOD (RAW MATERIALS),"GROCERY STORES, SUPERMARKETS"
20/07/2017,http://opendatacommunities.org/id/county-council/surrey,Surrey,http://id.esd.org.uk/service/1465,Council expenditure,10/04/2017,LIBERTAS COMMUNITY HOME,SAINSBURYS 0652,42.05,PURCHASE OF FOOD (RAW MATERIALS),"GROCERY STORES, SUPERMARKETS"
20/07/2017,http://opendatacommunities.org/id/county-council/surrey,Surrey,http://id.esd.org.uk/service/1465,Council expenditure,10/04/2017,LIBERTAS COMMUNITY HOME,SAINSBURYS 0652,16.5,EQUIPMENT,"GROCERY STORES, SUPERMARKETS"
20/07/2017,http://opendatacommunities.org/id/county-council/surrey,Surrey,http://id.esd.org.uk/service/1465,Council expenditure,10/04/2017,LIBERTAS COMMUNITY HOME,SAINSBURYS 0652,128.52,PURCHASE OF FOOD (RAW MATERIALS),"GROCERY STORES, SUPERMARKETS"
20/07/2017,http://opendatacommunities.org/id/county-council/surrey,Surrey,http://id.esd.org.uk/service/1465,Council expenditure,10/04/2017,MALLOW CRESCENT,SAINSBURYS TO YOU 0652,8,PURCHASE OF FOOD (RAW MATERIALS),"GROCERY STORES, SUPERMARKETS"
20/07/2017,http://opendatacommunities.org/id/county-council/surrey,Surrey,http://id.esd.org.uk/service/1465,Council expenditure,10/04/2017,MALLOW CRESCENT,SAINSBURYS TO YOU 0652,124.16,PURCHASE OF FOOD (RAW MATERIALS),"GROCERY STORES, SUPERMARKETS"
20/07/2017,http://opendatacommunities.org/id/county-council/surrey,Surrey,http://id.esd.org.uk/service/1465,Council expenditure,10/04/2017,COVEHAM,SAINSBURYS TO YOU 0687,181.37,REFRESHMENT COSTS,"GROCERY STORES, SUPERMARKETS"
20/07/2017,http://opendatacommunities.org/id/county-council/surrey,Surrey,http://id.esd.org.uk/service/1465,Council expenditure,10/04/2017,COVEHAM,SAINSBURYS TO YOU 0687,9.25,REFRESHMENT COSTS,"GROCERY STORES, SUPERMARKETS"
20/07/2017,http://opendatacommunities.org/id/county-council/surrey,Surrey,http://id.esd.org.uk/service/1465,Council expenditure,10/04/2017,FAIRCROFT COMMUNITY HOME,SAINSBURYS SACAT 0687,5.5,EQUIPMENT,"GROCERY STORES, SUPERMARKETS"
20/07/2017,http://opendatacommunities.org/id/county-council/surrey,Surrey,http://id.esd.org.uk/service/1465,Council expenditure,10/04/2017,PE/CDT MAINTENANCE OVERHEADS,KOMPAN LIMITED,86.4,ITEMS PURCHASED FOR RE-SALE,SPORTING GOODS STORES
20/07/2017,http://opendatacommunities.org/id/county-council/surrey,Surrey,http://id.esd.org.uk/service/1465,Council expenditure,10/04/2017,COUNTY HALL,WWWTESTMETERCOUK,723,EQUIPMENT,"COMMERCIAL EQUIPMENT, NOT ELSEWHERE CLASSIFIED"
20/07/2017,http://opendatacommunities.org/id/county-council/surrey,Surrey,http://id.esd.org.uk/service/1465,Council expenditure,10/04/2017,RUTH HOUSE,"AMAZON SVCS EUROPE,SAR",13.49,EDUC VISITS/HOLS/CAMPS/TOYS,BOOK STORES
20/07/2017,http://opendatacommunities.org/id/county-council/surrey,Surrey,http://id.esd.org.uk/service/1465,Council expenditure,10/04/2017,RUTH HOUSE,AMAZON UK MARKETPLACE,4.16,EDUC VISITS/HOLS/CAMPS/TOYS,BOOK STORES
20/07/2017,http://opendatacommunities.org/id/county-council/surrey,Surrey,http://id.esd.org.uk/service/1465,Council expenditure,10/04/2017,RUTH HOUSE,WWW.THEWORKS.CO.UK,99,EDUC VISITS/HOLS/CAMPS/TOYS,DISCOUNT STORES
20/07/2017,http://opendatacommunities.org/id/county-council/surrey,Surrey,http://id.esd.org.uk/service/1465,Council expenditure,10/04/2017,RUTH HOUSE,HISTORICDOCKYARD.,25.2,EDUC VISITS/HOLS/CAMPS/TOYS,RECREATION SERVICES (NOT ELSEWHERE CLASSIFIED)
20/07/2017,http://opendatacommunities.org/id/county-council/surrey,Surrey,http://id.esd.org.uk/service/1465,Council expenditure,10/04/2017,FAIRCROFT COMMUNITY HOME,TESCO STORE 2160,158.19,PURCHASE OF FOOD (RAW MATERIALS),"GROCERY STORES, SUPERMARKETS"
20/07/2017,http://opendatacommunities.org/id/county-council/surrey,Surrey,http://id.esd.org.uk/service/1465,Council expenditure,10/04/2017,MALLOW CRESCENT,TESCO STORE 2590,85.47,PURCHASE OF FOOD (RAW MATERIALS),"GROCERY STORES, SUPERMARKETS"
20/07/2017,http://opendatacommunities.org/id/county-council/surrey,Surrey,http://id.esd.org.uk/service/1465,Council expenditure,10/04/2017,LIBERTAS COMMUNITY HOME,WELCOME BREAK STARBUCK,29.65,PURCHASE OF FOOD (RAW MATERIALS),"MISC FOOD STORE-CONVENIENCE,MRKT,SPLTY,VENDNG MACS"
20/07/2017,http://opendatacommunities.org/id/county-council/surrey,Surrey,http://id.esd.org.uk/service/1465,Council expenditure,10/04/2017,COACHING                                ,WWW.GLASGOWS.CO.UK,216,TRAINING EXPENSES EXTERNAL GENERAL,BUSINESS SERVICES-NOT ELSEWHERE CLASSIFIED
20/07/2017,http://opendatacommunities.org/id/county-council/surrey,Surrey,http://id.esd.org.uk/service/1465,Council expenditure,10/04/2017,COACHING                                ,SLIEVE DONARD HOTEL,75,SUBSISTENCE AND CONFERENCE EXPENSES,"LODGING-HOTELS,MOTELS,RESORTS-NOT CLASSIFIED"
